{"text_format":"1","workbook":"xlsx","n_sheets":3,"sheets":["טיימר עבודות","סיכום התשלומים","הדרכה"],"not_rendered":{"charts":0,"images":1,"macros":1,"external_links":0,"defined_names":8,"comments":0,"pivot_tables":0},"unopened":[],"bounds":{"document_bytes":16777216,"sheet_cells":100000,"rows_first":2000,"rows_last":500,"rows_between":2000,"halvings":0,"cell_chars":16384,"cell_head_chars":4096},"cells_cut":0,"cells_raw":0,"read":"whole","date_system":"1900"}

{"sheet":"טיימר עבודות","index":0,"n_rows":208,"n_cols":41,"rows_kept":208,"cut":false,"hidden":false,"merged":[[206,9,206,10],[207,9,207,10],[16,9,16,10],[17,9,17,10],[18,9,18,10],[19,9,19,10],[20,9,20,10],[21,9,21,10],[22,9,22,10],[23,9,23,10],[24,9,24,10],[25,9,25,10],[26,9,26,10],[27,9,27,10],[28,9,28,10],[29,9,29,10],[30,9,30,10],[31,9,31,10],[32,9,32,10],[33,9,33,10],[34,9,34,10],[35,9,35,10],[36,9,36,10],[37,9,37,10],[7,9,7,10],[8,9,8,10],[9,9,9,10],[10,9,10,10],[11,9,11,10],[12,9,12,10],[13,9,13,10],[14,9,14,10],[15,9,15,10],[25,15,25,16],[26,13,26,14],[26,15,26,16],[27,13,27,14],[27,15,27,16],[11,19,11,20],[12,19,12,20],[13,19,13,20],[14,19,14,20],[15,19,15,20],[16,19,16,20],[17,19,17,20],[18,19,18,20],[20,19,20,20],[19,19,19,20],[11,15,11,16],[12,13,12,14],[12,15,12,16],[13,13,13,14],[13,15,13,16],[14,13,14,14],[7,19,7,20],[8,19,8,20],[9,13,9,14],[9,15,9,16],[10,13,10,14],[10,15,10,16],[11,13,11,14],[9,19,9,20],[10,19,10,20],[38,9,38,10],[39,9,39,10],[40,9,40,10],[41,9,41,10],[42,9,42,10],[43,9,43,10],[44,9,44,10],[45,9,45,10],[46,9,46,10],[47,9,47,10],[48,9,48,10],[49,9,49,10],[50,9,50,10],[51,9,51,10],[52,9,52,10],[53,9,53,10],[54,9,54,10],[55,9,55,10],[56,9,56,10],[57,9,57,10],[58,9,58,10],[59,9,59,10],[60,9,60,10],[61,9,61,10],[62,9,62,10],[63,9,63,10],[64,9,64,10],[65,9,65,10],[66,9,66,10],[67,9,67,10],[68,9,68,10],[69,9,69,10],[70,9,70,10],[71,9,71,10],[72,9,72,10],[73,9,73,10],[74,9,74,10],[75,9,75,10],[76,9,76,10],[77,9,77,10],[78,9,78,10],[79,9,79,10],[80,9,80,10],[81,9,81,10],[82,9,82,10],[83,9,83,10],[84,9,84,10],[85,9,85,10],[86,9,86,10],[87,9,87,10],[88,9,88,10],[89,9,89,10],[90,9,90,10],[91,9,91,10],[92,9,92,10],[93,9,93,10],[94,9,94,10],[95,9,95,10],[96,9,96,10],[97,9,97,10],[98,9,98,10],[99,9,99,10],[100,9,100,10],[101,9,101,10],[102,9,102,10],[103,9,103,10],[104,9,104,10],[105,9,105,10],[106,9,106,10],[107,9,107,10],[108,9,108,10],[109,9,109,10],[110,9,110,10],[111,9,111,10],[112,9,112,10],[113,9,113,10],[114,9,114,10],[115,9,115,10],[116,9,116,10],[117,9,117,10],[118,9,118,10],[119,9,119,10],[120,9,120,10],[121,9,121,10],[122,9,122,10],[123,9,123,10],[124,9,124,10],[125,9,125,10],[126,9,126,10],[127,9,127,10],[128,9,128,10],[129,9,129,10],[130,9,130,10],[131,9,131,10],[132,9,132,10],[133,9,133,10],[134,9,134,10],[135,9,135,10],[136,9,136,10],[137,9,137,10],[138,9,138,10],[139,9,139,10],[140,9,140,10],[141,9,141,10],[142,9,142,10],[143,9,143,10],[144,9,144,10],[145,9,145,10],[146,9,146,10],[147,9,147,10],[148,9,148,10],[149,9,149,10],[150,9,150,10],[151,9,151,10],[152,9,152,10],[153,9,153,10],[154,9,154,10],[155,9,155,10],[156,9,156,10],[157,9,157,10],[158,9,158,10],[159,9,159,10],[160,9,160,10],[161,9,161,10],[162,9,162,10],[163,9,163,10],[164,9,164,10],[165,9,165,10],[166,9,166,10],[167,9,167,10],[168,9,168,10],[169,9,169,10],[170,9,170,10],[171,9,171,10],[172,9,172,10],[185,9,185,10],[186,9,186,10],[187,9,187,10],[188,9,188,10],[189,9,189,10],[190,9,190,10],[173,9,173,10],[174,9,174,10],[175,9,175,10],[176,9,176,10],[177,9,177,10],[178,9,178,10],[179,9,179,10],[180,9,180,10],[181,9,181,10],[200,9,200,10],[201,9,201,10],[202,9,202,10],[203,9,203,10],[204,9,204,10],[205,9,205,10],[21,13,21,14],[21,15,21,16],[22,13,22,14],[22,15,22,16],[23,13,23,14],[23,15,23,16],[191,9,191,10],[192,9,192,10],[193,9,193,10],[194,9,194,10],[195,9,195,10],[196,9,196,10],[197,9,197,10],[198,9,198,10],[199,9,199,10],[182,9,182,10],[183,9,183,10],[184,9,184,10],[1,14,1,15],[2,14,2,15],[3,14,3,15],[7,13,7,14],[7,15,7,16],[8,13,8,14],[8,15,8,16],[4,13,4,15],[5,13,5,15],[14,15,14,16],[15,13,15,14],[15,15,15,16],[30,18,33,20],[27,19,27,20],[16,13,16,14],[16,15,16,16],[17,13,17,14],[17,15,17,16],[18,13,18,14],[18,15,18,16],[19,13,19,14],[19,15,19,16],[20,13,20,14],[20,15,20,16],[21,19,21,20],[22,19,22,20],[23,19,23,20],[26,19,26,20],[24,19,24,20],[25,19,25,20],[24,13,24,14],[24,15,24,16],[25,13,25,14]]}
[]
[null,null,null,null,null,null,null,null,null,null,null,null,null,"מתאריך:","עד תאריך:",null,"שם העבודה","שעות","שכר","אחוזים מהיעד","יעד שכר"]
[null,null,null,null,null,null,null,null,null,{"$f":"IF(AO10=1,$AO$18,$AO$19)","v":"ü"},null,null,null,"2024-01-07","2024-01-07",null,"העורך התורני",{"$f":"IF(SUMIFS(שעות_עבודה7[שעות],שעות_עבודה7[תאריך], \">=\"&N3,שעות_עבודה7[תאריך], \"<=\"&O3,שעות_עבודה7[שם העבודה],Q3)=0,\"\",\nSUMIFS(שעות_עבודה7[שעות],שעות_עבודה7[תאריך], \">=\"&N3,שעות_עבודה7[תאריך], \"<=\"&O3,שעות_עבודה7[שם העבודה],Q3))","v":0.16990740740740734},{"$f":"IF(SUMIFS(J9:J208,שעות_עבודה7[תאריך], \">=\"&N3,שעות_עבודה7[תאריך], \"<=\"&O3,שעות_עבודה7[שם העבודה],Q3)=0,\"\",\nSUMIFS(J9:J208,שעות_עבודה7[תאריך], \">=\"&N3,שעות_עבודה7[תאריך], \"<=\"&O3,שעות_עבודה7[שם העבודה],Q3))","v":203.8888888888888},{"$f":"IFERROR('טיימר עבודות'!$S3/'טיימר עבודות'!$U3,\"\")","v":0.33981481481481468},600]
[null,null,null,null,null,null,null,null,null,null,null,null,null,"2024-01-01","2024-01-07",null,"המאיר לדרים",{"$f":"IF(SUMIFS(שעות_עבודה7[שעות],שעות_עבודה7[תאריך], \">=\"&N4,שעות_עבודה7[תאריך], \"<=\"&O4,שעות_עבודה7[שם העבודה],Q4)=0,\"\",\nSUMIFS(שעות_עבודה7[שעות],שעות_עבודה7[תאריך], \">=\"&N4,שעות_עבודה7[תאריך], \"<=\"&O4,שעות_עבודה7[שם העבודה],Q4))","v":0.20946759259259257},{"$f":"IF(SUMIFS(J9:J208,שעות_עבודה7[תאריך], \">=\"&N4,שעות_עבודה7[תאריך], \"<=\"&O4,שעות_עבודה7[שם העבודה],Q4)=0,\"\",\nSUMIFS(J9:J208,שעות_עבודה7[תאריך], \">=\"&N4,שעות_עבודה7[תאריך], \"<=\"&O4,שעות_עבודה7[שם העבודה],Q4))","v":301.63333333333327},{"$f":"IFERROR('טיימר עבודות'!$S4/'טיימר עבודות'!$U4,\"\")","v":0.60326666666666651},500]
[null,null,null,null,null,null,null,null,null,{"$f":"IF(הקלקה=1,$AO$18,$AO$19)","v":"ü"},null,null,null,"היום הנוכחי",null,null,"כל העבודות",{"$f":"IF(SUMIFS(שעות_עבודה7[שעות],שעות_עבודה7[תאריך],TODAY())=0,\"\",SUMIFS(שעות_עבודה7[שעות],שעות_עבודה7[תאריך],TODAY()))","v":0.37937499999999991},{"$f":"IF(SUMIFS(J9:J208,שעות_עבודה7[תאריך],TODAY())=0,\"\",\nSUMIFS(J9:J208,שעות_עבודה7[תאריך],TODAY()))","v":505.52222222222207},{"$f":"IFERROR('טיימר עבודות'!$S5/'טיימר עבודות'!$U5,\"\")","v":1.6850740740740735},300]
[null,null,null,null,null,null,null,null,null,null,null,null,null,"כל התאריכים",null,null,"כל העבודות",{"$f":"IF(SUM(שעות_עבודה7[שעות])=0,\"\",SUM(שעות_עבודה7[שעות]))","v":0.76899305555555553},{"$f":"IF(SUM(J9:J208)=0,\"\",SUM(J9:J208))","v":876.05833333333328},{"$f":"IFERROR('טיימר עבודות'!$S6/'טיימר עבודות'!$U6,\"\")","v":0.43802916666666664},2000]
[]
[null,null,"תאריך","שם העבודה","התחלה","סיום","הוספת שעות","הפחתת שעות","שעות","השכר",null,"הערות",null,"שמות העבודות",null,"שכר לשעה",null,"שעות העבודה","השכר לעבודה","הערות"]
[null,{"$f":"IF(שעות_עבודה7[[#This Row],[תאריך]]=\"\",\"\",ROW(A1))","v":1},"2024-01-04","הבית לעורך","08:49:19","10:49:21","05:06:00",null,{"$f":"IFERROR(IF(שעות_עבודה7[[#This Row],[סיום]]=\"\",\"\",שעות_עבודה7[[#This Row],[סיום]]-שעות_עבודה7[[#This Row],[התחלה]]+שעות_עבודה7[[#This Row],[הוספת שעות]]-שעות_עבודה7[[#This Row],[הפחתת שעות]]+(שעות_עבודה7[[#This Row],[סיום]]<שעות_עבודה7[[#This Row],[התחלה]])),\"\")","v":0.29585648148148147},{"$f":"IF(שעות_עבודה7[[#This Row],[שעות]]=\"\",\"\",\nIF(SUMPRODUCT((שעות_עבודה7[[#This Row],[שם העבודה]]=$N$9:$O$28)*שעות_עבודה7[[#This Row],[שעות]]*($P$9:$Q$28*24))=0,\"\",\nSUMPRODUCT((שעות_עבודה7[[#This Row],[שם העבודה]]=$N$9:$O$28)*שעות_עבודה7[[#This Row],[שעות]]*($P$9:$Q$28*24))))","v":213.01666666666665},null,null,null,"הבית לעורך",null,30,null,{"$f":"IF(N9=\"\",\"\",\nIFERROR(IF(SUMIFS(שעות_עבודה7[שעות],שעות_עבודה7[שם העבודה],N9)=0,\"\",SUMIFS(שעות_עבודה7[שעות],שעות_עבודה7[שם העבודה],N9)),\"\"))","v":0.29585648148148147},{"$f":"IF(OR(P9=\"\",R9=\"\"),\"\",\nIF(R9*P9*24=0,\"\",R9*P9*24))","v":213.01666666666668},null,null,null,null,null,null,null,null,null,null,null,null,null,null,null,null,null,null,null,null,null,"שמירה אוטומטית1=שמור, 0=אל תשמור"]
[null,{"$f":"IF(שעות_עבודה7[[#This Row],[תאריך]]=\"\",\"\",ROW(A2))","v":2},"2024-01-05","חיים של תורה","11:49:30","14:59:31",null,"00:55:00",{"$f":"IFERROR(IF(שעות_עבודה7[[#This Row],[סיום]]=\"\",\"\",שעות_עבודה7[[#This Row],[סיום]]-שעות_עבודה7[[#This Row],[התחלה]]+שעות_עבודה7[[#This Row],[הוספת שעות]]-שעות_עבודה7[[#This Row],[הפחתת שעות]]+(שעות_עבודה7[[#This Row],[סיום]]<שעות_עבודה7[[#This Row],[התחלה]])),\"\")","v":9.3761574074074122E-2},{"$f":"IF(שעות_עבודה7[[#This Row],[שעות]]=\"\",\"\",\nIF(SUMPRODUCT((שעות_עבודה7[[#This Row],[שם העבודה]]=$N$9:$O$28)*שעות_עבודה7[[#This Row],[שעות]]*($P$9:$Q$28*24))=0,\"\",\nSUMPRODUCT((שעות_עבודה7[[#This Row],[שם העבודה]]=$N$9:$O$28)*שעות_עבודה7[[#This Row],[שעות]]*($P$9:$Q$28*24))))","v":157.51944444444453},null,null,null,"העורך התורני",null,50,50,{"$f":"IF(N10=\"\",\"\",\nIFERROR(IF(SUMIFS(שעות_עבודה7[שעות],שעות_עבודה7[שם העבודה],N10)=0,\"\",SUMIFS(שעות_עבודה7[שעות],שעות_עבודה7[שם העבודה],N10)),\"\"))","v":0.16990740740740734},{"$f":"IF(OR(P10=\"\",R10=\"\"),\"\",\nIF(R10*P10*24=0,\"\",R10*P10*24))","v":203.8888888888888},null,null,null,null,null,null,null,null,null,null,null,null,null,null,null,null,null,null,null,null,null,1]
[null,{"$f":"IF(שעות_עבודה7[[#This Row],[תאריך]]=\"\",\"\",ROW(A3))","v":3},"2024-01-07","המאיר לדרים","08:49:37","13:51:15",null,null,{"$f":"IFERROR(IF(שעות_עבודה7[[#This Row],[סיום]]=\"\",\"\",שעות_עבודה7[[#This Row],[סיום]]-שעות_עבודה7[[#This Row],[התחלה]]+שעות_עבודה7[[#This Row],[הוספת שעות]]-שעות_עבודה7[[#This Row],[הפחתת שעות]]+(שעות_עבודה7[[#This Row],[סיום]]<שעות_עבודה7[[#This Row],[התחלה]])),\"\")","v":0.20946759259259257},{"$f":"IF(שעות_עבודה7[[#This Row],[שעות]]=\"\",\"\",\nIF(SUMPRODUCT((שעות_עבודה7[[#This Row],[שם העבודה]]=$N$9:$O$28)*שעות_עבודה7[[#This Row],[שעות]]*($P$9:$Q$28*24))=0,\"\",\nSUMPRODUCT((שעות_עבודה7[[#This Row],[שם העבודה]]=$N$9:$O$28)*שעות_עבודה7[[#This Row],[שעות]]*($P$9:$Q$28*24))))","v":301.63333333333327},null,null,null,"חיים של תורה",null,70,null,{"$f":"IF(N11=\"\",\"\",\nIFERROR(IF(SUMIFS(שעות_עבודה7[שעות],שעות_עבודה7[שם העבודה],N11)=0,\"\",SUMIFS(שעות_עבודה7[שעות],שעות_עבודה7[שם העבודה],N11)),\"\"))","v":9.3761574074074122E-2},157.51944444444453,null,null,null,null,null,null,null,null,null,null,null,null,null,null,null,null,null,null,null,null,null,"עבודה נבחרת"]
[null,{"$f":"IF(שעות_עבודה7[[#This Row],[תאריך]]=\"\",\"\",ROW(A4))","v":4},"2024-01-07","העורך התורני","14:00:38","15:20:18","02:45:00",null,{"$f":"IFERROR(IF(שעות_עבודה7[[#This Row],[סיום]]=\"\",\"\",שעות_עבודה7[[#This Row],[סיום]]-שעות_עבודה7[[#This Row],[התחלה]]+שעות_עבודה7[[#This Row],[הוספת שעות]]-שעות_עבודה7[[#This Row],[הפחתת שעות]]+(שעות_עבודה7[[#This Row],[סיום]]<שעות_עבודה7[[#This Row],[התחלה]])),\"\")","v":0.16990740740740734},{"$f":"IF(שעות_עבודה7[[#This Row],[שעות]]=\"\",\"\",\nIF(SUMPRODUCT((שעות_עבודה7[[#This Row],[שם העבודה]]=$N$9:$O$28)*שעות_עבודה7[[#This Row],[שעות]]*($P$9:$Q$28*24))=0,\"\",\nSUMPRODUCT((שעות_עבודה7[[#This Row],[שם העבודה]]=$N$9:$O$28)*שעות_עבודה7[[#This Row],[שעות]]*($P$9:$Q$28*24))))","v":203.8888888888888},null,null,null,"המאיר לדרים",null,60,50,{"$f":"IF(N12=\"\",\"\",\nIFERROR(IF(SUMIFS(שעות_עבודה7[שעות],שעות_עבודה7[שם העבודה],N12)=0,\"\",SUMIFS(שעות_עבודה7[שעות],שעות_עבודה7[שם העבודה],N12)),\"\"))","v":0.20946759259259257},301.63333333333333,null,null,null,null,null,null,null,null,null,null,null,null,null,null,null,null,null,null,null,null,null,2]
[null,{"$f":"IF(שעות_עבודה7[[#This Row],[תאריך]]=\"\",\"\",ROW(A5))","v":""},null,null,null,null,null,null,{"$f":"IFERROR(IF(שעות_עבודה7[[#This Row],[סיום]]=\"\",\"\",שעות_עבודה7[[#This Row],[סיום]]-שעות_עבודה7[[#This Row],[התחלה]]+שעות_עבודה7[[#This Row],[הוספת שעות]]-שעות_עבודה7[[#This Row],[הפחתת שעות]]+(שעות_עבודה7[[#This Row],[סיום]]<שעות_עבודה7[[#This Row],[התחלה]])),\"\")","v":""},{"$f":"IF(שעות_עבודה7[[#This Row],[שעות]]=\"\",\"\",\nIF(SUMPRODUCT((שעות_עבודה7[[#This Row],[שם העבודה]]=$N$9:$O$28)*שעות_עבודה7[[#This Row],[שעות]]*($P$9:$Q$28*24))=0,\"\",\nSUMPRODUCT((שעות_עבודה7[[#This Row],[שם העבודה]]=$N$9:$O$28)*שעות_עבודה7[[#This Row],[שעות]]*($P$9:$Q$28*24))))","v":""},null,null,null,"עריכת מהדו\"ת",null,110,null,{"$f":"IF(N13=\"\",\"\",\nIFERROR(IF(SUMIFS(שעות_עבודה7[שעות],שעות_עבודה7[שם העבודה],N13)=0,\"\",SUMIFS(שעות_עבודה7[שעות],שעות_עבודה7[שם העבודה],N13)),\"\"))","v":""},"",null,null,null,null,null,null,null,null,null,null,null,null,null,null,null,null,null,null,null,null,null,"שם עבודה נבחרת"]
[null,{"$f":"IF(שעות_עבודה7[[#This Row],[תאריך]]=\"\",\"\",ROW(A6))","v":""},null,null,null,null,null,null,{"$f":"IFERROR(IF(שעות_עבודה7[[#This Row],[סיום]]=\"\",\"\",שעות_עבודה7[[#This Row],[סיום]]-שעות_עבודה7[[#This Row],[התחלה]]+שעות_עבודה7[[#This Row],[הוספת שעות]]-שעות_עבודה7[[#This Row],[הפחתת שעות]]+(שעות_עבודה7[[#This Row],[סיום]]<שעות_עבודה7[[#This Row],[התחלה]])),\"\")","v":""},{"$f":"IF(שעות_עבודה7[[#This Row],[שעות]]=\"\",\"\",\nIF(SUMPRODUCT((שעות_עבודה7[[#This Row],[שם העבודה]]=$N$9:$O$28)*שעות_עבודה7[[#This Row],[שעות]]*($P$9:$Q$28*24))=0,\"\",\nSUMPRODUCT((שעות_עבודה7[[#This Row],[שם העבודה]]=$N$9:$O$28)*שעות_עבודה7[[#This Row],[שעות]]*($P$9:$Q$28*24))))","v":""},null,null,null,"עיון במקורות",null,70,50,{"$f":"IF(N14=\"\",\"\",\nIFERROR(IF(SUMIFS(שעות_עבודה7[שעות],שעות_עבודה7[שם העבודה],N14)=0,\"\",SUMIFS(שעות_עבודה7[שעות],שעות_עבודה7[שם העבודה],N14)),\"\"))","v":""},"",null,null,null,null,null,null,null,null,null,null,null,null,null,null,null,null,null,null,null,null,null,{"$f":"INDEX('טיימר עבודות'!$N$9:$N$28,AO12)","v":"העורך התורני"}]
[null,{"$f":"IF(שעות_עבודה7[[#This Row],[תאריך]]=\"\",\"\",ROW(A7))","v":""},null,null,null,null,null,null,{"$f":"IFERROR(IF(שעות_עבודה7[[#This Row],[סיום]]=\"\",\"\",שעות_עבודה7[[#This Row],[סיום]]-שעות_עבודה7[[#This Row],[התחלה]]+שעות_עבודה7[[#This Row],[הוספת שעות]]-שעות_עבודה7[[#This Row],[הפחתת שעות]]+(שעות_עבודה7[[#This Row],[סיום]]<שעות_עבודה7[[#This Row],[התחלה]])),\"\")","v":""},{"$f":"IF(שעות_עבודה7[[#This Row],[שעות]]=\"\",\"\",\nIF(SUMPRODUCT((שעות_עבודה7[[#This Row],[שם העבודה]]=$N$9:$O$28)*שעות_עבודה7[[#This Row],[שעות]]*($P$9:$Q$28*24))=0,\"\",\nSUMPRODUCT((שעות_עבודה7[[#This Row],[שם העבודה]]=$N$9:$O$28)*שעות_עבודה7[[#This Row],[שעות]]*($P$9:$Q$28*24))))","v":""},null,null,null,null,null,null,null,{"$f":"IF(N15=\"\",\"\",\nIFERROR(IF(SUMIFS(שעות_עבודה7[שעות],שעות_עבודה7[שם העבודה],N15)=0,\"\",SUMIFS(שעות_עבודה7[שעות],שעות_עבודה7[שם העבודה],N15)),\"\"))","v":""},"",null,null,null,null,null,null,null,null,null,null,null,null,null,null,null,null,null,null,null,null,null,"שכר לעבודה נבחרת"]
[null,{"$f":"IF(שעות_עבודה7[[#This Row],[תאריך]]=\"\",\"\",ROW(A8))","v":""},null,null,null,null,null,null,{"$f":"IFERROR(IF(שעות_עבודה7[[#This Row],[סיום]]=\"\",\"\",שעות_עבודה7[[#This Row],[סיום]]-שעות_עבודה7[[#This Row],[התחלה]]+שעות_עבודה7[[#This Row],[הוספת שעות]]-שעות_עבודה7[[#This Row],[הפחתת שעות]]+(שעות_עבודה7[[#This Row],[סיום]]<שעות_עבודה7[[#This Row],[התחלה]])),\"\")","v":""},{"$f":"IF(שעות_עבודה7[[#This Row],[שעות]]=\"\",\"\",\nIF(SUMPRODUCT((שעות_עבודה7[[#This Row],[שם העבודה]]=$N$9:$O$28)*שעות_עבודה7[[#This Row],[שעות]]*($P$9:$Q$28*24))=0,\"\",\nSUMPRODUCT((שעות_עבודה7[[#This Row],[שם העבודה]]=$N$9:$O$28)*שעות_עבודה7[[#This Row],[שעות]]*($P$9:$Q$28*24))))","v":""},null,null,null,null,null,null,null,{"$f":"IF(N16=\"\",\"\",\nIFERROR(IF(SUMIFS(שעות_עבודה7[שעות],שעות_עבודה7[שם העבודה],N16)=0,\"\",SUMIFS(שעות_עבודה7[שעות],שעות_עבודה7[שם העבודה],N16)),\"\"))","v":""},"",null,null,null,null,null,null,null,null,null,null,null,null,null,null,null,null,null,null,null,null,null,{"$f":"VLOOKUP(שם_העבודה,'טיימר עבודות'!$N$9:$S$28,3)","v":50}]
[null,{"$f":"IF(שעות_עבודה7[[#This Row],[תאריך]]=\"\",\"\",ROW(A9))","v":""},null,null,null,null,null,null,{"$f":"IFERROR(IF(שעות_עבודה7[[#This Row],[סיום]]=\"\",\"\",שעות_עבודה7[[#This Row],[סיום]]-שעות_עבודה7[[#This Row],[התחלה]]+שעות_עבודה7[[#This Row],[הוספת שעות]]-שעות_עבודה7[[#This Row],[הפחתת שעות]]+(שעות_עבודה7[[#This Row],[סיום]]<שעות_עבודה7[[#This Row],[התחלה]])),\"\")","v":""},{"$f":"IF(שעות_עבודה7[[#This Row],[שעות]]=\"\",\"\",\nIF(SUMPRODUCT((שעות_עבודה7[[#This Row],[שם העבודה]]=$N$9:$O$28)*שעות_עבודה7[[#This Row],[שעות]]*($P$9:$Q$28*24))=0,\"\",\nSUMPRODUCT((שעות_עבודה7[[#This Row],[שם העבודה]]=$N$9:$O$28)*שעות_עבודה7[[#This Row],[שעות]]*($P$9:$Q$28*24))))","v":""},null,null,null,null,null,null,null,{"$f":"IF(N17=\"\",\"\",\nIFERROR(IF(SUMIFS(שעות_עבודה7[שעות],שעות_עבודה7[שם העבודה],N17)=0,\"\",SUMIFS(שעות_עבודה7[שעות],שעות_עבודה7[שם העבודה],N17)),\"\"))","v":""},"",null,null,null,null,null,null,null,null,null,null,null,null,null,null,null,null,null,null,null,null,null,"סימנים"]
[null,{"$f":"IF(שעות_עבודה7[[#This Row],[תאריך]]=\"\",\"\",ROW(A10))","v":""},null,null,null,null,null,null,{"$f":"IFERROR(IF(שעות_עבודה7[[#This Row],[סיום]]=\"\",\"\",שעות_עבודה7[[#This Row],[סיום]]-שעות_עבודה7[[#This Row],[התחלה]]+שעות_עבודה7[[#This Row],[הוספת שעות]]-שעות_עבודה7[[#This Row],[הפחתת שעות]]+(שעות_עבודה7[[#This Row],[סיום]]<שעות_עבודה7[[#This Row],[התחלה]])),\"\")","v":""},{"$f":"IF(שעות_עבודה7[[#This Row],[שעות]]=\"\",\"\",\nIF(SUMPRODUCT((שעות_עבודה7[[#This Row],[שם העבודה]]=$N$9:$O$28)*שעות_עבודה7[[#This Row],[שעות]]*($P$9:$Q$28*24))=0,\"\",\nSUMPRODUCT((שעות_עבודה7[[#This Row],[שם העבודה]]=$N$9:$O$28)*שעות_עבודה7[[#This Row],[שעות]]*($P$9:$Q$28*24))))","v":""},null,null,null,null,null,null,null,{"$f":"IF(N18=\"\",\"\",\nIFERROR(IF(SUMIFS(שעות_עבודה7[שעות],שעות_עבודה7[שם העבודה],N18)=0,\"\",SUMIFS(שעות_עבודה7[שעות],שעות_עבודה7[שם העבודה],N18)),\"\"))","v":""},"",null,null,null,null,null,null,null,null,null,null,null,null,null,null,null,null,null,null,null,null,null,"ü"]
[null,{"$f":"IF(שעות_עבודה7[[#This Row],[תאריך]]=\"\",\"\",ROW(A11))","v":""},null,null,null,null,null,null,{"$f":"IFERROR(IF(שעות_עבודה7[[#This Row],[סיום]]=\"\",\"\",שעות_עבודה7[[#This Row],[סיום]]-שעות_עבודה7[[#This Row],[התחלה]]+שעות_עבודה7[[#This Row],[הוספת שעות]]-שעות_עבודה7[[#This Row],[הפחתת שעות]]+(שעות_עבודה7[[#This Row],[סיום]]<שעות_עבודה7[[#This Row],[התחלה]])),\"\")","v":""},{"$f":"IF(שעות_עבודה7[[#This Row],[שעות]]=\"\",\"\",\nIF(SUMPRODUCT((שעות_עבודה7[[#This Row],[שם העבודה]]=$N$9:$O$28)*שעות_עבודה7[[#This Row],[שעות]]*($P$9:$Q$28*24))=0,\"\",\nSUMPRODUCT((שעות_עבודה7[[#This Row],[שם העבודה]]=$N$9:$O$28)*שעות_עבודה7[[#This Row],[שעות]]*($P$9:$Q$28*24))))","v":""},null,null,null,null,null,null,null,{"$f":"IF(N19=\"\",\"\",\nIFERROR(IF(SUMIFS(שעות_עבודה7[שעות],שעות_עבודה7[שם העבודה],N19)=0,\"\",SUMIFS(שעות_עבודה7[שעות],שעות_עבודה7[שם העבודה],N19)),\"\"))","v":""},"",null,null,null,null,null,null,null,null,null,null,null,null,null,null,null,null,null,null,null,null,null,"û"]
[null,{"$f":"IF(שעות_עבודה7[[#This Row],[תאריך]]=\"\",\"\",ROW(A12))","v":""},null,null,null,null,null,null,{"$f":"IFERROR(IF(שעות_עבודה7[[#This Row],[סיום]]=\"\",\"\",שעות_עבודה7[[#This Row],[סיום]]-שעות_עבודה7[[#This Row],[התחלה]]+שעות_עבודה7[[#This Row],[הוספת שעות]]-שעות_עבודה7[[#This Row],[הפחתת שעות]]+(שעות_עבודה7[[#This Row],[סיום]]<שעות_עבודה7[[#This Row],[התחלה]])),\"\")","v":""},{"$f":"IF(שעות_עבודה7[[#This Row],[שעות]]=\"\",\"\",\nIF(SUMPRODUCT((שעות_עבודה7[[#This Row],[שם העבודה]]=$N$9:$O$28)*שעות_עבודה7[[#This Row],[שעות]]*($P$9:$Q$28*24))=0,\"\",\nSUMPRODUCT((שעות_עבודה7[[#This Row],[שם העבודה]]=$N$9:$O$28)*שעות_עבודה7[[#This Row],[שעות]]*($P$9:$Q$28*24))))","v":""},null,null,null,null,null,null,null,{"$f":"IF(N20=\"\",\"\",\nIFERROR(IF(SUMIFS(שעות_עבודה7[שעות],שעות_עבודה7[שם העבודה],N20)=0,\"\",SUMIFS(שעות_עבודה7[שעות],שעות_עבודה7[שם העבודה],N20)),\"\"))","v":""},"",null,null,null,null,null,null,null,null,null,null,null,null,null,null,null,null,null,null,null,null,null,"הקלקה כפולה"]
[null,{"$f":"IF(שעות_עבודה7[[#This Row],[תאריך]]=\"\",\"\",ROW(A13))","v":""},null,null,null,null,null,null,{"$f":"IFERROR(IF(שעות_עבודה7[[#This Row],[סיום]]=\"\",\"\",שעות_עבודה7[[#This Row],[סיום]]-שעות_עבודה7[[#This Row],[התחלה]]+שעות_עבודה7[[#This Row],[הוספת שעות]]-שעות_עבודה7[[#This Row],[הפחתת שעות]]+(שעות_עבודה7[[#This Row],[סיום]]<שעות_עבודה7[[#This Row],[התחלה]])),\"\")","v":""},{"$f":"IF(שעות_עבודה7[[#This Row],[שעות]]=\"\",\"\",\nIF(SUMPRODUCT((שעות_עבודה7[[#This Row],[שם העבודה]]=$N$9:$O$28)*שעות_עבודה7[[#This Row],[שעות]]*($P$9:$Q$28*24))=0,\"\",\nSUMPRODUCT((שעות_עבודה7[[#This Row],[שם העבודה]]=$N$9:$O$28)*שעות_עבודה7[[#This Row],[שעות]]*($P$9:$Q$28*24))))","v":""},null,null,null,null,null,null,null,{"$f":"IF(N21=\"\",\"\",\nIFERROR(IF(SUMIFS(שעות_עבודה7[שעות],שעות_עבודה7[שם העבודה],N21)=0,\"\",SUMIFS(שעות_עבודה7[שעות],שעות_עבודה7[שם העבודה],N21)),\"\"))","v":""},"",null,null,null,null,null,null,null,null,null,null,null,null,null,null,null,null,null,null,null,null,null,1]
[null,{"$f":"IF(שעות_עבודה7[[#This Row],[תאריך]]=\"\",\"\",ROW(A14))","v":""},null,null,null,null,null,null,{"$f":"IFERROR(IF(שעות_עבודה7[[#This Row],[סיום]]=\"\",\"\",שעות_עבודה7[[#This Row],[סיום]]-שעות_עבודה7[[#This Row],[התחלה]]+שעות_עבודה7[[#This Row],[הוספת שעות]]-שעות_עבודה7[[#This Row],[הפחתת שעות]]+(שעות_עבודה7[[#This Row],[סיום]]<שעות_עבודה7[[#This Row],[התחלה]])),\"\")","v":""},{"$f":"IF(שעות_עבודה7[[#This Row],[שעות]]=\"\",\"\",\nIF(SUMPRODUCT((שעות_עבודה7[[#This Row],[שם העבודה]]=$N$9:$O$28)*שעות_עבודה7[[#This Row],[שעות]]*($P$9:$Q$28*24))=0,\"\",\nSUMPRODUCT((שעות_עבודה7[[#This Row],[שם העבודה]]=$N$9:$O$28)*שעות_עבודה7[[#This Row],[שעות]]*($P$9:$Q$28*24))))","v":""},null,null,null,null,null,null,null,{"$f":"IF(N22=\"\",\"\",\nIFERROR(IF(SUMIFS(שעות_עבודה7[שעות],שעות_עבודה7[שם העבודה],N22)=0,\"\",SUMIFS(שעות_עבודה7[שעות],שעות_עבודה7[שם העבודה],N22)),\"\"))","v":""},""]
[null,{"$f":"IF(שעות_עבודה7[[#This Row],[תאריך]]=\"\",\"\",ROW(A15))","v":""},null,null,null,null,null,null,{"$f":"IFERROR(IF(שעות_עבודה7[[#This Row],[סיום]]=\"\",\"\",שעות_עבודה7[[#This Row],[סיום]]-שעות_עבודה7[[#This Row],[התחלה]]+שעות_עבודה7[[#This Row],[הוספת שעות]]-שעות_עבודה7[[#This Row],[הפחתת שעות]]+(שעות_עבודה7[[#This Row],[סיום]]<שעות_עבודה7[[#This Row],[התחלה]])),\"\")","v":""},{"$f":"IF(שעות_עבודה7[[#This Row],[שעות]]=\"\",\"\",\nIF(SUMPRODUCT((שעות_עבודה7[[#This Row],[שם העבודה]]=$N$9:$O$28)*שעות_עבודה7[[#This Row],[שעות]]*($P$9:$Q$28*24))=0,\"\",\nSUMPRODUCT((שעות_עבודה7[[#This Row],[שם העבודה]]=$N$9:$O$28)*שעות_עבודה7[[#This Row],[שעות]]*($P$9:$Q$28*24))))","v":""},null,null,null,null,null,null,null,{"$f":"IF(N23=\"\",\"\",\nIFERROR(IF(SUMIFS(שעות_עבודה7[שעות],שעות_עבודה7[שם העבודה],N23)=0,\"\",SUMIFS(שעות_עבודה7[שעות],שעות_עבודה7[שם העבודה],N23)),\"\"))","v":""},""]
[null,{"$f":"IF(שעות_עבודה7[[#This Row],[תאריך]]=\"\",\"\",ROW(A16))","v":""},null,null,null,null,null,null,{"$f":"IFERROR(IF(שעות_עבודה7[[#This Row],[סיום]]=\"\",\"\",שעות_עבודה7[[#This Row],[סיום]]-שעות_עבודה7[[#This Row],[התחלה]]+שעות_עבודה7[[#This Row],[הוספת שעות]]-שעות_עבודה7[[#This Row],[הפחתת שעות]]+(שעות_עבודה7[[#This Row],[סיום]]<שעות_עבודה7[[#This Row],[התחלה]])),\"\")","v":""},{"$f":"IF(שעות_עבודה7[[#This Row],[שעות]]=\"\",\"\",\nIF(SUMPRODUCT((שעות_עבודה7[[#This Row],[שם העבודה]]=$N$9:$O$28)*שעות_עבודה7[[#This Row],[שעות]]*($P$9:$Q$28*24))=0,\"\",\nSUMPRODUCT((שעות_עבודה7[[#This Row],[שם העבודה]]=$N$9:$O$28)*שעות_עבודה7[[#This Row],[שעות]]*($P$9:$Q$28*24))))","v":""},null,null,null,null,null,null,null,{"$f":"IF(N24=\"\",\"\",\nIFERROR(IF(SUMIFS(שעות_עבודה7[שעות],שעות_עבודה7[שם העבודה],N24)=0,\"\",SUMIFS(שעות_עבודה7[שעות],שעות_עבודה7[שם העבודה],N24)),\"\"))","v":""},""]
[null,{"$f":"IF(שעות_עבודה7[[#This Row],[תאריך]]=\"\",\"\",ROW(A17))","v":""},null,null,null,null,null,null,{"$f":"IFERROR(IF(שעות_עבודה7[[#This Row],[סיום]]=\"\",\"\",שעות_עבודה7[[#This Row],[סיום]]-שעות_עבודה7[[#This Row],[התחלה]]+שעות_עבודה7[[#This Row],[הוספת שעות]]-שעות_עבודה7[[#This Row],[הפחתת שעות]]+(שעות_עבודה7[[#This Row],[סיום]]<שעות_עבודה7[[#This Row],[התחלה]])),\"\")","v":""},{"$f":"IF(שעות_עבודה7[[#This Row],[שעות]]=\"\",\"\",\nIF(SUMPRODUCT((שעות_עבודה7[[#This Row],[שם העבודה]]=$N$9:$O$28)*שעות_עבודה7[[#This Row],[שעות]]*($P$9:$Q$28*24))=0,\"\",\nSUMPRODUCT((שעות_עבודה7[[#This Row],[שם העבודה]]=$N$9:$O$28)*שעות_עבודה7[[#This Row],[שעות]]*($P$9:$Q$28*24))))","v":""},null,null,null,null,null,null,null,{"$f":"IF(N25=\"\",\"\",\nIFERROR(IF(SUMIFS(שעות_עבודה7[שעות],שעות_עבודה7[שם העבודה],N25)=0,\"\",SUMIFS(שעות_עבודה7[שעות],שעות_עבודה7[שם העבודה],N25)),\"\"))","v":""},""]
[null,{"$f":"IF(שעות_עבודה7[[#This Row],[תאריך]]=\"\",\"\",ROW(A18))","v":""},null,null,null,null,null,null,{"$f":"IFERROR(IF(שעות_עבודה7[[#This Row],[סיום]]=\"\",\"\",שעות_עבודה7[[#This Row],[סיום]]-שעות_עבודה7[[#This Row],[התחלה]]+שעות_עבודה7[[#This Row],[הוספת שעות]]-שעות_עבודה7[[#This Row],[הפחתת שעות]]+(שעות_עבודה7[[#This Row],[סיום]]<שעות_עבודה7[[#This Row],[התחלה]])),\"\")","v":""},{"$f":"IF(שעות_עבודה7[[#This Row],[שעות]]=\"\",\"\",\nIF(SUMPRODUCT((שעות_עבודה7[[#This Row],[שם העבודה]]=$N$9:$O$28)*שעות_עבודה7[[#This Row],[שעות]]*($P$9:$Q$28*24))=0,\"\",\nSUMPRODUCT((שעות_עבודה7[[#This Row],[שם העבודה]]=$N$9:$O$28)*שעות_עבודה7[[#This Row],[שעות]]*($P$9:$Q$28*24))))","v":""},null,null,null,null,null,null,null,{"$f":"IF(N26=\"\",\"\",\nIFERROR(IF(SUMIFS(שעות_עבודה7[שעות],שעות_עבודה7[שם העבודה],N26)=0,\"\",SUMIFS(שעות_עבודה7[שעות],שעות_עבודה7[שם העבודה],N26)),\"\"))","v":""},""]
[null,{"$f":"IF(שעות_עבודה7[[#This Row],[תאריך]]=\"\",\"\",ROW(A19))","v":""},null,null,null,null,null,null,{"$f":"IFERROR(IF(שעות_עבודה7[[#This Row],[סיום]]=\"\",\"\",שעות_עבודה7[[#This Row],[סיום]]-שעות_עבודה7[[#This Row],[התחלה]]+שעות_עבודה7[[#This Row],[הוספת שעות]]-שעות_עבודה7[[#This Row],[הפחתת שעות]]+(שעות_עבודה7[[#This Row],[סיום]]<שעות_עבודה7[[#This Row],[התחלה]])),\"\")","v":""},{"$f":"IF(שעות_עבודה7[[#This Row],[שעות]]=\"\",\"\",\nIF(SUMPRODUCT((שעות_עבודה7[[#This Row],[שם העבודה]]=$N$9:$O$28)*שעות_עבודה7[[#This Row],[שעות]]*($P$9:$Q$28*24))=0,\"\",\nSUMPRODUCT((שעות_עבודה7[[#This Row],[שם העבודה]]=$N$9:$O$28)*שעות_עבודה7[[#This Row],[שעות]]*($P$9:$Q$28*24))))","v":""},null,null,null,null,null,null,null,{"$f":"IF(N27=\"\",\"\",\nIFERROR(IF(SUMIFS(שעות_עבודה7[שעות],שעות_עבודה7[שם העבודה],N27)=0,\"\",SUMIFS(שעות_עבודה7[שעות],שעות_עבודה7[שם העבודה],N27)),\"\"))","v":""},""]
[null,{"$f":"IF(שעות_עבודה7[[#This Row],[תאריך]]=\"\",\"\",ROW(A20))","v":""},null,null,null,null,null,null,{"$f":"IFERROR(IF(שעות_עבודה7[[#This Row],[סיום]]=\"\",\"\",שעות_עבודה7[[#This Row],[סיום]]-שעות_עבודה7[[#This Row],[התחלה]]+שעות_עבודה7[[#This Row],[הוספת שעות]]-שעות_עבודה7[[#This Row],[הפחתת שעות]]+(שעות_עבודה7[[#This Row],[סיום]]<שעות_עבודה7[[#This Row],[התחלה]])),\"\")","v":""},{"$f":"IF(שעות_עבודה7[[#This Row],[שעות]]=\"\",\"\",\nIF(SUMPRODUCT((שעות_עבודה7[[#This Row],[שם העבודה]]=$N$9:$O$28)*שעות_עבודה7[[#This Row],[שעות]]*($P$9:$Q$28*24))=0,\"\",\nSUMPRODUCT((שעות_עבודה7[[#This Row],[שם העבודה]]=$N$9:$O$28)*שעות_עבודה7[[#This Row],[שעות]]*($P$9:$Q$28*24))))","v":""},null,null,null,null,null,null,null,{"$f":"IF(N28=\"\",\"\",\nIFERROR(IF(SUMIFS(שעות_עבודה7[שעות],שעות_עבודה7[שם העבודה],N28)=0,\"\",SUMIFS(שעות_עבודה7[שעות],שעות_עבודה7[שם העבודה],N28)),\"\"))","v":""},""]
[null,{"$f":"IF(שעות_עבודה7[[#This Row],[תאריך]]=\"\",\"\",ROW(A21))","v":""},null,null,null,null,null,null,{"$f":"IFERROR(IF(שעות_עבודה7[[#This Row],[סיום]]=\"\",\"\",שעות_עבודה7[[#This Row],[סיום]]-שעות_עבודה7[[#This Row],[התחלה]]+שעות_עבודה7[[#This Row],[הוספת שעות]]-שעות_עבודה7[[#This Row],[הפחתת שעות]]+(שעות_עבודה7[[#This Row],[סיום]]<שעות_עבודה7[[#This Row],[התחלה]])),\"\")","v":""},{"$f":"IF(שעות_עבודה7[[#This Row],[שעות]]=\"\",\"\",\nIF(SUMPRODUCT((שעות_עבודה7[[#This Row],[שם העבודה]]=$N$9:$O$28)*שעות_עבודה7[[#This Row],[שעות]]*($P$9:$Q$28*24))=0,\"\",\nSUMPRODUCT((שעות_עבודה7[[#This Row],[שם העבודה]]=$N$9:$O$28)*שעות_עבודה7[[#This Row],[שעות]]*($P$9:$Q$28*24))))","v":""}]
[null,{"$f":"IF(שעות_עבודה7[[#This Row],[תאריך]]=\"\",\"\",ROW(A22))","v":""},null,null,null,null,null,null,{"$f":"IFERROR(IF(שעות_עבודה7[[#This Row],[סיום]]=\"\",\"\",שעות_עבודה7[[#This Row],[סיום]]-שעות_עבודה7[[#This Row],[התחלה]]+שעות_עבודה7[[#This Row],[הוספת שעות]]-שעות_עבודה7[[#This Row],[הפחתת שעות]]+(שעות_עבודה7[[#This Row],[סיום]]<שעות_עבודה7[[#This Row],[התחלה]])),\"\")","v":""},{"$f":"IF(שעות_עבודה7[[#This Row],[שעות]]=\"\",\"\",\nIF(SUMPRODUCT((שעות_עבודה7[[#This Row],[שם העבודה]]=$N$9:$O$28)*שעות_עבודה7[[#This Row],[שעות]]*($P$9:$Q$28*24))=0,\"\",\nSUMPRODUCT((שעות_עבודה7[[#This Row],[שם העבודה]]=$N$9:$O$28)*שעות_עבודה7[[#This Row],[שעות]]*($P$9:$Q$28*24))))","v":""}]
[null,{"$f":"IF(שעות_עבודה7[[#This Row],[תאריך]]=\"\",\"\",ROW(A23))","v":""},null,null,null,null,null,null,{"$f":"IFERROR(IF(שעות_עבודה7[[#This Row],[סיום]]=\"\",\"\",שעות_עבודה7[[#This Row],[סיום]]-שעות_עבודה7[[#This Row],[התחלה]]+שעות_עבודה7[[#This Row],[הוספת שעות]]-שעות_עבודה7[[#This Row],[הפחתת שעות]]+(שעות_עבודה7[[#This Row],[סיום]]<שעות_עבודה7[[#This Row],[התחלה]])),\"\")","v":""},{"$f":"IF(שעות_עבודה7[[#This Row],[שעות]]=\"\",\"\",\nIF(SUMPRODUCT((שעות_עבודה7[[#This Row],[שם העבודה]]=$N$9:$O$28)*שעות_עבודה7[[#This Row],[שעות]]*($P$9:$Q$28*24))=0,\"\",\nSUMPRODUCT((שעות_עבודה7[[#This Row],[שם העבודה]]=$N$9:$O$28)*שעות_עבודה7[[#This Row],[שעות]]*($P$9:$Q$28*24))))","v":""},null,null,null,null,null,null,null,null,"נוצר על ידי החפץ בעילו\"ש לזיכוי הרבים.\nקרדיט ל- a5092920673@gmail.com.\nעותק חופשי - סיסמא 1234"]
[null,{"$f":"IF(שעות_עבודה7[[#This Row],[תאריך]]=\"\",\"\",ROW(A24))","v":""},null,null,null,null,null,null,{"$f":"IFERROR(IF(שעות_עבודה7[[#This Row],[סיום]]=\"\",\"\",שעות_עבודה7[[#This Row],[סיום]]-שעות_עבודה7[[#This Row],[התחלה]]+שעות_עבודה7[[#This Row],[הוספת שעות]]-שעות_עבודה7[[#This Row],[הפחתת שעות]]+(שעות_עבודה7[[#This Row],[סיום]]<שעות_עבודה7[[#This Row],[התחלה]])),\"\")","v":""},{"$f":"IF(שעות_עבודה7[[#This Row],[שעות]]=\"\",\"\",\nIF(SUMPRODUCT((שעות_עבודה7[[#This Row],[שם העבודה]]=$N$9:$O$28)*שעות_עבודה7[[#This Row],[שעות]]*($P$9:$Q$28*24))=0,\"\",\nSUMPRODUCT((שעות_עבודה7[[#This Row],[שם העבודה]]=$N$9:$O$28)*שעות_עבודה7[[#This Row],[שעות]]*($P$9:$Q$28*24))))","v":""}]
[null,{"$f":"IF(שעות_עבודה7[[#This Row],[תאריך]]=\"\",\"\",ROW(A25))","v":""},null,null,null,null,null,null,{"$f":"IFERROR(IF(שעות_עבודה7[[#This Row],[סיום]]=\"\",\"\",שעות_עבודה7[[#This Row],[סיום]]-שעות_עבודה7[[#This Row],[התחלה]]+שעות_עבודה7[[#This Row],[הוספת שעות]]-שעות_עבודה7[[#This Row],[הפחתת שעות]]+(שעות_עבודה7[[#This Row],[סיום]]<שעות_עבודה7[[#This Row],[התחלה]])),\"\")","v":""},{"$f":"IF(שעות_עבודה7[[#This Row],[שעות]]=\"\",\"\",\nIF(SUMPRODUCT((שעות_עבודה7[[#This Row],[שם העבודה]]=$N$9:$O$28)*שעות_עבודה7[[#This Row],[שעות]]*($P$9:$Q$28*24))=0,\"\",\nSUMPRODUCT((שעות_עבודה7[[#This Row],[שם העבודה]]=$N$9:$O$28)*שעות_עבודה7[[#This Row],[שעות]]*($P$9:$Q$28*24))))","v":""}]
[null,{"$f":"IF(שעות_עבודה7[[#This Row],[תאריך]]=\"\",\"\",ROW(A26))","v":""},null,null,null,null,null,null,{"$f":"IFERROR(IF(שעות_עבודה7[[#This Row],[סיום]]=\"\",\"\",שעות_עבודה7[[#This Row],[סיום]]-שעות_עבודה7[[#This Row],[התחלה]]+שעות_עבודה7[[#This Row],[הוספת שעות]]-שעות_עבודה7[[#This Row],[הפחתת שעות]]+(שעות_עבודה7[[#This Row],[סיום]]<שעות_עבודה7[[#This Row],[התחלה]])),\"\")","v":""},{"$f":"IF(שעות_עבודה7[[#This Row],[שעות]]=\"\",\"\",\nIF(SUMPRODUCT((שעות_עבודה7[[#This Row],[שם העבודה]]=$N$9:$O$28)*שעות_עבודה7[[#This Row],[שעות]]*($P$9:$Q$28*24))=0,\"\",\nSUMPRODUCT((שעות_עבודה7[[#This Row],[שם העבודה]]=$N$9:$O$28)*שעות_עבודה7[[#This Row],[שעות]]*($P$9:$Q$28*24))))","v":""}]
[null,{"$f":"IF(שעות_עבודה7[[#This Row],[תאריך]]=\"\",\"\",ROW(A27))","v":""},null,null,null,null,null,null,{"$f":"IFERROR(IF(שעות_עבודה7[[#This Row],[סיום]]=\"\",\"\",שעות_עבודה7[[#This Row],[סיום]]-שעות_עבודה7[[#This Row],[התחלה]]+שעות_עבודה7[[#This Row],[הוספת שעות]]-שעות_עבודה7[[#This Row],[הפחתת שעות]]+(שעות_עבודה7[[#This Row],[סיום]]<שעות_עבודה7[[#This Row],[התחלה]])),\"\")","v":""},{"$f":"IF(שעות_עבודה7[[#This Row],[שעות]]=\"\",\"\",\nIF(SUMPRODUCT((שעות_עבודה7[[#This Row],[שם העבודה]]=$N$9:$O$28)*שעות_עבודה7[[#This Row],[שעות]]*($P$9:$Q$28*24))=0,\"\",\nSUMPRODUCT((שעות_עבודה7[[#This Row],[שם העבודה]]=$N$9:$O$28)*שעות_עבודה7[[#This Row],[שעות]]*($P$9:$Q$28*24))))","v":""}]
[null,{"$f":"IF(שעות_עבודה7[[#This Row],[תאריך]]=\"\",\"\",ROW(A28))","v":""},null,null,null,null,null,null,{"$f":"IFERROR(IF(שעות_עבודה7[[#This Row],[סיום]]=\"\",\"\",שעות_עבודה7[[#This Row],[סיום]]-שעות_עבודה7[[#This Row],[התחלה]]+שעות_עבודה7[[#This Row],[הוספת שעות]]-שעות_עבודה7[[#This Row],[הפחתת שעות]]+(שעות_עבודה7[[#This Row],[סיום]]<שעות_עבודה7[[#This Row],[התחלה]])),\"\")","v":""},{"$f":"IF(שעות_עבודה7[[#This Row],[שעות]]=\"\",\"\",\nIF(SUMPRODUCT((שעות_עבודה7[[#This Row],[שם העבודה]]=$N$9:$O$28)*שעות_עבודה7[[#This Row],[שעות]]*($P$9:$Q$28*24))=0,\"\",\nSUMPRODUCT((שעות_עבודה7[[#This Row],[שם העבודה]]=$N$9:$O$28)*שעות_עבודה7[[#This Row],[שעות]]*($P$9:$Q$28*24))))","v":""}]
[null,{"$f":"IF(שעות_עבודה7[[#This Row],[תאריך]]=\"\",\"\",ROW(A29))","v":""},null,null,null,null,null,null,{"$f":"IFERROR(IF(שעות_עבודה7[[#This Row],[סיום]]=\"\",\"\",שעות_עבודה7[[#This Row],[סיום]]-שעות_עבודה7[[#This Row],[התחלה]]+שעות_עבודה7[[#This Row],[הוספת שעות]]-שעות_עבודה7[[#This Row],[הפחתת שעות]]+(שעות_עבודה7[[#This Row],[סיום]]<שעות_עבודה7[[#This Row],[התחלה]])),\"\")","v":""},{"$f":"IF(שעות_עבודה7[[#This Row],[שעות]]=\"\",\"\",\nIF(SUMPRODUCT((שעות_עבודה7[[#This Row],[שם העבודה]]=$N$9:$O$28)*שעות_עבודה7[[#This Row],[שעות]]*($P$9:$Q$28*24))=0,\"\",\nSUMPRODUCT((שעות_עבודה7[[#This Row],[שם העבודה]]=$N$9:$O$28)*שעות_עבודה7[[#This Row],[שעות]]*($P$9:$Q$28*24))))","v":""}]
[null,{"$f":"IF(שעות_עבודה7[[#This Row],[תאריך]]=\"\",\"\",ROW(A30))","v":""},null,null,null,null,null,null,{"$f":"IFERROR(IF(שעות_עבודה7[[#This Row],[סיום]]=\"\",\"\",שעות_עבודה7[[#This Row],[סיום]]-שעות_עבודה7[[#This Row],[התחלה]]+שעות_עבודה7[[#This Row],[הוספת שעות]]-שעות_עבודה7[[#This Row],[הפחתת שעות]]+(שעות_עבודה7[[#This Row],[סיום]]<שעות_עבודה7[[#This Row],[התחלה]])),\"\")","v":""},{"$f":"IF(שעות_עבודה7[[#This Row],[שעות]]=\"\",\"\",\nIF(SUMPRODUCT((שעות_עבודה7[[#This Row],[שם העבודה]]=$N$9:$O$28)*שעות_עבודה7[[#This Row],[שעות]]*($P$9:$Q$28*24))=0,\"\",\nSUMPRODUCT((שעות_עבודה7[[#This Row],[שם העבודה]]=$N$9:$O$28)*שעות_עבודה7[[#This Row],[שעות]]*($P$9:$Q$28*24))))","v":""}]
[null,{"$f":"IF(שעות_עבודה7[[#This Row],[תאריך]]=\"\",\"\",ROW(A31))","v":""},null,null,null,null,null,null,{"$f":"IFERROR(IF(שעות_עבודה7[[#This Row],[סיום]]=\"\",\"\",שעות_עבודה7[[#This Row],[סיום]]-שעות_עבודה7[[#This Row],[התחלה]]+שעות_עבודה7[[#This Row],[הוספת שעות]]-שעות_עבודה7[[#This Row],[הפחתת שעות]]+(שעות_עבודה7[[#This Row],[סיום]]<שעות_עבודה7[[#This Row],[התחלה]])),\"\")","v":""},{"$f":"IF(שעות_עבודה7[[#This Row],[שעות]]=\"\",\"\",\nIF(SUMPRODUCT((שעות_עבודה7[[#This Row],[שם העבודה]]=$N$9:$O$28)*שעות_עבודה7[[#This Row],[שעות]]*($P$9:$Q$28*24))=0,\"\",\nSUMPRODUCT((שעות_עבודה7[[#This Row],[שם העבודה]]=$N$9:$O$28)*שעות_עבודה7[[#This Row],[שעות]]*($P$9:$Q$28*24))))","v":""}]
[null,{"$f":"IF(שעות_עבודה7[[#This Row],[תאריך]]=\"\",\"\",ROW(A32))","v":""},null,null,null,null,null,null,{"$f":"IFERROR(IF(שעות_עבודה7[[#This Row],[סיום]]=\"\",\"\",שעות_עבודה7[[#This Row],[סיום]]-שעות_עבודה7[[#This Row],[התחלה]]+שעות_עבודה7[[#This Row],[הוספת שעות]]-שעות_עבודה7[[#This Row],[הפחתת שעות]]+(שעות_עבודה7[[#This Row],[סיום]]<שעות_עבודה7[[#This Row],[התחלה]])),\"\")","v":""},{"$f":"IF(שעות_עבודה7[[#This Row],[שעות]]=\"\",\"\",\nIF(SUMPRODUCT((שעות_עבודה7[[#This Row],[שם העבודה]]=$N$9:$O$28)*שעות_עבודה7[[#This Row],[שעות]]*($P$9:$Q$28*24))=0,\"\",\nSUMPRODUCT((שעות_עבודה7[[#This Row],[שם העבודה]]=$N$9:$O$28)*שעות_עבודה7[[#This Row],[שעות]]*($P$9:$Q$28*24))))","v":""}]
[null,{"$f":"IF(שעות_עבודה7[[#This Row],[תאריך]]=\"\",\"\",ROW(A33))","v":""},null,null,null,null,null,null,{"$f":"IFERROR(IF(שעות_עבודה7[[#This Row],[סיום]]=\"\",\"\",שעות_עבודה7[[#This Row],[סיום]]-שעות_עבודה7[[#This Row],[התחלה]]+שעות_עבודה7[[#This Row],[הוספת שעות]]-שעות_עבודה7[[#This Row],[הפחתת שעות]]+(שעות_עבודה7[[#This Row],[סיום]]<שעות_עבודה7[[#This Row],[התחלה]])),\"\")","v":""},{"$f":"IF(שעות_עבודה7[[#This Row],[שעות]]=\"\",\"\",\nIF(SUMPRODUCT((שעות_עבודה7[[#This Row],[שם העבודה]]=$N$9:$O$28)*שעות_עבודה7[[#This Row],[שעות]]*($P$9:$Q$28*24))=0,\"\",\nSUMPRODUCT((שעות_עבודה7[[#This Row],[שם העבודה]]=$N$9:$O$28)*שעות_עבודה7[[#This Row],[שעות]]*($P$9:$Q$28*24))))","v":""}]
[null,{"$f":"IF(שעות_עבודה7[[#This Row],[תאריך]]=\"\",\"\",ROW(A34))","v":""},null,null,null,null,null,null,{"$f":"IFERROR(IF(שעות_עבודה7[[#This Row],[סיום]]=\"\",\"\",שעות_עבודה7[[#This Row],[סיום]]-שעות_עבודה7[[#This Row],[התחלה]]+שעות_עבודה7[[#This Row],[הוספת שעות]]-שעות_עבודה7[[#This Row],[הפחתת שעות]]+(שעות_עבודה7[[#This Row],[סיום]]<שעות_עבודה7[[#This Row],[התחלה]])),\"\")","v":""},{"$f":"IF(שעות_עבודה7[[#This Row],[שעות]]=\"\",\"\",\nIF(SUMPRODUCT((שעות_עבודה7[[#This Row],[שם העבודה]]=$N$9:$O$28)*שעות_עבודה7[[#This Row],[שעות]]*($P$9:$Q$28*24))=0,\"\",\nSUMPRODUCT((שעות_עבודה7[[#This Row],[שם העבודה]]=$N$9:$O$28)*שעות_עבודה7[[#This Row],[שעות]]*($P$9:$Q$28*24))))","v":""}]
[null,{"$f":"IF(שעות_עבודה7[[#This Row],[תאריך]]=\"\",\"\",ROW(A35))","v":""},null,null,null,null,null,null,{"$f":"IFERROR(IF(שעות_עבודה7[[#This Row],[סיום]]=\"\",\"\",שעות_עבודה7[[#This Row],[סיום]]-שעות_עבודה7[[#This Row],[התחלה]]+שעות_עבודה7[[#This Row],[הוספת שעות]]-שעות_עבודה7[[#This Row],[הפחתת שעות]]+(שעות_עבודה7[[#This Row],[סיום]]<שעות_עבודה7[[#This Row],[התחלה]])),\"\")","v":""},{"$f":"IF(שעות_עבודה7[[#This Row],[שעות]]=\"\",\"\",\nIF(SUMPRODUCT((שעות_עבודה7[[#This Row],[שם העבודה]]=$N$9:$O$28)*שעות_עבודה7[[#This Row],[שעות]]*($P$9:$Q$28*24))=0,\"\",\nSUMPRODUCT((שעות_עבודה7[[#This Row],[שם העבודה]]=$N$9:$O$28)*שעות_עבודה7[[#This Row],[שעות]]*($P$9:$Q$28*24))))","v":""}]
[null,{"$f":"IF(שעות_עבודה7[[#This Row],[תאריך]]=\"\",\"\",ROW(A36))","v":""},null,null,null,null,null,null,{"$f":"IFERROR(IF(שעות_עבודה7[[#This Row],[סיום]]=\"\",\"\",שעות_עבודה7[[#This Row],[סיום]]-שעות_עבודה7[[#This Row],[התחלה]]+שעות_עבודה7[[#This Row],[הוספת שעות]]-שעות_עבודה7[[#This Row],[הפחתת שעות]]+(שעות_עבודה7[[#This Row],[סיום]]<שעות_עבודה7[[#This Row],[התחלה]])),\"\")","v":""},{"$f":"IF(שעות_עבודה7[[#This Row],[שעות]]=\"\",\"\",\nIF(SUMPRODUCT((שעות_עבודה7[[#This Row],[שם העבודה]]=$N$9:$O$28)*שעות_עבודה7[[#This Row],[שעות]]*($P$9:$Q$28*24))=0,\"\",\nSUMPRODUCT((שעות_עבודה7[[#This Row],[שם העבודה]]=$N$9:$O$28)*שעות_עבודה7[[#This Row],[שעות]]*($P$9:$Q$28*24))))","v":""}]
[null,{"$f":"IF(שעות_עבודה7[[#This Row],[תאריך]]=\"\",\"\",ROW(A37))","v":""},null,null,null,null,null,null,{"$f":"IFERROR(IF(שעות_עבודה7[[#This Row],[סיום]]=\"\",\"\",שעות_עבודה7[[#This Row],[סיום]]-שעות_עבודה7[[#This Row],[התחלה]]+שעות_עבודה7[[#This Row],[הוספת שעות]]-שעות_עבודה7[[#This Row],[הפחתת שעות]]+(שעות_עבודה7[[#This Row],[סיום]]<שעות_עבודה7[[#This Row],[התחלה]])),\"\")","v":""},{"$f":"IF(שעות_עבודה7[[#This Row],[שעות]]=\"\",\"\",\nIF(SUMPRODUCT((שעות_עבודה7[[#This Row],[שם העבודה]]=$N$9:$O$28)*שעות_עבודה7[[#This Row],[שעות]]*($P$9:$Q$28*24))=0,\"\",\nSUMPRODUCT((שעות_עבודה7[[#This Row],[שם העבודה]]=$N$9:$O$28)*שעות_עבודה7[[#This Row],[שעות]]*($P$9:$Q$28*24))))","v":""}]
[null,{"$f":"IF(שעות_עבודה7[[#This Row],[תאריך]]=\"\",\"\",ROW(A38))","v":""},null,null,null,null,null,null,{"$f":"IFERROR(IF(שעות_עבודה7[[#This Row],[סיום]]=\"\",\"\",שעות_עבודה7[[#This Row],[סיום]]-שעות_עבודה7[[#This Row],[התחלה]]+שעות_עבודה7[[#This Row],[הוספת שעות]]-שעות_עבודה7[[#This Row],[הפחתת שעות]]+(שעות_עבודה7[[#This Row],[סיום]]<שעות_עבודה7[[#This Row],[התחלה]])),\"\")","v":""},{"$f":"IF(שעות_עבודה7[[#This Row],[שעות]]=\"\",\"\",\nIF(SUMPRODUCT((שעות_עבודה7[[#This Row],[שם העבודה]]=$N$9:$O$28)*שעות_עבודה7[[#This Row],[שעות]]*($P$9:$Q$28*24))=0,\"\",\nSUMPRODUCT((שעות_עבודה7[[#This Row],[שם העבודה]]=$N$9:$O$28)*שעות_עבודה7[[#This Row],[שעות]]*($P$9:$Q$28*24))))","v":""}]
[null,{"$f":"IF(שעות_עבודה7[[#This Row],[תאריך]]=\"\",\"\",ROW(A39))","v":""},null,null,null,null,null,null,{"$f":"IFERROR(IF(שעות_עבודה7[[#This Row],[סיום]]=\"\",\"\",שעות_עבודה7[[#This Row],[סיום]]-שעות_עבודה7[[#This Row],[התחלה]]+שעות_עבודה7[[#This Row],[הוספת שעות]]-שעות_עבודה7[[#This Row],[הפחתת שעות]]+(שעות_עבודה7[[#This Row],[סיום]]<שעות_עבודה7[[#This Row],[התחלה]])),\"\")","v":""},{"$f":"IF(שעות_עבודה7[[#This Row],[שעות]]=\"\",\"\",\nIF(SUMPRODUCT((שעות_עבודה7[[#This Row],[שם העבודה]]=$N$9:$O$28)*שעות_עבודה7[[#This Row],[שעות]]*($P$9:$Q$28*24))=0,\"\",\nSUMPRODUCT((שעות_עבודה7[[#This Row],[שם העבודה]]=$N$9:$O$28)*שעות_עבודה7[[#This Row],[שעות]]*($P$9:$Q$28*24))))","v":""}]
[null,{"$f":"IF(שעות_עבודה7[[#This Row],[תאריך]]=\"\",\"\",ROW(A40))","v":""},null,null,null,null,null,null,{"$f":"IFERROR(IF(שעות_עבודה7[[#This Row],[סיום]]=\"\",\"\",שעות_עבודה7[[#This Row],[סיום]]-שעות_עבודה7[[#This Row],[התחלה]]+שעות_עבודה7[[#This Row],[הוספת שעות]]-שעות_עבודה7[[#This Row],[הפחתת שעות]]+(שעות_עבודה7[[#This Row],[סיום]]<שעות_עבודה7[[#This Row],[התחלה]])),\"\")","v":""},{"$f":"IF(שעות_עבודה7[[#This Row],[שעות]]=\"\",\"\",\nIF(SUMPRODUCT((שעות_עבודה7[[#This Row],[שם העבודה]]=$N$9:$O$28)*שעות_עבודה7[[#This Row],[שעות]]*($P$9:$Q$28*24))=0,\"\",\nSUMPRODUCT((שעות_עבודה7[[#This Row],[שם העבודה]]=$N$9:$O$28)*שעות_עבודה7[[#This Row],[שעות]]*($P$9:$Q$28*24))))","v":""}]
[null,{"$f":"IF(שעות_עבודה7[[#This Row],[תאריך]]=\"\",\"\",ROW(A41))","v":""},null,null,null,null,null,null,{"$f":"IFERROR(IF(שעות_עבודה7[[#This Row],[סיום]]=\"\",\"\",שעות_עבודה7[[#This Row],[סיום]]-שעות_עבודה7[[#This Row],[התחלה]]+שעות_עבודה7[[#This Row],[הוספת שעות]]-שעות_עבודה7[[#This Row],[הפחתת שעות]]+(שעות_עבודה7[[#This Row],[סיום]]<שעות_עבודה7[[#This Row],[התחלה]])),\"\")","v":""},{"$f":"IF(שעות_עבודה7[[#This Row],[שעות]]=\"\",\"\",\nIF(SUMPRODUCT((שעות_עבודה7[[#This Row],[שם העבודה]]=$N$9:$O$28)*שעות_עבודה7[[#This Row],[שעות]]*($P$9:$Q$28*24))=0,\"\",\nSUMPRODUCT((שעות_עבודה7[[#This Row],[שם העבודה]]=$N$9:$O$28)*שעות_עבודה7[[#This Row],[שעות]]*($P$9:$Q$28*24))))","v":""}]
[null,{"$f":"IF(שעות_עבודה7[[#This Row],[תאריך]]=\"\",\"\",ROW(A42))","v":""},null,null,null,null,null,null,{"$f":"IFERROR(IF(שעות_עבודה7[[#This Row],[סיום]]=\"\",\"\",שעות_עבודה7[[#This Row],[סיום]]-שעות_עבודה7[[#This Row],[התחלה]]+שעות_עבודה7[[#This Row],[הוספת שעות]]-שעות_עבודה7[[#This Row],[הפחתת שעות]]+(שעות_עבודה7[[#This Row],[סיום]]<שעות_עבודה7[[#This Row],[התחלה]])),\"\")","v":""},{"$f":"IF(שעות_עבודה7[[#This Row],[שעות]]=\"\",\"\",\nIF(SUMPRODUCT((שעות_עבודה7[[#This Row],[שם העבודה]]=$N$9:$O$28)*שעות_עבודה7[[#This Row],[שעות]]*($P$9:$Q$28*24))=0,\"\",\nSUMPRODUCT((שעות_עבודה7[[#This Row],[שם העבודה]]=$N$9:$O$28)*שעות_עבודה7[[#This Row],[שעות]]*($P$9:$Q$28*24))))","v":""}]
[null,{"$f":"IF(שעות_עבודה7[[#This Row],[תאריך]]=\"\",\"\",ROW(A43))","v":""},null,null,null,null,null,null,{"$f":"IFERROR(IF(שעות_עבודה7[[#This Row],[סיום]]=\"\",\"\",שעות_עבודה7[[#This Row],[סיום]]-שעות_עבודה7[[#This Row],[התחלה]]+שעות_עבודה7[[#This Row],[הוספת שעות]]-שעות_עבודה7[[#This Row],[הפחתת שעות]]+(שעות_עבודה7[[#This Row],[סיום]]<שעות_עבודה7[[#This Row],[התחלה]])),\"\")","v":""},{"$f":"IF(שעות_עבודה7[[#This Row],[שעות]]=\"\",\"\",\nIF(SUMPRODUCT((שעות_עבודה7[[#This Row],[שם העבודה]]=$N$9:$O$28)*שעות_עבודה7[[#This Row],[שעות]]*($P$9:$Q$28*24))=0,\"\",\nSUMPRODUCT((שעות_עבודה7[[#This Row],[שם העבודה]]=$N$9:$O$28)*שעות_עבודה7[[#This Row],[שעות]]*($P$9:$Q$28*24))))","v":""}]
[null,{"$f":"IF(שעות_עבודה7[[#This Row],[תאריך]]=\"\",\"\",ROW(A44))","v":""},null,null,null,null,null,null,{"$f":"IFERROR(IF(שעות_עבודה7[[#This Row],[סיום]]=\"\",\"\",שעות_עבודה7[[#This Row],[סיום]]-שעות_עבודה7[[#This Row],[התחלה]]+שעות_עבודה7[[#This Row],[הוספת שעות]]-שעות_עבודה7[[#This Row],[הפחתת שעות]]+(שעות_עבודה7[[#This Row],[סיום]]<שעות_עבודה7[[#This Row],[התחלה]])),\"\")","v":""},{"$f":"IF(שעות_עבודה7[[#This Row],[שעות]]=\"\",\"\",\nIF(SUMPRODUCT((שעות_עבודה7[[#This Row],[שם העבודה]]=$N$9:$O$28)*שעות_עבודה7[[#This Row],[שעות]]*($P$9:$Q$28*24))=0,\"\",\nSUMPRODUCT((שעות_עבודה7[[#This Row],[שם העבודה]]=$N$9:$O$28)*שעות_עבודה7[[#This Row],[שעות]]*($P$9:$Q$28*24))))","v":""}]
[null,{"$f":"IF(שעות_עבודה7[[#This Row],[תאריך]]=\"\",\"\",ROW(A45))","v":""},null,null,null,null,null,null,{"$f":"IFERROR(IF(שעות_עבודה7[[#This Row],[סיום]]=\"\",\"\",שעות_עבודה7[[#This Row],[סיום]]-שעות_עבודה7[[#This Row],[התחלה]]+שעות_עבודה7[[#This Row],[הוספת שעות]]-שעות_עבודה7[[#This Row],[הפחתת שעות]]+(שעות_עבודה7[[#This Row],[סיום]]<שעות_עבודה7[[#This Row],[התחלה]])),\"\")","v":""},{"$f":"IF(שעות_עבודה7[[#This Row],[שעות]]=\"\",\"\",\nIF(SUMPRODUCT((שעות_עבודה7[[#This Row],[שם העבודה]]=$N$9:$O$28)*שעות_עבודה7[[#This Row],[שעות]]*($P$9:$Q$28*24))=0,\"\",\nSUMPRODUCT((שעות_עבודה7[[#This Row],[שם העבודה]]=$N$9:$O$28)*שעות_עבודה7[[#This Row],[שעות]]*($P$9:$Q$28*24))))","v":""}]
[null,{"$f":"IF(שעות_עבודה7[[#This Row],[תאריך]]=\"\",\"\",ROW(A46))","v":""},null,null,null,null,null,null,{"$f":"IFERROR(IF(שעות_עבודה7[[#This Row],[סיום]]=\"\",\"\",שעות_עבודה7[[#This Row],[סיום]]-שעות_עבודה7[[#This Row],[התחלה]]+שעות_עבודה7[[#This Row],[הוספת שעות]]-שעות_עבודה7[[#This Row],[הפחתת שעות]]+(שעות_עבודה7[[#This Row],[סיום]]<שעות_עבודה7[[#This Row],[התחלה]])),\"\")","v":""},{"$f":"IF(שעות_עבודה7[[#This Row],[שעות]]=\"\",\"\",\nIF(SUMPRODUCT((שעות_עבודה7[[#This Row],[שם העבודה]]=$N$9:$O$28)*שעות_עבודה7[[#This Row],[שעות]]*($P$9:$Q$28*24))=0,\"\",\nSUMPRODUCT((שעות_עבודה7[[#This Row],[שם העבודה]]=$N$9:$O$28)*שעות_עבודה7[[#This Row],[שעות]]*($P$9:$Q$28*24))))","v":""}]
[null,{"$f":"IF(שעות_עבודה7[[#This Row],[תאריך]]=\"\",\"\",ROW(A47))","v":""},null,null,null,null,null,null,{"$f":"IFERROR(IF(שעות_עבודה7[[#This Row],[סיום]]=\"\",\"\",שעות_עבודה7[[#This Row],[סיום]]-שעות_עבודה7[[#This Row],[התחלה]]+שעות_עבודה7[[#This Row],[הוספת שעות]]-שעות_עבודה7[[#This Row],[הפחתת שעות]]+(שעות_עבודה7[[#This Row],[סיום]]<שעות_עבודה7[[#This Row],[התחלה]])),\"\")","v":""},{"$f":"IF(שעות_עבודה7[[#This Row],[שעות]]=\"\",\"\",\nIF(SUMPRODUCT((שעות_עבודה7[[#This Row],[שם העבודה]]=$N$9:$O$28)*שעות_עבודה7[[#This Row],[שעות]]*($P$9:$Q$28*24))=0,\"\",\nSUMPRODUCT((שעות_עבודה7[[#This Row],[שם העבודה]]=$N$9:$O$28)*שעות_עבודה7[[#This Row],[שעות]]*($P$9:$Q$28*24))))","v":""}]
[null,{"$f":"IF(שעות_עבודה7[[#This Row],[תאריך]]=\"\",\"\",ROW(A48))","v":""},null,null,null,null,null,null,{"$f":"IFERROR(IF(שעות_עבודה7[[#This Row],[סיום]]=\"\",\"\",שעות_עבודה7[[#This Row],[סיום]]-שעות_עבודה7[[#This Row],[התחלה]]+שעות_עבודה7[[#This Row],[הוספת שעות]]-שעות_עבודה7[[#This Row],[הפחתת שעות]]+(שעות_עבודה7[[#This Row],[סיום]]<שעות_עבודה7[[#This Row],[התחלה]])),\"\")","v":""},{"$f":"IF(שעות_עבודה7[[#This Row],[שעות]]=\"\",\"\",\nIF(SUMPRODUCT((שעות_עבודה7[[#This Row],[שם העבודה]]=$N$9:$O$28)*שעות_עבודה7[[#This Row],[שעות]]*($P$9:$Q$28*24))=0,\"\",\nSUMPRODUCT((שעות_עבודה7[[#This Row],[שם העבודה]]=$N$9:$O$28)*שעות_עבודה7[[#This Row],[שעות]]*($P$9:$Q$28*24))))","v":""}]
[null,{"$f":"IF(שעות_עבודה7[[#This Row],[תאריך]]=\"\",\"\",ROW(A49))","v":""},null,null,null,null,null,null,{"$f":"IFERROR(IF(שעות_עבודה7[[#This Row],[סיום]]=\"\",\"\",שעות_עבודה7[[#This Row],[סיום]]-שעות_עבודה7[[#This Row],[התחלה]]+שעות_עבודה7[[#This Row],[הוספת שעות]]-שעות_עבודה7[[#This Row],[הפחתת שעות]]+(שעות_עבודה7[[#This Row],[סיום]]<שעות_עבודה7[[#This Row],[התחלה]])),\"\")","v":""},{"$f":"IF(שעות_עבודה7[[#This Row],[שעות]]=\"\",\"\",\nIF(SUMPRODUCT((שעות_עבודה7[[#This Row],[שם העבודה]]=$N$9:$O$28)*שעות_עבודה7[[#This Row],[שעות]]*($P$9:$Q$28*24))=0,\"\",\nSUMPRODUCT((שעות_עבודה7[[#This Row],[שם העבודה]]=$N$9:$O$28)*שעות_עבודה7[[#This Row],[שעות]]*($P$9:$Q$28*24))))","v":""}]
[null,{"$f":"IF(שעות_עבודה7[[#This Row],[תאריך]]=\"\",\"\",ROW(A50))","v":""},null,null,null,null,null,null,{"$f":"IFERROR(IF(שעות_עבודה7[[#This Row],[סיום]]=\"\",\"\",שעות_עבודה7[[#This Row],[סיום]]-שעות_עבודה7[[#This Row],[התחלה]]+שעות_עבודה7[[#This Row],[הוספת שעות]]-שעות_עבודה7[[#This Row],[הפחתת שעות]]+(שעות_עבודה7[[#This Row],[סיום]]<שעות_עבודה7[[#This Row],[התחלה]])),\"\")","v":""},{"$f":"IF(שעות_עבודה7[[#This Row],[שעות]]=\"\",\"\",\nIF(SUMPRODUCT((שעות_עבודה7[[#This Row],[שם העבודה]]=$N$9:$O$28)*שעות_עבודה7[[#This Row],[שעות]]*($P$9:$Q$28*24))=0,\"\",\nSUMPRODUCT((שעות_עבודה7[[#This Row],[שם העבודה]]=$N$9:$O$28)*שעות_עבודה7[[#This Row],[שעות]]*($P$9:$Q$28*24))))","v":""}]
[null,{"$f":"IF(שעות_עבודה7[[#This Row],[תאריך]]=\"\",\"\",ROW(A51))","v":""},null,null,null,null,null,null,{"$f":"IFERROR(IF(שעות_עבודה7[[#This Row],[סיום]]=\"\",\"\",שעות_עבודה7[[#This Row],[סיום]]-שעות_עבודה7[[#This Row],[התחלה]]+שעות_עבודה7[[#This Row],[הוספת שעות]]-שעות_עבודה7[[#This Row],[הפחתת שעות]]+(שעות_עבודה7[[#This Row],[סיום]]<שעות_עבודה7[[#This Row],[התחלה]])),\"\")","v":""},{"$f":"IF(שעות_עבודה7[[#This Row],[שעות]]=\"\",\"\",\nIF(SUMPRODUCT((שעות_עבודה7[[#This Row],[שם העבודה]]=$N$9:$O$28)*שעות_עבודה7[[#This Row],[שעות]]*($P$9:$Q$28*24))=0,\"\",\nSUMPRODUCT((שעות_עבודה7[[#This Row],[שם העבודה]]=$N$9:$O$28)*שעות_עבודה7[[#This Row],[שעות]]*($P$9:$Q$28*24))))","v":""}]
[null,{"$f":"IF(שעות_עבודה7[[#This Row],[תאריך]]=\"\",\"\",ROW(A52))","v":""},null,null,null,null,null,null,{"$f":"IFERROR(IF(שעות_עבודה7[[#This Row],[סיום]]=\"\",\"\",שעות_עבודה7[[#This Row],[סיום]]-שעות_עבודה7[[#This Row],[התחלה]]+שעות_עבודה7[[#This Row],[הוספת שעות]]-שעות_עבודה7[[#This Row],[הפחתת שעות]]+(שעות_עבודה7[[#This Row],[סיום]]<שעות_עבודה7[[#This Row],[התחלה]])),\"\")","v":""},{"$f":"IF(שעות_עבודה7[[#This Row],[שעות]]=\"\",\"\",\nIF(SUMPRODUCT((שעות_עבודה7[[#This Row],[שם העבודה]]=$N$9:$O$28)*שעות_עבודה7[[#This Row],[שעות]]*($P$9:$Q$28*24))=0,\"\",\nSUMPRODUCT((שעות_עבודה7[[#This Row],[שם העבודה]]=$N$9:$O$28)*שעות_עבודה7[[#This Row],[שעות]]*($P$9:$Q$28*24))))","v":""}]
[null,{"$f":"IF(שעות_עבודה7[[#This Row],[תאריך]]=\"\",\"\",ROW(A53))","v":""},null,null,null,null,null,null,{"$f":"IFERROR(IF(שעות_עבודה7[[#This Row],[סיום]]=\"\",\"\",שעות_עבודה7[[#This Row],[סיום]]-שעות_עבודה7[[#This Row],[התחלה]]+שעות_עבודה7[[#This Row],[הוספת שעות]]-שעות_עבודה7[[#This Row],[הפחתת שעות]]+(שעות_עבודה7[[#This Row],[סיום]]<שעות_עבודה7[[#This Row],[התחלה]])),\"\")","v":""},{"$f":"IF(שעות_עבודה7[[#This Row],[שעות]]=\"\",\"\",\nIF(SUMPRODUCT((שעות_עבודה7[[#This Row],[שם העבודה]]=$N$9:$O$28)*שעות_עבודה7[[#This Row],[שעות]]*($P$9:$Q$28*24))=0,\"\",\nSUMPRODUCT((שעות_עבודה7[[#This Row],[שם העבודה]]=$N$9:$O$28)*שעות_עבודה7[[#This Row],[שעות]]*($P$9:$Q$28*24))))","v":""}]
[null,{"$f":"IF(שעות_עבודה7[[#This Row],[תאריך]]=\"\",\"\",ROW(A54))","v":""},null,null,null,null,null,null,{"$f":"IFERROR(IF(שעות_עבודה7[[#This Row],[סיום]]=\"\",\"\",שעות_עבודה7[[#This Row],[סיום]]-שעות_עבודה7[[#This Row],[התחלה]]+שעות_עבודה7[[#This Row],[הוספת שעות]]-שעות_עבודה7[[#This Row],[הפחתת שעות]]+(שעות_עבודה7[[#This Row],[סיום]]<שעות_עבודה7[[#This Row],[התחלה]])),\"\")","v":""},{"$f":"IF(שעות_עבודה7[[#This Row],[שעות]]=\"\",\"\",\nIF(SUMPRODUCT((שעות_עבודה7[[#This Row],[שם העבודה]]=$N$9:$O$28)*שעות_עבודה7[[#This Row],[שעות]]*($P$9:$Q$28*24))=0,\"\",\nSUMPRODUCT((שעות_עבודה7[[#This Row],[שם העבודה]]=$N$9:$O$28)*שעות_עבודה7[[#This Row],[שעות]]*($P$9:$Q$28*24))))","v":""}]
[null,{"$f":"IF(שעות_עבודה7[[#This Row],[תאריך]]=\"\",\"\",ROW(A55))","v":""},null,null,null,null,null,null,{"$f":"IFERROR(IF(שעות_עבודה7[[#This Row],[סיום]]=\"\",\"\",שעות_עבודה7[[#This Row],[סיום]]-שעות_עבודה7[[#This Row],[התחלה]]+שעות_עבודה7[[#This Row],[הוספת שעות]]-שעות_עבודה7[[#This Row],[הפחתת שעות]]+(שעות_עבודה7[[#This Row],[סיום]]<שעות_עבודה7[[#This Row],[התחלה]])),\"\")","v":""},{"$f":"IF(שעות_עבודה7[[#This Row],[שעות]]=\"\",\"\",\nIF(SUMPRODUCT((שעות_עבודה7[[#This Row],[שם העבודה]]=$N$9:$O$28)*שעות_עבודה7[[#This Row],[שעות]]*($P$9:$Q$28*24))=0,\"\",\nSUMPRODUCT((שעות_עבודה7[[#This Row],[שם העבודה]]=$N$9:$O$28)*שעות_עבודה7[[#This Row],[שעות]]*($P$9:$Q$28*24))))","v":""}]
[null,{"$f":"IF(שעות_עבודה7[[#This Row],[תאריך]]=\"\",\"\",ROW(A56))","v":""},null,null,null,null,null,null,{"$f":"IFERROR(IF(שעות_עבודה7[[#This Row],[סיום]]=\"\",\"\",שעות_עבודה7[[#This Row],[סיום]]-שעות_עבודה7[[#This Row],[התחלה]]+שעות_עבודה7[[#This Row],[הוספת שעות]]-שעות_עבודה7[[#This Row],[הפחתת שעות]]+(שעות_עבודה7[[#This Row],[סיום]]<שעות_עבודה7[[#This Row],[התחלה]])),\"\")","v":""},{"$f":"IF(שעות_עבודה7[[#This Row],[שעות]]=\"\",\"\",\nIF(SUMPRODUCT((שעות_עבודה7[[#This Row],[שם העבודה]]=$N$9:$O$28)*שעות_עבודה7[[#This Row],[שעות]]*($P$9:$Q$28*24))=0,\"\",\nSUMPRODUCT((שעות_עבודה7[[#This Row],[שם העבודה]]=$N$9:$O$28)*שעות_עבודה7[[#This Row],[שעות]]*($P$9:$Q$28*24))))","v":""}]
[null,{"$f":"IF(שעות_עבודה7[[#This Row],[תאריך]]=\"\",\"\",ROW(A57))","v":""},null,null,null,null,null,null,{"$f":"IFERROR(IF(שעות_עבודה7[[#This Row],[סיום]]=\"\",\"\",שעות_עבודה7[[#This Row],[סיום]]-שעות_עבודה7[[#This Row],[התחלה]]+שעות_עבודה7[[#This Row],[הוספת שעות]]-שעות_עבודה7[[#This Row],[הפחתת שעות]]+(שעות_עבודה7[[#This Row],[סיום]]<שעות_עבודה7[[#This Row],[התחלה]])),\"\")","v":""},{"$f":"IF(שעות_עבודה7[[#This Row],[שעות]]=\"\",\"\",\nIF(SUMPRODUCT((שעות_עבודה7[[#This Row],[שם העבודה]]=$N$9:$O$28)*שעות_עבודה7[[#This Row],[שעות]]*($P$9:$Q$28*24))=0,\"\",\nSUMPRODUCT((שעות_עבודה7[[#This Row],[שם העבודה]]=$N$9:$O$28)*שעות_עבודה7[[#This Row],[שעות]]*($P$9:$Q$28*24))))","v":""}]
[null,{"$f":"IF(שעות_עבודה7[[#This Row],[תאריך]]=\"\",\"\",ROW(A58))","v":""},null,null,null,null,null,null,{"$f":"IFERROR(IF(שעות_עבודה7[[#This Row],[סיום]]=\"\",\"\",שעות_עבודה7[[#This Row],[סיום]]-שעות_עבודה7[[#This Row],[התחלה]]+שעות_עבודה7[[#This Row],[הוספת שעות]]-שעות_עבודה7[[#This Row],[הפחתת שעות]]+(שעות_עבודה7[[#This Row],[סיום]]<שעות_עבודה7[[#This Row],[התחלה]])),\"\")","v":""},{"$f":"IF(שעות_עבודה7[[#This Row],[שעות]]=\"\",\"\",\nIF(SUMPRODUCT((שעות_עבודה7[[#This Row],[שם העבודה]]=$N$9:$O$28)*שעות_עבודה7[[#This Row],[שעות]]*($P$9:$Q$28*24))=0,\"\",\nSUMPRODUCT((שעות_עבודה7[[#This Row],[שם העבודה]]=$N$9:$O$28)*שעות_עבודה7[[#This Row],[שעות]]*($P$9:$Q$28*24))))","v":""}]
[null,{"$f":"IF(שעות_עבודה7[[#This Row],[תאריך]]=\"\",\"\",ROW(A59))","v":""},null,null,null,null,null,null,{"$f":"IFERROR(IF(שעות_עבודה7[[#This Row],[סיום]]=\"\",\"\",שעות_עבודה7[[#This Row],[סיום]]-שעות_עבודה7[[#This Row],[התחלה]]+שעות_עבודה7[[#This Row],[הוספת שעות]]-שעות_עבודה7[[#This Row],[הפחתת שעות]]+(שעות_עבודה7[[#This Row],[סיום]]<שעות_עבודה7[[#This Row],[התחלה]])),\"\")","v":""},{"$f":"IF(שעות_עבודה7[[#This Row],[שעות]]=\"\",\"\",\nIF(SUMPRODUCT((שעות_עבודה7[[#This Row],[שם העבודה]]=$N$9:$O$28)*שעות_עבודה7[[#This Row],[שעות]]*($P$9:$Q$28*24))=0,\"\",\nSUMPRODUCT((שעות_עבודה7[[#This Row],[שם העבודה]]=$N$9:$O$28)*שעות_עבודה7[[#This Row],[שעות]]*($P$9:$Q$28*24))))","v":""}]
[null,{"$f":"IF(שעות_עבודה7[[#This Row],[תאריך]]=\"\",\"\",ROW(A60))","v":""},null,null,null,null,null,null,{"$f":"IFERROR(IF(שעות_עבודה7[[#This Row],[סיום]]=\"\",\"\",שעות_עבודה7[[#This Row],[סיום]]-שעות_עבודה7[[#This Row],[התחלה]]+שעות_עבודה7[[#This Row],[הוספת שעות]]-שעות_עבודה7[[#This Row],[הפחתת שעות]]+(שעות_עבודה7[[#This Row],[סיום]]<שעות_עבודה7[[#This Row],[התחלה]])),\"\")","v":""},{"$f":"IF(שעות_עבודה7[[#This Row],[שעות]]=\"\",\"\",\nIF(SUMPRODUCT((שעות_עבודה7[[#This Row],[שם העבודה]]=$N$9:$O$28)*שעות_עבודה7[[#This Row],[שעות]]*($P$9:$Q$28*24))=0,\"\",\nSUMPRODUCT((שעות_עבודה7[[#This Row],[שם העבודה]]=$N$9:$O$28)*שעות_עבודה7[[#This Row],[שעות]]*($P$9:$Q$28*24))))","v":""}]
[null,{"$f":"IF(שעות_עבודה7[[#This Row],[תאריך]]=\"\",\"\",ROW(A61))","v":""},null,null,null,null,null,null,{"$f":"IFERROR(IF(שעות_עבודה7[[#This Row],[סיום]]=\"\",\"\",שעות_עבודה7[[#This Row],[סיום]]-שעות_עבודה7[[#This Row],[התחלה]]+שעות_עבודה7[[#This Row],[הוספת שעות]]-שעות_עבודה7[[#This Row],[הפחתת שעות]]+(שעות_עבודה7[[#This Row],[סיום]]<שעות_עבודה7[[#This Row],[התחלה]])),\"\")","v":""},{"$f":"IF(שעות_עבודה7[[#This Row],[שעות]]=\"\",\"\",\nIF(SUMPRODUCT((שעות_עבודה7[[#This Row],[שם העבודה]]=$N$9:$O$28)*שעות_עבודה7[[#This Row],[שעות]]*($P$9:$Q$28*24))=0,\"\",\nSUMPRODUCT((שעות_עבודה7[[#This Row],[שם העבודה]]=$N$9:$O$28)*שעות_עבודה7[[#This Row],[שעות]]*($P$9:$Q$28*24))))","v":""}]
[null,{"$f":"IF(שעות_עבודה7[[#This Row],[תאריך]]=\"\",\"\",ROW(A62))","v":""},null,null,null,null,null,null,{"$f":"IFERROR(IF(שעות_עבודה7[[#This Row],[סיום]]=\"\",\"\",שעות_עבודה7[[#This Row],[סיום]]-שעות_עבודה7[[#This Row],[התחלה]]+שעות_עבודה7[[#This Row],[הוספת שעות]]-שעות_עבודה7[[#This Row],[הפחתת שעות]]+(שעות_עבודה7[[#This Row],[סיום]]<שעות_עבודה7[[#This Row],[התחלה]])),\"\")","v":""},{"$f":"IF(שעות_עבודה7[[#This Row],[שעות]]=\"\",\"\",\nIF(SUMPRODUCT((שעות_עבודה7[[#This Row],[שם העבודה]]=$N$9:$O$28)*שעות_עבודה7[[#This Row],[שעות]]*($P$9:$Q$28*24))=0,\"\",\nSUMPRODUCT((שעות_עבודה7[[#This Row],[שם העבודה]]=$N$9:$O$28)*שעות_עבודה7[[#This Row],[שעות]]*($P$9:$Q$28*24))))","v":""}]
[null,{"$f":"IF(שעות_עבודה7[[#This Row],[תאריך]]=\"\",\"\",ROW(A63))","v":""},null,null,null,null,null,null,{"$f":"IFERROR(IF(שעות_עבודה7[[#This Row],[סיום]]=\"\",\"\",שעות_עבודה7[[#This Row],[סיום]]-שעות_עבודה7[[#This Row],[התחלה]]+שעות_עבודה7[[#This Row],[הוספת שעות]]-שעות_עבודה7[[#This Row],[הפחתת שעות]]+(שעות_עבודה7[[#This Row],[סיום]]<שעות_עבודה7[[#This Row],[התחלה]])),\"\")","v":""},{"$f":"IF(שעות_עבודה7[[#This Row],[שעות]]=\"\",\"\",\nIF(SUMPRODUCT((שעות_עבודה7[[#This Row],[שם העבודה]]=$N$9:$O$28)*שעות_עבודה7[[#This Row],[שעות]]*($P$9:$Q$28*24))=0,\"\",\nSUMPRODUCT((שעות_עבודה7[[#This Row],[שם העבודה]]=$N$9:$O$28)*שעות_עבודה7[[#This Row],[שעות]]*($P$9:$Q$28*24))))","v":""}]
[null,{"$f":"IF(שעות_עבודה7[[#This Row],[תאריך]]=\"\",\"\",ROW(A64))","v":""},null,null,null,null,null,null,{"$f":"IFERROR(IF(שעות_עבודה7[[#This Row],[סיום]]=\"\",\"\",שעות_עבודה7[[#This Row],[סיום]]-שעות_עבודה7[[#This Row],[התחלה]]+שעות_עבודה7[[#This Row],[הוספת שעות]]-שעות_עבודה7[[#This Row],[הפחתת שעות]]+(שעות_עבודה7[[#This Row],[סיום]]<שעות_עבודה7[[#This Row],[התחלה]])),\"\")","v":""},{"$f":"IF(שעות_עבודה7[[#This Row],[שעות]]=\"\",\"\",\nIF(SUMPRODUCT((שעות_עבודה7[[#This Row],[שם העבודה]]=$N$9:$O$28)*שעות_עבודה7[[#This Row],[שעות]]*($P$9:$Q$28*24))=0,\"\",\nSUMPRODUCT((שעות_עבודה7[[#This Row],[שם העבודה]]=$N$9:$O$28)*שעות_עבודה7[[#This Row],[שעות]]*($P$9:$Q$28*24))))","v":""}]
[null,{"$f":"IF(שעות_עבודה7[[#This Row],[תאריך]]=\"\",\"\",ROW(A65))","v":""},null,null,null,null,null,null,{"$f":"IFERROR(IF(שעות_עבודה7[[#This Row],[סיום]]=\"\",\"\",שעות_עבודה7[[#This Row],[סיום]]-שעות_עבודה7[[#This Row],[התחלה]]+שעות_עבודה7[[#This Row],[הוספת שעות]]-שעות_עבודה7[[#This Row],[הפחתת שעות]]+(שעות_עבודה7[[#This Row],[סיום]]<שעות_עבודה7[[#This Row],[התחלה]])),\"\")","v":""},{"$f":"IF(שעות_עבודה7[[#This Row],[שעות]]=\"\",\"\",\nIF(SUMPRODUCT((שעות_עבודה7[[#This Row],[שם העבודה]]=$N$9:$O$28)*שעות_עבודה7[[#This Row],[שעות]]*($P$9:$Q$28*24))=0,\"\",\nSUMPRODUCT((שעות_עבודה7[[#This Row],[שם העבודה]]=$N$9:$O$28)*שעות_עבודה7[[#This Row],[שעות]]*($P$9:$Q$28*24))))","v":""}]
[null,{"$f":"IF(שעות_עבודה7[[#This Row],[תאריך]]=\"\",\"\",ROW(A66))","v":""},null,null,null,null,null,null,{"$f":"IFERROR(IF(שעות_עבודה7[[#This Row],[סיום]]=\"\",\"\",שעות_עבודה7[[#This Row],[סיום]]-שעות_עבודה7[[#This Row],[התחלה]]+שעות_עבודה7[[#This Row],[הוספת שעות]]-שעות_עבודה7[[#This Row],[הפחתת שעות]]+(שעות_עבודה7[[#This Row],[סיום]]<שעות_עבודה7[[#This Row],[התחלה]])),\"\")","v":""},{"$f":"IF(שעות_עבודה7[[#This Row],[שעות]]=\"\",\"\",\nIF(SUMPRODUCT((שעות_עבודה7[[#This Row],[שם העבודה]]=$N$9:$O$28)*שעות_עבודה7[[#This Row],[שעות]]*($P$9:$Q$28*24))=0,\"\",\nSUMPRODUCT((שעות_עבודה7[[#This Row],[שם העבודה]]=$N$9:$O$28)*שעות_עבודה7[[#This Row],[שעות]]*($P$9:$Q$28*24))))","v":""}]
[null,{"$f":"IF(שעות_עבודה7[[#This Row],[תאריך]]=\"\",\"\",ROW(A67))","v":""},null,null,null,null,null,null,{"$f":"IFERROR(IF(שעות_עבודה7[[#This Row],[סיום]]=\"\",\"\",שעות_עבודה7[[#This Row],[סיום]]-שעות_עבודה7[[#This Row],[התחלה]]+שעות_עבודה7[[#This Row],[הוספת שעות]]-שעות_עבודה7[[#This Row],[הפחתת שעות]]+(שעות_עבודה7[[#This Row],[סיום]]<שעות_עבודה7[[#This Row],[התחלה]])),\"\")","v":""},{"$f":"IF(שעות_עבודה7[[#This Row],[שעות]]=\"\",\"\",\nIF(SUMPRODUCT((שעות_עבודה7[[#This Row],[שם העבודה]]=$N$9:$O$28)*שעות_עבודה7[[#This Row],[שעות]]*($P$9:$Q$28*24))=0,\"\",\nSUMPRODUCT((שעות_עבודה7[[#This Row],[שם העבודה]]=$N$9:$O$28)*שעות_עבודה7[[#This Row],[שעות]]*($P$9:$Q$28*24))))","v":""}]
[null,{"$f":"IF(שעות_עבודה7[[#This Row],[תאריך]]=\"\",\"\",ROW(A68))","v":""},null,null,null,null,null,null,{"$f":"IFERROR(IF(שעות_עבודה7[[#This Row],[סיום]]=\"\",\"\",שעות_עבודה7[[#This Row],[סיום]]-שעות_עבודה7[[#This Row],[התחלה]]+שעות_עבודה7[[#This Row],[הוספת שעות]]-שעות_עבודה7[[#This Row],[הפחתת שעות]]+(שעות_עבודה7[[#This Row],[סיום]]<שעות_עבודה7[[#This Row],[התחלה]])),\"\")","v":""},{"$f":"IF(שעות_עבודה7[[#This Row],[שעות]]=\"\",\"\",\nIF(SUMPRODUCT((שעות_עבודה7[[#This Row],[שם העבודה]]=$N$9:$O$28)*שעות_עבודה7[[#This Row],[שעות]]*($P$9:$Q$28*24))=0,\"\",\nSUMPRODUCT((שעות_עבודה7[[#This Row],[שם העבודה]]=$N$9:$O$28)*שעות_עבודה7[[#This Row],[שעות]]*($P$9:$Q$28*24))))","v":""}]
[null,{"$f":"IF(שעות_עבודה7[[#This Row],[תאריך]]=\"\",\"\",ROW(A69))","v":""},null,null,null,null,null,null,{"$f":"IFERROR(IF(שעות_עבודה7[[#This Row],[סיום]]=\"\",\"\",שעות_עבודה7[[#This Row],[סיום]]-שעות_עבודה7[[#This Row],[התחלה]]+שעות_עבודה7[[#This Row],[הוספת שעות]]-שעות_עבודה7[[#This Row],[הפחתת שעות]]+(שעות_עבודה7[[#This Row],[סיום]]<שעות_עבודה7[[#This Row],[התחלה]])),\"\")","v":""},{"$f":"IF(שעות_עבודה7[[#This Row],[שעות]]=\"\",\"\",\nIF(SUMPRODUCT((שעות_עבודה7[[#This Row],[שם העבודה]]=$N$9:$O$28)*שעות_עבודה7[[#This Row],[שעות]]*($P$9:$Q$28*24))=0,\"\",\nSUMPRODUCT((שעות_עבודה7[[#This Row],[שם העבודה]]=$N$9:$O$28)*שעות_עבודה7[[#This Row],[שעות]]*($P$9:$Q$28*24))))","v":""}]
[null,{"$f":"IF(שעות_עבודה7[[#This Row],[תאריך]]=\"\",\"\",ROW(A70))","v":""},null,null,null,null,null,null,{"$f":"IFERROR(IF(שעות_עבודה7[[#This Row],[סיום]]=\"\",\"\",שעות_עבודה7[[#This Row],[סיום]]-שעות_עבודה7[[#This Row],[התחלה]]+שעות_עבודה7[[#This Row],[הוספת שעות]]-שעות_עבודה7[[#This Row],[הפחתת שעות]]+(שעות_עבודה7[[#This Row],[סיום]]<שעות_עבודה7[[#This Row],[התחלה]])),\"\")","v":""},{"$f":"IF(שעות_עבודה7[[#This Row],[שעות]]=\"\",\"\",\nIF(SUMPRODUCT((שעות_עבודה7[[#This Row],[שם העבודה]]=$N$9:$O$28)*שעות_עבודה7[[#This Row],[שעות]]*($P$9:$Q$28*24))=0,\"\",\nSUMPRODUCT((שעות_עבודה7[[#This Row],[שם העבודה]]=$N$9:$O$28)*שעות_עבודה7[[#This Row],[שעות]]*($P$9:$Q$28*24))))","v":""}]
[null,{"$f":"IF(שעות_עבודה7[[#This Row],[תאריך]]=\"\",\"\",ROW(A71))","v":""},null,null,null,null,null,null,{"$f":"IFERROR(IF(שעות_עבודה7[[#This Row],[סיום]]=\"\",\"\",שעות_עבודה7[[#This Row],[סיום]]-שעות_עבודה7[[#This Row],[התחלה]]+שעות_עבודה7[[#This Row],[הוספת שעות]]-שעות_עבודה7[[#This Row],[הפחתת שעות]]+(שעות_עבודה7[[#This Row],[סיום]]<שעות_עבודה7[[#This Row],[התחלה]])),\"\")","v":""},{"$f":"IF(שעות_עבודה7[[#This Row],[שעות]]=\"\",\"\",\nIF(SUMPRODUCT((שעות_עבודה7[[#This Row],[שם העבודה]]=$N$9:$O$28)*שעות_עבודה7[[#This Row],[שעות]]*($P$9:$Q$28*24))=0,\"\",\nSUMPRODUCT((שעות_עבודה7[[#This Row],[שם העבודה]]=$N$9:$O$28)*שעות_עבודה7[[#This Row],[שעות]]*($P$9:$Q$28*24))))","v":""}]
[null,{"$f":"IF(שעות_עבודה7[[#This Row],[תאריך]]=\"\",\"\",ROW(A72))","v":""},null,null,null,null,null,null,{"$f":"IFERROR(IF(שעות_עבודה7[[#This Row],[סיום]]=\"\",\"\",שעות_עבודה7[[#This Row],[סיום]]-שעות_עבודה7[[#This Row],[התחלה]]+שעות_עבודה7[[#This Row],[הוספת שעות]]-שעות_עבודה7[[#This Row],[הפחתת שעות]]+(שעות_עבודה7[[#This Row],[סיום]]<שעות_עבודה7[[#This Row],[התחלה]])),\"\")","v":""},{"$f":"IF(שעות_עבודה7[[#This Row],[שעות]]=\"\",\"\",\nIF(SUMPRODUCT((שעות_עבודה7[[#This Row],[שם העבודה]]=$N$9:$O$28)*שעות_עבודה7[[#This Row],[שעות]]*($P$9:$Q$28*24))=0,\"\",\nSUMPRODUCT((שעות_עבודה7[[#This Row],[שם העבודה]]=$N$9:$O$28)*שעות_עבודה7[[#This Row],[שעות]]*($P$9:$Q$28*24))))","v":""}]
[null,{"$f":"IF(שעות_עבודה7[[#This Row],[תאריך]]=\"\",\"\",ROW(A73))","v":""},null,null,null,null,null,null,{"$f":"IFERROR(IF(שעות_עבודה7[[#This Row],[סיום]]=\"\",\"\",שעות_עבודה7[[#This Row],[סיום]]-שעות_עבודה7[[#This Row],[התחלה]]+שעות_עבודה7[[#This Row],[הוספת שעות]]-שעות_עבודה7[[#This Row],[הפחתת שעות]]+(שעות_עבודה7[[#This Row],[סיום]]<שעות_עבודה7[[#This Row],[התחלה]])),\"\")","v":""},{"$f":"IF(שעות_עבודה7[[#This Row],[שעות]]=\"\",\"\",\nIF(SUMPRODUCT((שעות_עבודה7[[#This Row],[שם העבודה]]=$N$9:$O$28)*שעות_עבודה7[[#This Row],[שעות]]*($P$9:$Q$28*24))=0,\"\",\nSUMPRODUCT((שעות_עבודה7[[#This Row],[שם העבודה]]=$N$9:$O$28)*שעות_עבודה7[[#This Row],[שעות]]*($P$9:$Q$28*24))))","v":""}]
[null,{"$f":"IF(שעות_עבודה7[[#This Row],[תאריך]]=\"\",\"\",ROW(A74))","v":""},null,null,null,null,null,null,{"$f":"IFERROR(IF(שעות_עבודה7[[#This Row],[סיום]]=\"\",\"\",שעות_עבודה7[[#This Row],[סיום]]-שעות_עבודה7[[#This Row],[התחלה]]+שעות_עבודה7[[#This Row],[הוספת שעות]]-שעות_עבודה7[[#This Row],[הפחתת שעות]]+(שעות_עבודה7[[#This Row],[סיום]]<שעות_עבודה7[[#This Row],[התחלה]])),\"\")","v":""},{"$f":"IF(שעות_עבודה7[[#This Row],[שעות]]=\"\",\"\",\nIF(SUMPRODUCT((שעות_עבודה7[[#This Row],[שם העבודה]]=$N$9:$O$28)*שעות_עבודה7[[#This Row],[שעות]]*($P$9:$Q$28*24))=0,\"\",\nSUMPRODUCT((שעות_עבודה7[[#This Row],[שם העבודה]]=$N$9:$O$28)*שעות_עבודה7[[#This Row],[שעות]]*($P$9:$Q$28*24))))","v":""}]
[null,{"$f":"IF(שעות_עבודה7[[#This Row],[תאריך]]=\"\",\"\",ROW(A75))","v":""},null,null,null,null,null,null,{"$f":"IFERROR(IF(שעות_עבודה7[[#This Row],[סיום]]=\"\",\"\",שעות_עבודה7[[#This Row],[סיום]]-שעות_עבודה7[[#This Row],[התחלה]]+שעות_עבודה7[[#This Row],[הוספת שעות]]-שעות_עבודה7[[#This Row],[הפחתת שעות]]+(שעות_עבודה7[[#This Row],[סיום]]<שעות_עבודה7[[#This Row],[התחלה]])),\"\")","v":""},{"$f":"IF(שעות_עבודה7[[#This Row],[שעות]]=\"\",\"\",\nIF(SUMPRODUCT((שעות_עבודה7[[#This Row],[שם העבודה]]=$N$9:$O$28)*שעות_עבודה7[[#This Row],[שעות]]*($P$9:$Q$28*24))=0,\"\",\nSUMPRODUCT((שעות_עבודה7[[#This Row],[שם העבודה]]=$N$9:$O$28)*שעות_עבודה7[[#This Row],[שעות]]*($P$9:$Q$28*24))))","v":""}]
[null,{"$f":"IF(שעות_עבודה7[[#This Row],[תאריך]]=\"\",\"\",ROW(A76))","v":""},null,null,null,null,null,null,{"$f":"IFERROR(IF(שעות_עבודה7[[#This Row],[סיום]]=\"\",\"\",שעות_עבודה7[[#This Row],[סיום]]-שעות_עבודה7[[#This Row],[התחלה]]+שעות_עבודה7[[#This Row],[הוספת שעות]]-שעות_עבודה7[[#This Row],[הפחתת שעות]]+(שעות_עבודה7[[#This Row],[סיום]]<שעות_עבודה7[[#This Row],[התחלה]])),\"\")","v":""},{"$f":"IF(שעות_עבודה7[[#This Row],[שעות]]=\"\",\"\",\nIF(SUMPRODUCT((שעות_עבודה7[[#This Row],[שם העבודה]]=$N$9:$O$28)*שעות_עבודה7[[#This Row],[שעות]]*($P$9:$Q$28*24))=0,\"\",\nSUMPRODUCT((שעות_עבודה7[[#This Row],[שם העבודה]]=$N$9:$O$28)*שעות_עבודה7[[#This Row],[שעות]]*($P$9:$Q$28*24))))","v":""}]
[null,{"$f":"IF(שעות_עבודה7[[#This Row],[תאריך]]=\"\",\"\",ROW(A77))","v":""},null,null,null,null,null,null,{"$f":"IFERROR(IF(שעות_עבודה7[[#This Row],[סיום]]=\"\",\"\",שעות_עבודה7[[#This Row],[סיום]]-שעות_עבודה7[[#This Row],[התחלה]]+שעות_עבודה7[[#This Row],[הוספת שעות]]-שעות_עבודה7[[#This Row],[הפחתת שעות]]+(שעות_עבודה7[[#This Row],[סיום]]<שעות_עבודה7[[#This Row],[התחלה]])),\"\")","v":""},{"$f":"IF(שעות_עבודה7[[#This Row],[שעות]]=\"\",\"\",\nIF(SUMPRODUCT((שעות_עבודה7[[#This Row],[שם העבודה]]=$N$9:$O$28)*שעות_עבודה7[[#This Row],[שעות]]*($P$9:$Q$28*24))=0,\"\",\nSUMPRODUCT((שעות_עבודה7[[#This Row],[שם העבודה]]=$N$9:$O$28)*שעות_עבודה7[[#This Row],[שעות]]*($P$9:$Q$28*24))))","v":""}]
[null,{"$f":"IF(שעות_עבודה7[[#This Row],[תאריך]]=\"\",\"\",ROW(A78))","v":""},null,null,null,null,null,null,{"$f":"IFERROR(IF(שעות_עבודה7[[#This Row],[סיום]]=\"\",\"\",שעות_עבודה7[[#This Row],[סיום]]-שעות_עבודה7[[#This Row],[התחלה]]+שעות_עבודה7[[#This Row],[הוספת שעות]]-שעות_עבודה7[[#This Row],[הפחתת שעות]]+(שעות_עבודה7[[#This Row],[סיום]]<שעות_עבודה7[[#This Row],[התחלה]])),\"\")","v":""},{"$f":"IF(שעות_עבודה7[[#This Row],[שעות]]=\"\",\"\",\nIF(SUMPRODUCT((שעות_עבודה7[[#This Row],[שם העבודה]]=$N$9:$O$28)*שעות_עבודה7[[#This Row],[שעות]]*($P$9:$Q$28*24))=0,\"\",\nSUMPRODUCT((שעות_עבודה7[[#This Row],[שם העבודה]]=$N$9:$O$28)*שעות_עבודה7[[#This Row],[שעות]]*($P$9:$Q$28*24))))","v":""}]
[null,{"$f":"IF(שעות_עבודה7[[#This Row],[תאריך]]=\"\",\"\",ROW(A79))","v":""},null,null,null,null,null,null,{"$f":"IFERROR(IF(שעות_עבודה7[[#This Row],[סיום]]=\"\",\"\",שעות_עבודה7[[#This Row],[סיום]]-שעות_עבודה7[[#This Row],[התחלה]]+שעות_עבודה7[[#This Row],[הוספת שעות]]-שעות_עבודה7[[#This Row],[הפחתת שעות]]+(שעות_עבודה7[[#This Row],[סיום]]<שעות_עבודה7[[#This Row],[התחלה]])),\"\")","v":""},{"$f":"IF(שעות_עבודה7[[#This Row],[שעות]]=\"\",\"\",\nIF(SUMPRODUCT((שעות_עבודה7[[#This Row],[שם העבודה]]=$N$9:$O$28)*שעות_עבודה7[[#This Row],[שעות]]*($P$9:$Q$28*24))=0,\"\",\nSUMPRODUCT((שעות_עבודה7[[#This Row],[שם העבודה]]=$N$9:$O$28)*שעות_עבודה7[[#This Row],[שעות]]*($P$9:$Q$28*24))))","v":""}]
[null,{"$f":"IF(שעות_עבודה7[[#This Row],[תאריך]]=\"\",\"\",ROW(A80))","v":""},null,null,null,null,null,null,{"$f":"IFERROR(IF(שעות_עבודה7[[#This Row],[סיום]]=\"\",\"\",שעות_עבודה7[[#This Row],[סיום]]-שעות_עבודה7[[#This Row],[התחלה]]+שעות_עבודה7[[#This Row],[הוספת שעות]]-שעות_עבודה7[[#This Row],[הפחתת שעות]]+(שעות_עבודה7[[#This Row],[סיום]]<שעות_עבודה7[[#This Row],[התחלה]])),\"\")","v":""},{"$f":"IF(שעות_עבודה7[[#This Row],[שעות]]=\"\",\"\",\nIF(SUMPRODUCT((שעות_עבודה7[[#This Row],[שם העבודה]]=$N$9:$O$28)*שעות_עבודה7[[#This Row],[שעות]]*($P$9:$Q$28*24))=0,\"\",\nSUMPRODUCT((שעות_עבודה7[[#This Row],[שם העבודה]]=$N$9:$O$28)*שעות_עבודה7[[#This Row],[שעות]]*($P$9:$Q$28*24))))","v":""}]
[null,{"$f":"IF(שעות_עבודה7[[#This Row],[תאריך]]=\"\",\"\",ROW(A81))","v":""},null,null,null,null,null,null,{"$f":"IFERROR(IF(שעות_עבודה7[[#This Row],[סיום]]=\"\",\"\",שעות_עבודה7[[#This Row],[סיום]]-שעות_עבודה7[[#This Row],[התחלה]]+שעות_עבודה7[[#This Row],[הוספת שעות]]-שעות_עבודה7[[#This Row],[הפחתת שעות]]+(שעות_עבודה7[[#This Row],[סיום]]<שעות_עבודה7[[#This Row],[התחלה]])),\"\")","v":""},{"$f":"IF(שעות_עבודה7[[#This Row],[שעות]]=\"\",\"\",\nIF(SUMPRODUCT((שעות_עבודה7[[#This Row],[שם העבודה]]=$N$9:$O$28)*שעות_עבודה7[[#This Row],[שעות]]*($P$9:$Q$28*24))=0,\"\",\nSUMPRODUCT((שעות_עבודה7[[#This Row],[שם העבודה]]=$N$9:$O$28)*שעות_עבודה7[[#This Row],[שעות]]*($P$9:$Q$28*24))))","v":""}]
[null,{"$f":"IF(שעות_עבודה7[[#This Row],[תאריך]]=\"\",\"\",ROW(A82))","v":""},null,null,null,null,null,null,{"$f":"IFERROR(IF(שעות_עבודה7[[#This Row],[סיום]]=\"\",\"\",שעות_עבודה7[[#This Row],[סיום]]-שעות_עבודה7[[#This Row],[התחלה]]+שעות_עבודה7[[#This Row],[הוספת שעות]]-שעות_עבודה7[[#This Row],[הפחתת שעות]]+(שעות_עבודה7[[#This Row],[סיום]]<שעות_עבודה7[[#This Row],[התחלה]])),\"\")","v":""},{"$f":"IF(שעות_עבודה7[[#This Row],[שעות]]=\"\",\"\",\nIF(SUMPRODUCT((שעות_עבודה7[[#This Row],[שם העבודה]]=$N$9:$O$28)*שעות_עבודה7[[#This Row],[שעות]]*($P$9:$Q$28*24))=0,\"\",\nSUMPRODUCT((שעות_עבודה7[[#This Row],[שם העבודה]]=$N$9:$O$28)*שעות_עבודה7[[#This Row],[שעות]]*($P$9:$Q$28*24))))","v":""}]
[null,{"$f":"IF(שעות_עבודה7[[#This Row],[תאריך]]=\"\",\"\",ROW(A83))","v":""},null,null,null,null,null,null,{"$f":"IFERROR(IF(שעות_עבודה7[[#This Row],[סיום]]=\"\",\"\",שעות_עבודה7[[#This Row],[סיום]]-שעות_עבודה7[[#This Row],[התחלה]]+שעות_עבודה7[[#This Row],[הוספת שעות]]-שעות_עבודה7[[#This Row],[הפחתת שעות]]+(שעות_עבודה7[[#This Row],[סיום]]<שעות_עבודה7[[#This Row],[התחלה]])),\"\")","v":""},{"$f":"IF(שעות_עבודה7[[#This Row],[שעות]]=\"\",\"\",\nIF(SUMPRODUCT((שעות_עבודה7[[#This Row],[שם העבודה]]=$N$9:$O$28)*שעות_עבודה7[[#This Row],[שעות]]*($P$9:$Q$28*24))=0,\"\",\nSUMPRODUCT((שעות_עבודה7[[#This Row],[שם העבודה]]=$N$9:$O$28)*שעות_עבודה7[[#This Row],[שעות]]*($P$9:$Q$28*24))))","v":""}]
[null,{"$f":"IF(שעות_עבודה7[[#This Row],[תאריך]]=\"\",\"\",ROW(A84))","v":""},null,null,null,null,null,null,{"$f":"IFERROR(IF(שעות_עבודה7[[#This Row],[סיום]]=\"\",\"\",שעות_עבודה7[[#This Row],[סיום]]-שעות_עבודה7[[#This Row],[התחלה]]+שעות_עבודה7[[#This Row],[הוספת שעות]]-שעות_עבודה7[[#This Row],[הפחתת שעות]]+(שעות_עבודה7[[#This Row],[סיום]]<שעות_עבודה7[[#This Row],[התחלה]])),\"\")","v":""},{"$f":"IF(שעות_עבודה7[[#This Row],[שעות]]=\"\",\"\",\nIF(SUMPRODUCT((שעות_עבודה7[[#This Row],[שם העבודה]]=$N$9:$O$28)*שעות_עבודה7[[#This Row],[שעות]]*($P$9:$Q$28*24))=0,\"\",\nSUMPRODUCT((שעות_עבודה7[[#This Row],[שם העבודה]]=$N$9:$O$28)*שעות_עבודה7[[#This Row],[שעות]]*($P$9:$Q$28*24))))","v":""}]
[null,{"$f":"IF(שעות_עבודה7[[#This Row],[תאריך]]=\"\",\"\",ROW(A85))","v":""},null,null,null,null,null,null,{"$f":"IFERROR(IF(שעות_עבודה7[[#This Row],[סיום]]=\"\",\"\",שעות_עבודה7[[#This Row],[סיום]]-שעות_עבודה7[[#This Row],[התחלה]]+שעות_עבודה7[[#This Row],[הוספת שעות]]-שעות_עבודה7[[#This Row],[הפחתת שעות]]+(שעות_עבודה7[[#This Row],[סיום]]<שעות_עבודה7[[#This Row],[התחלה]])),\"\")","v":""},{"$f":"IF(שעות_עבודה7[[#This Row],[שעות]]=\"\",\"\",\nIF(SUMPRODUCT((שעות_עבודה7[[#This Row],[שם העבודה]]=$N$9:$O$28)*שעות_עבודה7[[#This Row],[שעות]]*($P$9:$Q$28*24))=0,\"\",\nSUMPRODUCT((שעות_עבודה7[[#This Row],[שם העבודה]]=$N$9:$O$28)*שעות_עבודה7[[#This Row],[שעות]]*($P$9:$Q$28*24))))","v":""}]
[null,{"$f":"IF(שעות_עבודה7[[#This Row],[תאריך]]=\"\",\"\",ROW(A86))","v":""},null,null,null,null,null,null,{"$f":"IFERROR(IF(שעות_עבודה7[[#This Row],[סיום]]=\"\",\"\",שעות_עבודה7[[#This Row],[סיום]]-שעות_עבודה7[[#This Row],[התחלה]]+שעות_עבודה7[[#This Row],[הוספת שעות]]-שעות_עבודה7[[#This Row],[הפחתת שעות]]+(שעות_עבודה7[[#This Row],[סיום]]<שעות_עבודה7[[#This Row],[התחלה]])),\"\")","v":""},{"$f":"IF(שעות_עבודה7[[#This Row],[שעות]]=\"\",\"\",\nIF(SUMPRODUCT((שעות_עבודה7[[#This Row],[שם העבודה]]=$N$9:$O$28)*שעות_עבודה7[[#This Row],[שעות]]*($P$9:$Q$28*24))=0,\"\",\nSUMPRODUCT((שעות_עבודה7[[#This Row],[שם העבודה]]=$N$9:$O$28)*שעות_עבודה7[[#This Row],[שעות]]*($P$9:$Q$28*24))))","v":""}]
[null,{"$f":"IF(שעות_עבודה7[[#This Row],[תאריך]]=\"\",\"\",ROW(A87))","v":""},null,null,null,null,null,null,{"$f":"IFERROR(IF(שעות_עבודה7[[#This Row],[סיום]]=\"\",\"\",שעות_עבודה7[[#This Row],[סיום]]-שעות_עבודה7[[#This Row],[התחלה]]+שעות_עבודה7[[#This Row],[הוספת שעות]]-שעות_עבודה7[[#This Row],[הפחתת שעות]]+(שעות_עבודה7[[#This Row],[סיום]]<שעות_עבודה7[[#This Row],[התחלה]])),\"\")","v":""},{"$f":"IF(שעות_עבודה7[[#This Row],[שעות]]=\"\",\"\",\nIF(SUMPRODUCT((שעות_עבודה7[[#This Row],[שם העבודה]]=$N$9:$O$28)*שעות_עבודה7[[#This Row],[שעות]]*($P$9:$Q$28*24))=0,\"\",\nSUMPRODUCT((שעות_עבודה7[[#This Row],[שם העבודה]]=$N$9:$O$28)*שעות_עבודה7[[#This Row],[שעות]]*($P$9:$Q$28*24))))","v":""}]
[null,{"$f":"IF(שעות_עבודה7[[#This Row],[תאריך]]=\"\",\"\",ROW(A88))","v":""},null,null,null,null,null,null,{"$f":"IFERROR(IF(שעות_עבודה7[[#This Row],[סיום]]=\"\",\"\",שעות_עבודה7[[#This Row],[סיום]]-שעות_עבודה7[[#This Row],[התחלה]]+שעות_עבודה7[[#This Row],[הוספת שעות]]-שעות_עבודה7[[#This Row],[הפחתת שעות]]+(שעות_עבודה7[[#This Row],[סיום]]<שעות_עבודה7[[#This Row],[התחלה]])),\"\")","v":""},{"$f":"IF(שעות_עבודה7[[#This Row],[שעות]]=\"\",\"\",\nIF(SUMPRODUCT((שעות_עבודה7[[#This Row],[שם העבודה]]=$N$9:$O$28)*שעות_עבודה7[[#This Row],[שעות]]*($P$9:$Q$28*24))=0,\"\",\nSUMPRODUCT((שעות_עבודה7[[#This Row],[שם העבודה]]=$N$9:$O$28)*שעות_עבודה7[[#This Row],[שעות]]*($P$9:$Q$28*24))))","v":""}]
[null,{"$f":"IF(שעות_עבודה7[[#This Row],[תאריך]]=\"\",\"\",ROW(A89))","v":""},null,null,null,null,null,null,{"$f":"IFERROR(IF(שעות_עבודה7[[#This Row],[סיום]]=\"\",\"\",שעות_עבודה7[[#This Row],[סיום]]-שעות_עבודה7[[#This Row],[התחלה]]+שעות_עבודה7[[#This Row],[הוספת שעות]]-שעות_עבודה7[[#This Row],[הפחתת שעות]]+(שעות_עבודה7[[#This Row],[סיום]]<שעות_עבודה7[[#This Row],[התחלה]])),\"\")","v":""},{"$f":"IF(שעות_עבודה7[[#This Row],[שעות]]=\"\",\"\",\nIF(SUMPRODUCT((שעות_עבודה7[[#This Row],[שם העבודה]]=$N$9:$O$28)*שעות_עבודה7[[#This Row],[שעות]]*($P$9:$Q$28*24))=0,\"\",\nSUMPRODUCT((שעות_עבודה7[[#This Row],[שם העבודה]]=$N$9:$O$28)*שעות_עבודה7[[#This Row],[שעות]]*($P$9:$Q$28*24))))","v":""}]
[null,{"$f":"IF(שעות_עבודה7[[#This Row],[תאריך]]=\"\",\"\",ROW(A90))","v":""},null,null,null,null,null,null,{"$f":"IFERROR(IF(שעות_עבודה7[[#This Row],[סיום]]=\"\",\"\",שעות_עבודה7[[#This Row],[סיום]]-שעות_עבודה7[[#This Row],[התחלה]]+שעות_עבודה7[[#This Row],[הוספת שעות]]-שעות_עבודה7[[#This Row],[הפחתת שעות]]+(שעות_עבודה7[[#This Row],[סיום]]<שעות_עבודה7[[#This Row],[התחלה]])),\"\")","v":""},{"$f":"IF(שעות_עבודה7[[#This Row],[שעות]]=\"\",\"\",\nIF(SUMPRODUCT((שעות_עבודה7[[#This Row],[שם העבודה]]=$N$9:$O$28)*שעות_עבודה7[[#This Row],[שעות]]*($P$9:$Q$28*24))=0,\"\",\nSUMPRODUCT((שעות_עבודה7[[#This Row],[שם העבודה]]=$N$9:$O$28)*שעות_עבודה7[[#This Row],[שעות]]*($P$9:$Q$28*24))))","v":""}]
[null,{"$f":"IF(שעות_עבודה7[[#This Row],[תאריך]]=\"\",\"\",ROW(A91))","v":""},null,null,null,null,null,null,{"$f":"IFERROR(IF(שעות_עבודה7[[#This Row],[סיום]]=\"\",\"\",שעות_עבודה7[[#This Row],[סיום]]-שעות_עבודה7[[#This Row],[התחלה]]+שעות_עבודה7[[#This Row],[הוספת שעות]]-שעות_עבודה7[[#This Row],[הפחתת שעות]]+(שעות_עבודה7[[#This Row],[סיום]]<שעות_עבודה7[[#This Row],[התחלה]])),\"\")","v":""},{"$f":"IF(שעות_עבודה7[[#This Row],[שעות]]=\"\",\"\",\nIF(SUMPRODUCT((שעות_עבודה7[[#This Row],[שם העבודה]]=$N$9:$O$28)*שעות_עבודה7[[#This Row],[שעות]]*($P$9:$Q$28*24))=0,\"\",\nSUMPRODUCT((שעות_עבודה7[[#This Row],[שם העבודה]]=$N$9:$O$28)*שעות_עבודה7[[#This Row],[שעות]]*($P$9:$Q$28*24))))","v":""}]
[null,{"$f":"IF(שעות_עבודה7[[#This Row],[תאריך]]=\"\",\"\",ROW(A92))","v":""},null,null,null,null,null,null,{"$f":"IFERROR(IF(שעות_עבודה7[[#This Row],[סיום]]=\"\",\"\",שעות_עבודה7[[#This Row],[סיום]]-שעות_עבודה7[[#This Row],[התחלה]]+שעות_עבודה7[[#This Row],[הוספת שעות]]-שעות_עבודה7[[#This Row],[הפחתת שעות]]+(שעות_עבודה7[[#This Row],[סיום]]<שעות_עבודה7[[#This Row],[התחלה]])),\"\")","v":""},{"$f":"IF(שעות_עבודה7[[#This Row],[שעות]]=\"\",\"\",\nIF(SUMPRODUCT((שעות_עבודה7[[#This Row],[שם העבודה]]=$N$9:$O$28)*שעות_עבודה7[[#This Row],[שעות]]*($P$9:$Q$28*24))=0,\"\",\nSUMPRODUCT((שעות_עבודה7[[#This Row],[שם העבודה]]=$N$9:$O$28)*שעות_עבודה7[[#This Row],[שעות]]*($P$9:$Q$28*24))))","v":""}]
[null,{"$f":"IF(שעות_עבודה7[[#This Row],[תאריך]]=\"\",\"\",ROW(A93))","v":""},null,null,null,null,null,null,{"$f":"IFERROR(IF(שעות_עבודה7[[#This Row],[סיום]]=\"\",\"\",שעות_עבודה7[[#This Row],[סיום]]-שעות_עבודה7[[#This Row],[התחלה]]+שעות_עבודה7[[#This Row],[הוספת שעות]]-שעות_עבודה7[[#This Row],[הפחתת שעות]]+(שעות_עבודה7[[#This Row],[סיום]]<שעות_עבודה7[[#This Row],[התחלה]])),\"\")","v":""},{"$f":"IF(שעות_עבודה7[[#This Row],[שעות]]=\"\",\"\",\nIF(SUMPRODUCT((שעות_עבודה7[[#This Row],[שם העבודה]]=$N$9:$O$28)*שעות_עבודה7[[#This Row],[שעות]]*($P$9:$Q$28*24))=0,\"\",\nSUMPRODUCT((שעות_עבודה7[[#This Row],[שם העבודה]]=$N$9:$O$28)*שעות_עבודה7[[#This Row],[שעות]]*($P$9:$Q$28*24))))","v":""}]
[null,{"$f":"IF(שעות_עבודה7[[#This Row],[תאריך]]=\"\",\"\",ROW(A94))","v":""},null,null,null,null,null,null,{"$f":"IFERROR(IF(שעות_עבודה7[[#This Row],[סיום]]=\"\",\"\",שעות_עבודה7[[#This Row],[סיום]]-שעות_עבודה7[[#This Row],[התחלה]]+שעות_עבודה7[[#This Row],[הוספת שעות]]-שעות_עבודה7[[#This Row],[הפחתת שעות]]+(שעות_עבודה7[[#This Row],[סיום]]<שעות_עבודה7[[#This Row],[התחלה]])),\"\")","v":""},{"$f":"IF(שעות_עבודה7[[#This Row],[שעות]]=\"\",\"\",\nIF(SUMPRODUCT((שעות_עבודה7[[#This Row],[שם העבודה]]=$N$9:$O$28)*שעות_עבודה7[[#This Row],[שעות]]*($P$9:$Q$28*24))=0,\"\",\nSUMPRODUCT((שעות_עבודה7[[#This Row],[שם העבודה]]=$N$9:$O$28)*שעות_עבודה7[[#This Row],[שעות]]*($P$9:$Q$28*24))))","v":""}]
[null,{"$f":"IF(שעות_עבודה7[[#This Row],[תאריך]]=\"\",\"\",ROW(A95))","v":""},null,null,null,null,null,null,{"$f":"IFERROR(IF(שעות_עבודה7[[#This Row],[סיום]]=\"\",\"\",שעות_עבודה7[[#This Row],[סיום]]-שעות_עבודה7[[#This Row],[התחלה]]+שעות_עבודה7[[#This Row],[הוספת שעות]]-שעות_עבודה7[[#This Row],[הפחתת שעות]]+(שעות_עבודה7[[#This Row],[סיום]]<שעות_עבודה7[[#This Row],[התחלה]])),\"\")","v":""},{"$f":"IF(שעות_עבודה7[[#This Row],[שעות]]=\"\",\"\",\nIF(SUMPRODUCT((שעות_עבודה7[[#This Row],[שם העבודה]]=$N$9:$O$28)*שעות_עבודה7[[#This Row],[שעות]]*($P$9:$Q$28*24))=0,\"\",\nSUMPRODUCT((שעות_עבודה7[[#This Row],[שם העבודה]]=$N$9:$O$28)*שעות_עבודה7[[#This Row],[שעות]]*($P$9:$Q$28*24))))","v":""}]
[null,{"$f":"IF(שעות_עבודה7[[#This Row],[תאריך]]=\"\",\"\",ROW(A96))","v":""},null,null,null,null,null,null,{"$f":"IFERROR(IF(שעות_עבודה7[[#This Row],[סיום]]=\"\",\"\",שעות_עבודה7[[#This Row],[סיום]]-שעות_עבודה7[[#This Row],[התחלה]]+שעות_עבודה7[[#This Row],[הוספת שעות]]-שעות_עבודה7[[#This Row],[הפחתת שעות]]+(שעות_עבודה7[[#This Row],[סיום]]<שעות_עבודה7[[#This Row],[התחלה]])),\"\")","v":""},{"$f":"IF(שעות_עבודה7[[#This Row],[שעות]]=\"\",\"\",\nIF(SUMPRODUCT((שעות_עבודה7[[#This Row],[שם העבודה]]=$N$9:$O$28)*שעות_עבודה7[[#This Row],[שעות]]*($P$9:$Q$28*24))=0,\"\",\nSUMPRODUCT((שעות_עבודה7[[#This Row],[שם העבודה]]=$N$9:$O$28)*שעות_עבודה7[[#This Row],[שעות]]*($P$9:$Q$28*24))))","v":""}]
[null,{"$f":"IF(שעות_עבודה7[[#This Row],[תאריך]]=\"\",\"\",ROW(A97))","v":""},null,null,null,null,null,null,{"$f":"IFERROR(IF(שעות_עבודה7[[#This Row],[סיום]]=\"\",\"\",שעות_עבודה7[[#This Row],[סיום]]-שעות_עבודה7[[#This Row],[התחלה]]+שעות_עבודה7[[#This Row],[הוספת שעות]]-שעות_עבודה7[[#This Row],[הפחתת שעות]]+(שעות_עבודה7[[#This Row],[סיום]]<שעות_עבודה7[[#This Row],[התחלה]])),\"\")","v":""},{"$f":"IF(שעות_עבודה7[[#This Row],[שעות]]=\"\",\"\",\nIF(SUMPRODUCT((שעות_עבודה7[[#This Row],[שם העבודה]]=$N$9:$O$28)*שעות_עבודה7[[#This Row],[שעות]]*($P$9:$Q$28*24))=0,\"\",\nSUMPRODUCT((שעות_עבודה7[[#This Row],[שם העבודה]]=$N$9:$O$28)*שעות_עבודה7[[#This Row],[שעות]]*($P$9:$Q$28*24))))","v":""}]
[null,{"$f":"IF(שעות_עבודה7[[#This Row],[תאריך]]=\"\",\"\",ROW(A98))","v":""},null,null,null,null,null,null,{"$f":"IFERROR(IF(שעות_עבודה7[[#This Row],[סיום]]=\"\",\"\",שעות_עבודה7[[#This Row],[סיום]]-שעות_עבודה7[[#This Row],[התחלה]]+שעות_עבודה7[[#This Row],[הוספת שעות]]-שעות_עבודה7[[#This Row],[הפחתת שעות]]+(שעות_עבודה7[[#This Row],[סיום]]<שעות_עבודה7[[#This Row],[התחלה]])),\"\")","v":""},{"$f":"IF(שעות_עבודה7[[#This Row],[שעות]]=\"\",\"\",\nIF(SUMPRODUCT((שעות_עבודה7[[#This Row],[שם העבודה]]=$N$9:$O$28)*שעות_עבודה7[[#This Row],[שעות]]*($P$9:$Q$28*24))=0,\"\",\nSUMPRODUCT((שעות_עבודה7[[#This Row],[שם העבודה]]=$N$9:$O$28)*שעות_עבודה7[[#This Row],[שעות]]*($P$9:$Q$28*24))))","v":""}]
[null,{"$f":"IF(שעות_עבודה7[[#This Row],[תאריך]]=\"\",\"\",ROW(A99))","v":""},null,null,null,null,null,null,{"$f":"IFERROR(IF(שעות_עבודה7[[#This Row],[סיום]]=\"\",\"\",שעות_עבודה7[[#This Row],[סיום]]-שעות_עבודה7[[#This Row],[התחלה]]+שעות_עבודה7[[#This Row],[הוספת שעות]]-שעות_עבודה7[[#This Row],[הפחתת שעות]]+(שעות_עבודה7[[#This Row],[סיום]]<שעות_עבודה7[[#This Row],[התחלה]])),\"\")","v":""},{"$f":"IF(שעות_עבודה7[[#This Row],[שעות]]=\"\",\"\",\nIF(SUMPRODUCT((שעות_עבודה7[[#This Row],[שם העבודה]]=$N$9:$O$28)*שעות_עבודה7[[#This Row],[שעות]]*($P$9:$Q$28*24))=0,\"\",\nSUMPRODUCT((שעות_עבודה7[[#This Row],[שם העבודה]]=$N$9:$O$28)*שעות_עבודה7[[#This Row],[שעות]]*($P$9:$Q$28*24))))","v":""}]
[null,{"$f":"IF(שעות_עבודה7[[#This Row],[תאריך]]=\"\",\"\",ROW(A100))","v":""},null,null,null,null,null,null,{"$f":"IFERROR(IF(שעות_עבודה7[[#This Row],[סיום]]=\"\",\"\",שעות_עבודה7[[#This Row],[סיום]]-שעות_עבודה7[[#This Row],[התחלה]]+שעות_עבודה7[[#This Row],[הוספת שעות]]-שעות_עבודה7[[#This Row],[הפחתת שעות]]+(שעות_עבודה7[[#This Row],[סיום]]<שעות_עבודה7[[#This Row],[התחלה]])),\"\")","v":""},{"$f":"IF(שעות_עבודה7[[#This Row],[שעות]]=\"\",\"\",\nIF(SUMPRODUCT((שעות_עבודה7[[#This Row],[שם העבודה]]=$N$9:$O$28)*שעות_עבודה7[[#This Row],[שעות]]*($P$9:$Q$28*24))=0,\"\",\nSUMPRODUCT((שעות_עבודה7[[#This Row],[שם העבודה]]=$N$9:$O$28)*שעות_עבודה7[[#This Row],[שעות]]*($P$9:$Q$28*24))))","v":""}]
[null,{"$f":"IF(שעות_עבודה7[[#This Row],[תאריך]]=\"\",\"\",ROW(A101))","v":""},null,null,null,null,null,null,{"$f":"IFERROR(IF(שעות_עבודה7[[#This Row],[סיום]]=\"\",\"\",שעות_עבודה7[[#This Row],[סיום]]-שעות_עבודה7[[#This Row],[התחלה]]+שעות_עבודה7[[#This Row],[הוספת שעות]]-שעות_עבודה7[[#This Row],[הפחתת שעות]]+(שעות_עבודה7[[#This Row],[סיום]]<שעות_עבודה7[[#This Row],[התחלה]])),\"\")","v":""},{"$f":"IF(שעות_עבודה7[[#This Row],[שעות]]=\"\",\"\",\nIF(SUMPRODUCT((שעות_עבודה7[[#This Row],[שם העבודה]]=$N$9:$O$28)*שעות_עבודה7[[#This Row],[שעות]]*($P$9:$Q$28*24))=0,\"\",\nSUMPRODUCT((שעות_עבודה7[[#This Row],[שם העבודה]]=$N$9:$O$28)*שעות_עבודה7[[#This Row],[שעות]]*($P$9:$Q$28*24))))","v":""}]
[null,{"$f":"IF(שעות_עבודה7[[#This Row],[תאריך]]=\"\",\"\",ROW(A102))","v":""},null,null,null,null,null,null,{"$f":"IFERROR(IF(שעות_עבודה7[[#This Row],[סיום]]=\"\",\"\",שעות_עבודה7[[#This Row],[סיום]]-שעות_עבודה7[[#This Row],[התחלה]]+שעות_עבודה7[[#This Row],[הוספת שעות]]-שעות_עבודה7[[#This Row],[הפחתת שעות]]+(שעות_עבודה7[[#This Row],[סיום]]<שעות_עבודה7[[#This Row],[התחלה]])),\"\")","v":""},{"$f":"IF(שעות_עבודה7[[#This Row],[שעות]]=\"\",\"\",\nIF(SUMPRODUCT((שעות_עבודה7[[#This Row],[שם העבודה]]=$N$9:$O$28)*שעות_עבודה7[[#This Row],[שעות]]*($P$9:$Q$28*24))=0,\"\",\nSUMPRODUCT((שעות_עבודה7[[#This Row],[שם העבודה]]=$N$9:$O$28)*שעות_עבודה7[[#This Row],[שעות]]*($P$9:$Q$28*24))))","v":""}]
[null,{"$f":"IF(שעות_עבודה7[[#This Row],[תאריך]]=\"\",\"\",ROW(A103))","v":""},null,null,null,null,null,null,{"$f":"IFERROR(IF(שעות_עבודה7[[#This Row],[סיום]]=\"\",\"\",שעות_עבודה7[[#This Row],[סיום]]-שעות_עבודה7[[#This Row],[התחלה]]+שעות_עבודה7[[#This Row],[הוספת שעות]]-שעות_עבודה7[[#This Row],[הפחתת שעות]]+(שעות_עבודה7[[#This Row],[סיום]]<שעות_עבודה7[[#This Row],[התחלה]])),\"\")","v":""},{"$f":"IF(שעות_עבודה7[[#This Row],[שעות]]=\"\",\"\",\nIF(SUMPRODUCT((שעות_עבודה7[[#This Row],[שם העבודה]]=$N$9:$O$28)*שעות_עבודה7[[#This Row],[שעות]]*($P$9:$Q$28*24))=0,\"\",\nSUMPRODUCT((שעות_עבודה7[[#This Row],[שם העבודה]]=$N$9:$O$28)*שעות_עבודה7[[#This Row],[שעות]]*($P$9:$Q$28*24))))","v":""}]
[null,{"$f":"IF(שעות_עבודה7[[#This Row],[תאריך]]=\"\",\"\",ROW(A104))","v":""},null,null,null,null,null,null,{"$f":"IFERROR(IF(שעות_עבודה7[[#This Row],[סיום]]=\"\",\"\",שעות_עבודה7[[#This Row],[סיום]]-שעות_עבודה7[[#This Row],[התחלה]]+שעות_עבודה7[[#This Row],[הוספת שעות]]-שעות_עבודה7[[#This Row],[הפחתת שעות]]+(שעות_עבודה7[[#This Row],[סיום]]<שעות_עבודה7[[#This Row],[התחלה]])),\"\")","v":""},{"$f":"IF(שעות_עבודה7[[#This Row],[שעות]]=\"\",\"\",\nIF(SUMPRODUCT((שעות_עבודה7[[#This Row],[שם העבודה]]=$N$9:$O$28)*שעות_עבודה7[[#This Row],[שעות]]*($P$9:$Q$28*24))=0,\"\",\nSUMPRODUCT((שעות_עבודה7[[#This Row],[שם העבודה]]=$N$9:$O$28)*שעות_עבודה7[[#This Row],[שעות]]*($P$9:$Q$28*24))))","v":""}]
[null,{"$f":"IF(שעות_עבודה7[[#This Row],[תאריך]]=\"\",\"\",ROW(A105))","v":""},null,null,null,null,null,null,{"$f":"IFERROR(IF(שעות_עבודה7[[#This Row],[סיום]]=\"\",\"\",שעות_עבודה7[[#This Row],[סיום]]-שעות_עבודה7[[#This Row],[התחלה]]+שעות_עבודה7[[#This Row],[הוספת שעות]]-שעות_עבודה7[[#This Row],[הפחתת שעות]]+(שעות_עבודה7[[#This Row],[סיום]]<שעות_עבודה7[[#This Row],[התחלה]])),\"\")","v":""},{"$f":"IF(שעות_עבודה7[[#This Row],[שעות]]=\"\",\"\",\nIF(SUMPRODUCT((שעות_עבודה7[[#This Row],[שם העבודה]]=$N$9:$O$28)*שעות_עבודה7[[#This Row],[שעות]]*($P$9:$Q$28*24))=0,\"\",\nSUMPRODUCT((שעות_עבודה7[[#This Row],[שם העבודה]]=$N$9:$O$28)*שעות_עבודה7[[#This Row],[שעות]]*($P$9:$Q$28*24))))","v":""}]
[null,{"$f":"IF(שעות_עבודה7[[#This Row],[תאריך]]=\"\",\"\",ROW(A106))","v":""},null,null,null,null,null,null,{"$f":"IFERROR(IF(שעות_עבודה7[[#This Row],[סיום]]=\"\",\"\",שעות_עבודה7[[#This Row],[סיום]]-שעות_עבודה7[[#This Row],[התחלה]]+שעות_עבודה7[[#This Row],[הוספת שעות]]-שעות_עבודה7[[#This Row],[הפחתת שעות]]+(שעות_עבודה7[[#This Row],[סיום]]<שעות_עבודה7[[#This Row],[התחלה]])),\"\")","v":""},{"$f":"IF(שעות_עבודה7[[#This Row],[שעות]]=\"\",\"\",\nIF(SUMPRODUCT((שעות_עבודה7[[#This Row],[שם העבודה]]=$N$9:$O$28)*שעות_עבודה7[[#This Row],[שעות]]*($P$9:$Q$28*24))=0,\"\",\nSUMPRODUCT((שעות_עבודה7[[#This Row],[שם העבודה]]=$N$9:$O$28)*שעות_עבודה7[[#This Row],[שעות]]*($P$9:$Q$28*24))))","v":""}]
[null,{"$f":"IF(שעות_עבודה7[[#This Row],[תאריך]]=\"\",\"\",ROW(A107))","v":""},null,null,null,null,null,null,{"$f":"IFERROR(IF(שעות_עבודה7[[#This Row],[סיום]]=\"\",\"\",שעות_עבודה7[[#This Row],[סיום]]-שעות_עבודה7[[#This Row],[התחלה]]+שעות_עבודה7[[#This Row],[הוספת שעות]]-שעות_עבודה7[[#This Row],[הפחתת שעות]]+(שעות_עבודה7[[#This Row],[סיום]]<שעות_עבודה7[[#This Row],[התחלה]])),\"\")","v":""},{"$f":"IF(שעות_עבודה7[[#This Row],[שעות]]=\"\",\"\",\nIF(SUMPRODUCT((שעות_עבודה7[[#This Row],[שם העבודה]]=$N$9:$O$28)*שעות_עבודה7[[#This Row],[שעות]]*($P$9:$Q$28*24))=0,\"\",\nSUMPRODUCT((שעות_עבודה7[[#This Row],[שם העבודה]]=$N$9:$O$28)*שעות_עבודה7[[#This Row],[שעות]]*($P$9:$Q$28*24))))","v":""}]
[null,{"$f":"IF(שעות_עבודה7[[#This Row],[תאריך]]=\"\",\"\",ROW(A108))","v":""},null,null,null,null,null,null,{"$f":"IFERROR(IF(שעות_עבודה7[[#This Row],[סיום]]=\"\",\"\",שעות_עבודה7[[#This Row],[סיום]]-שעות_עבודה7[[#This Row],[התחלה]]+שעות_עבודה7[[#This Row],[הוספת שעות]]-שעות_עבודה7[[#This Row],[הפחתת שעות]]+(שעות_עבודה7[[#This Row],[סיום]]<שעות_עבודה7[[#This Row],[התחלה]])),\"\")","v":""},{"$f":"IF(שעות_עבודה7[[#This Row],[שעות]]=\"\",\"\",\nIF(SUMPRODUCT((שעות_עבודה7[[#This Row],[שם העבודה]]=$N$9:$O$28)*שעות_עבודה7[[#This Row],[שעות]]*($P$9:$Q$28*24))=0,\"\",\nSUMPRODUCT((שעות_עבודה7[[#This Row],[שם העבודה]]=$N$9:$O$28)*שעות_עבודה7[[#This Row],[שעות]]*($P$9:$Q$28*24))))","v":""}]
[null,{"$f":"IF(שעות_עבודה7[[#This Row],[תאריך]]=\"\",\"\",ROW(A109))","v":""},null,null,null,null,null,null,{"$f":"IFERROR(IF(שעות_עבודה7[[#This Row],[סיום]]=\"\",\"\",שעות_עבודה7[[#This Row],[סיום]]-שעות_עבודה7[[#This Row],[התחלה]]+שעות_עבודה7[[#This Row],[הוספת שעות]]-שעות_עבודה7[[#This Row],[הפחתת שעות]]+(שעות_עבודה7[[#This Row],[סיום]]<שעות_עבודה7[[#This Row],[התחלה]])),\"\")","v":""},{"$f":"IF(שעות_עבודה7[[#This Row],[שעות]]=\"\",\"\",\nIF(SUMPRODUCT((שעות_עבודה7[[#This Row],[שם העבודה]]=$N$9:$O$28)*שעות_עבודה7[[#This Row],[שעות]]*($P$9:$Q$28*24))=0,\"\",\nSUMPRODUCT((שעות_עבודה7[[#This Row],[שם העבודה]]=$N$9:$O$28)*שעות_עבודה7[[#This Row],[שעות]]*($P$9:$Q$28*24))))","v":""}]
[null,{"$f":"IF(שעות_עבודה7[[#This Row],[תאריך]]=\"\",\"\",ROW(A110))","v":""},null,null,null,null,null,null,{"$f":"IFERROR(IF(שעות_עבודה7[[#This Row],[סיום]]=\"\",\"\",שעות_עבודה7[[#This Row],[סיום]]-שעות_עבודה7[[#This Row],[התחלה]]+שעות_עבודה7[[#This Row],[הוספת שעות]]-שעות_עבודה7[[#This Row],[הפחתת שעות]]+(שעות_עבודה7[[#This Row],[סיום]]<שעות_עבודה7[[#This Row],[התחלה]])),\"\")","v":""},{"$f":"IF(שעות_עבודה7[[#This Row],[שעות]]=\"\",\"\",\nIF(SUMPRODUCT((שעות_עבודה7[[#This Row],[שם העבודה]]=$N$9:$O$28)*שעות_עבודה7[[#This Row],[שעות]]*($P$9:$Q$28*24))=0,\"\",\nSUMPRODUCT((שעות_עבודה7[[#This Row],[שם העבודה]]=$N$9:$O$28)*שעות_עבודה7[[#This Row],[שעות]]*($P$9:$Q$28*24))))","v":""}]
[null,{"$f":"IF(שעות_עבודה7[[#This Row],[תאריך]]=\"\",\"\",ROW(A111))","v":""},null,null,null,null,null,null,{"$f":"IFERROR(IF(שעות_עבודה7[[#This Row],[סיום]]=\"\",\"\",שעות_עבודה7[[#This Row],[סיום]]-שעות_עבודה7[[#This Row],[התחלה]]+שעות_עבודה7[[#This Row],[הוספת שעות]]-שעות_עבודה7[[#This Row],[הפחתת שעות]]+(שעות_עבודה7[[#This Row],[סיום]]<שעות_עבודה7[[#This Row],[התחלה]])),\"\")","v":""},{"$f":"IF(שעות_עבודה7[[#This Row],[שעות]]=\"\",\"\",\nIF(SUMPRODUCT((שעות_עבודה7[[#This Row],[שם העבודה]]=$N$9:$O$28)*שעות_עבודה7[[#This Row],[שעות]]*($P$9:$Q$28*24))=0,\"\",\nSUMPRODUCT((שעות_עבודה7[[#This Row],[שם העבודה]]=$N$9:$O$28)*שעות_עבודה7[[#This Row],[שעות]]*($P$9:$Q$28*24))))","v":""}]
[null,{"$f":"IF(שעות_עבודה7[[#This Row],[תאריך]]=\"\",\"\",ROW(A112))","v":""},null,null,null,null,null,null,{"$f":"IFERROR(IF(שעות_עבודה7[[#This Row],[סיום]]=\"\",\"\",שעות_עבודה7[[#This Row],[סיום]]-שעות_עבודה7[[#This Row],[התחלה]]+שעות_עבודה7[[#This Row],[הוספת שעות]]-שעות_עבודה7[[#This Row],[הפחתת שעות]]+(שעות_עבודה7[[#This Row],[סיום]]<שעות_עבודה7[[#This Row],[התחלה]])),\"\")","v":""},{"$f":"IF(שעות_עבודה7[[#This Row],[שעות]]=\"\",\"\",\nIF(SUMPRODUCT((שעות_עבודה7[[#This Row],[שם העבודה]]=$N$9:$O$28)*שעות_עבודה7[[#This Row],[שעות]]*($P$9:$Q$28*24))=0,\"\",\nSUMPRODUCT((שעות_עבודה7[[#This Row],[שם העבודה]]=$N$9:$O$28)*שעות_עבודה7[[#This Row],[שעות]]*($P$9:$Q$28*24))))","v":""}]
[null,{"$f":"IF(שעות_עבודה7[[#This Row],[תאריך]]=\"\",\"\",ROW(A113))","v":""},null,null,null,null,null,null,{"$f":"IFERROR(IF(שעות_עבודה7[[#This Row],[סיום]]=\"\",\"\",שעות_עבודה7[[#This Row],[סיום]]-שעות_עבודה7[[#This Row],[התחלה]]+שעות_עבודה7[[#This Row],[הוספת שעות]]-שעות_עבודה7[[#This Row],[הפחתת שעות]]+(שעות_עבודה7[[#This Row],[סיום]]<שעות_עבודה7[[#This Row],[התחלה]])),\"\")","v":""},{"$f":"IF(שעות_עבודה7[[#This Row],[שעות]]=\"\",\"\",\nIF(SUMPRODUCT((שעות_עבודה7[[#This Row],[שם העבודה]]=$N$9:$O$28)*שעות_עבודה7[[#This Row],[שעות]]*($P$9:$Q$28*24))=0,\"\",\nSUMPRODUCT((שעות_עבודה7[[#This Row],[שם העבודה]]=$N$9:$O$28)*שעות_עבודה7[[#This Row],[שעות]]*($P$9:$Q$28*24))))","v":""}]
[null,{"$f":"IF(שעות_עבודה7[[#This Row],[תאריך]]=\"\",\"\",ROW(A114))","v":""},null,null,null,null,null,null,{"$f":"IFERROR(IF(שעות_עבודה7[[#This Row],[סיום]]=\"\",\"\",שעות_עבודה7[[#This Row],[סיום]]-שעות_עבודה7[[#This Row],[התחלה]]+שעות_עבודה7[[#This Row],[הוספת שעות]]-שעות_עבודה7[[#This Row],[הפחתת שעות]]+(שעות_עבודה7[[#This Row],[סיום]]<שעות_עבודה7[[#This Row],[התחלה]])),\"\")","v":""},{"$f":"IF(שעות_עבודה7[[#This Row],[שעות]]=\"\",\"\",\nIF(SUMPRODUCT((שעות_עבודה7[[#This Row],[שם העבודה]]=$N$9:$O$28)*שעות_עבודה7[[#This Row],[שעות]]*($P$9:$Q$28*24))=0,\"\",\nSUMPRODUCT((שעות_עבודה7[[#This Row],[שם העבודה]]=$N$9:$O$28)*שעות_עבודה7[[#This Row],[שעות]]*($P$9:$Q$28*24))))","v":""}]
[null,{"$f":"IF(שעות_עבודה7[[#This Row],[תאריך]]=\"\",\"\",ROW(A115))","v":""},null,null,null,null,null,null,{"$f":"IFERROR(IF(שעות_עבודה7[[#This Row],[סיום]]=\"\",\"\",שעות_עבודה7[[#This Row],[סיום]]-שעות_עבודה7[[#This Row],[התחלה]]+שעות_עבודה7[[#This Row],[הוספת שעות]]-שעות_עבודה7[[#This Row],[הפחתת שעות]]+(שעות_עבודה7[[#This Row],[סיום]]<שעות_עבודה7[[#This Row],[התחלה]])),\"\")","v":""},{"$f":"IF(שעות_עבודה7[[#This Row],[שעות]]=\"\",\"\",\nIF(SUMPRODUCT((שעות_עבודה7[[#This Row],[שם העבודה]]=$N$9:$O$28)*שעות_עבודה7[[#This Row],[שעות]]*($P$9:$Q$28*24))=0,\"\",\nSUMPRODUCT((שעות_עבודה7[[#This Row],[שם העבודה]]=$N$9:$O$28)*שעות_עבודה7[[#This Row],[שעות]]*($P$9:$Q$28*24))))","v":""}]
[null,{"$f":"IF(שעות_עבודה7[[#This Row],[תאריך]]=\"\",\"\",ROW(A116))","v":""},null,null,null,null,null,null,{"$f":"IFERROR(IF(שעות_עבודה7[[#This Row],[סיום]]=\"\",\"\",שעות_עבודה7[[#This Row],[סיום]]-שעות_עבודה7[[#This Row],[התחלה]]+שעות_עבודה7[[#This Row],[הוספת שעות]]-שעות_עבודה7[[#This Row],[הפחתת שעות]]+(שעות_עבודה7[[#This Row],[סיום]]<שעות_עבודה7[[#This Row],[התחלה]])),\"\")","v":""},{"$f":"IF(שעות_עבודה7[[#This Row],[שעות]]=\"\",\"\",\nIF(SUMPRODUCT((שעות_עבודה7[[#This Row],[שם העבודה]]=$N$9:$O$28)*שעות_עבודה7[[#This Row],[שעות]]*($P$9:$Q$28*24))=0,\"\",\nSUMPRODUCT((שעות_עבודה7[[#This Row],[שם העבודה]]=$N$9:$O$28)*שעות_עבודה7[[#This Row],[שעות]]*($P$9:$Q$28*24))))","v":""}]
[null,{"$f":"IF(שעות_עבודה7[[#This Row],[תאריך]]=\"\",\"\",ROW(A117))","v":""},null,null,null,null,null,null,{"$f":"IFERROR(IF(שעות_עבודה7[[#This Row],[סיום]]=\"\",\"\",שעות_עבודה7[[#This Row],[סיום]]-שעות_עבודה7[[#This Row],[התחלה]]+שעות_עבודה7[[#This Row],[הוספת שעות]]-שעות_עבודה7[[#This Row],[הפחתת שעות]]+(שעות_עבודה7[[#This Row],[סיום]]<שעות_עבודה7[[#This Row],[התחלה]])),\"\")","v":""},{"$f":"IF(שעות_עבודה7[[#This Row],[שעות]]=\"\",\"\",\nIF(SUMPRODUCT((שעות_עבודה7[[#This Row],[שם העבודה]]=$N$9:$O$28)*שעות_עבודה7[[#This Row],[שעות]]*($P$9:$Q$28*24))=0,\"\",\nSUMPRODUCT((שעות_עבודה7[[#This Row],[שם העבודה]]=$N$9:$O$28)*שעות_עבודה7[[#This Row],[שעות]]*($P$9:$Q$28*24))))","v":""}]
[null,{"$f":"IF(שעות_עבודה7[[#This Row],[תאריך]]=\"\",\"\",ROW(A118))","v":""},null,null,null,null,null,null,{"$f":"IFERROR(IF(שעות_עבודה7[[#This Row],[סיום]]=\"\",\"\",שעות_עבודה7[[#This Row],[סיום]]-שעות_עבודה7[[#This Row],[התחלה]]+שעות_עבודה7[[#This Row],[הוספת שעות]]-שעות_עבודה7[[#This Row],[הפחתת שעות]]+(שעות_עבודה7[[#This Row],[סיום]]<שעות_עבודה7[[#This Row],[התחלה]])),\"\")","v":""},{"$f":"IF(שעות_עבודה7[[#This Row],[שעות]]=\"\",\"\",\nIF(SUMPRODUCT((שעות_עבודה7[[#This Row],[שם העבודה]]=$N$9:$O$28)*שעות_עבודה7[[#This Row],[שעות]]*($P$9:$Q$28*24))=0,\"\",\nSUMPRODUCT((שעות_עבודה7[[#This Row],[שם העבודה]]=$N$9:$O$28)*שעות_עבודה7[[#This Row],[שעות]]*($P$9:$Q$28*24))))","v":""}]
[null,{"$f":"IF(שעות_עבודה7[[#This Row],[תאריך]]=\"\",\"\",ROW(A119))","v":""},null,null,null,null,null,null,{"$f":"IFERROR(IF(שעות_עבודה7[[#This Row],[סיום]]=\"\",\"\",שעות_עבודה7[[#This Row],[סיום]]-שעות_עבודה7[[#This Row],[התחלה]]+שעות_עבודה7[[#This Row],[הוספת שעות]]-שעות_עבודה7[[#This Row],[הפחתת שעות]]+(שעות_עבודה7[[#This Row],[סיום]]<שעות_עבודה7[[#This Row],[התחלה]])),\"\")","v":""},{"$f":"IF(שעות_עבודה7[[#This Row],[שעות]]=\"\",\"\",\nIF(SUMPRODUCT((שעות_עבודה7[[#This Row],[שם העבודה]]=$N$9:$O$28)*שעות_עבודה7[[#This Row],[שעות]]*($P$9:$Q$28*24))=0,\"\",\nSUMPRODUCT((שעות_עבודה7[[#This Row],[שם העבודה]]=$N$9:$O$28)*שעות_עבודה7[[#This Row],[שעות]]*($P$9:$Q$28*24))))","v":""}]
[null,{"$f":"IF(שעות_עבודה7[[#This Row],[תאריך]]=\"\",\"\",ROW(A120))","v":""},null,null,null,null,null,null,{"$f":"IFERROR(IF(שעות_עבודה7[[#This Row],[סיום]]=\"\",\"\",שעות_עבודה7[[#This Row],[סיום]]-שעות_עבודה7[[#This Row],[התחלה]]+שעות_עבודה7[[#This Row],[הוספת שעות]]-שעות_עבודה7[[#This Row],[הפחתת שעות]]+(שעות_עבודה7[[#This Row],[סיום]]<שעות_עבודה7[[#This Row],[התחלה]])),\"\")","v":""},{"$f":"IF(שעות_עבודה7[[#This Row],[שעות]]=\"\",\"\",\nIF(SUMPRODUCT((שעות_עבודה7[[#This Row],[שם העבודה]]=$N$9:$O$28)*שעות_עבודה7[[#This Row],[שעות]]*($P$9:$Q$28*24))=0,\"\",\nSUMPRODUCT((שעות_עבודה7[[#This Row],[שם העבודה]]=$N$9:$O$28)*שעות_עבודה7[[#This Row],[שעות]]*($P$9:$Q$28*24))))","v":""}]
[null,{"$f":"IF(שעות_עבודה7[[#This Row],[תאריך]]=\"\",\"\",ROW(A121))","v":""},null,null,null,null,null,null,{"$f":"IFERROR(IF(שעות_עבודה7[[#This Row],[סיום]]=\"\",\"\",שעות_עבודה7[[#This Row],[סיום]]-שעות_עבודה7[[#This Row],[התחלה]]+שעות_עבודה7[[#This Row],[הוספת שעות]]-שעות_עבודה7[[#This Row],[הפחתת שעות]]+(שעות_עבודה7[[#This Row],[סיום]]<שעות_עבודה7[[#This Row],[התחלה]])),\"\")","v":""},{"$f":"IF(שעות_עבודה7[[#This Row],[שעות]]=\"\",\"\",\nIF(SUMPRODUCT((שעות_עבודה7[[#This Row],[שם העבודה]]=$N$9:$O$28)*שעות_עבודה7[[#This Row],[שעות]]*($P$9:$Q$28*24))=0,\"\",\nSUMPRODUCT((שעות_עבודה7[[#This Row],[שם העבודה]]=$N$9:$O$28)*שעות_עבודה7[[#This Row],[שעות]]*($P$9:$Q$28*24))))","v":""}]
[null,{"$f":"IF(שעות_עבודה7[[#This Row],[תאריך]]=\"\",\"\",ROW(A122))","v":""},null,null,null,null,null,null,{"$f":"IFERROR(IF(שעות_עבודה7[[#This Row],[סיום]]=\"\",\"\",שעות_עבודה7[[#This Row],[סיום]]-שעות_עבודה7[[#This Row],[התחלה]]+שעות_עבודה7[[#This Row],[הוספת שעות]]-שעות_עבודה7[[#This Row],[הפחתת שעות]]+(שעות_עבודה7[[#This Row],[סיום]]<שעות_עבודה7[[#This Row],[התחלה]])),\"\")","v":""},{"$f":"IF(שעות_עבודה7[[#This Row],[שעות]]=\"\",\"\",\nIF(SUMPRODUCT((שעות_עבודה7[[#This Row],[שם העבודה]]=$N$9:$O$28)*שעות_עבודה7[[#This Row],[שעות]]*($P$9:$Q$28*24))=0,\"\",\nSUMPRODUCT((שעות_עבודה7[[#This Row],[שם העבודה]]=$N$9:$O$28)*שעות_עבודה7[[#This Row],[שעות]]*($P$9:$Q$28*24))))","v":""}]
[null,{"$f":"IF(שעות_עבודה7[[#This Row],[תאריך]]=\"\",\"\",ROW(A123))","v":""},null,null,null,null,null,null,{"$f":"IFERROR(IF(שעות_עבודה7[[#This Row],[סיום]]=\"\",\"\",שעות_עבודה7[[#This Row],[סיום]]-שעות_עבודה7[[#This Row],[התחלה]]+שעות_עבודה7[[#This Row],[הוספת שעות]]-שעות_עבודה7[[#This Row],[הפחתת שעות]]+(שעות_עבודה7[[#This Row],[סיום]]<שעות_עבודה7[[#This Row],[התחלה]])),\"\")","v":""},{"$f":"IF(שעות_עבודה7[[#This Row],[שעות]]=\"\",\"\",\nIF(SUMPRODUCT((שעות_עבודה7[[#This Row],[שם העבודה]]=$N$9:$O$28)*שעות_עבודה7[[#This Row],[שעות]]*($P$9:$Q$28*24))=0,\"\",\nSUMPRODUCT((שעות_עבודה7[[#This Row],[שם העבודה]]=$N$9:$O$28)*שעות_עבודה7[[#This Row],[שעות]]*($P$9:$Q$28*24))))","v":""}]
[null,{"$f":"IF(שעות_עבודה7[[#This Row],[תאריך]]=\"\",\"\",ROW(A124))","v":""},null,null,null,null,null,null,{"$f":"IFERROR(IF(שעות_עבודה7[[#This Row],[סיום]]=\"\",\"\",שעות_עבודה7[[#This Row],[סיום]]-שעות_עבודה7[[#This Row],[התחלה]]+שעות_עבודה7[[#This Row],[הוספת שעות]]-שעות_עבודה7[[#This Row],[הפחתת שעות]]+(שעות_עבודה7[[#This Row],[סיום]]<שעות_עבודה7[[#This Row],[התחלה]])),\"\")","v":""},{"$f":"IF(שעות_עבודה7[[#This Row],[שעות]]=\"\",\"\",\nIF(SUMPRODUCT((שעות_עבודה7[[#This Row],[שם העבודה]]=$N$9:$O$28)*שעות_עבודה7[[#This Row],[שעות]]*($P$9:$Q$28*24))=0,\"\",\nSUMPRODUCT((שעות_עבודה7[[#This Row],[שם העבודה]]=$N$9:$O$28)*שעות_עבודה7[[#This Row],[שעות]]*($P$9:$Q$28*24))))","v":""}]
[null,{"$f":"IF(שעות_עבודה7[[#This Row],[תאריך]]=\"\",\"\",ROW(A125))","v":""},null,null,null,null,null,null,{"$f":"IFERROR(IF(שעות_עבודה7[[#This Row],[סיום]]=\"\",\"\",שעות_עבודה7[[#This Row],[סיום]]-שעות_עבודה7[[#This Row],[התחלה]]+שעות_עבודה7[[#This Row],[הוספת שעות]]-שעות_עבודה7[[#This Row],[הפחתת שעות]]+(שעות_עבודה7[[#This Row],[סיום]]<שעות_עבודה7[[#This Row],[התחלה]])),\"\")","v":""},{"$f":"IF(שעות_עבודה7[[#This Row],[שעות]]=\"\",\"\",\nIF(SUMPRODUCT((שעות_עבודה7[[#This Row],[שם העבודה]]=$N$9:$O$28)*שעות_עבודה7[[#This Row],[שעות]]*($P$9:$Q$28*24))=0,\"\",\nSUMPRODUCT((שעות_עבודה7[[#This Row],[שם העבודה]]=$N$9:$O$28)*שעות_עבודה7[[#This Row],[שעות]]*($P$9:$Q$28*24))))","v":""}]
[null,{"$f":"IF(שעות_עבודה7[[#This Row],[תאריך]]=\"\",\"\",ROW(A126))","v":""},null,null,null,null,null,null,{"$f":"IFERROR(IF(שעות_עבודה7[[#This Row],[סיום]]=\"\",\"\",שעות_עבודה7[[#This Row],[סיום]]-שעות_עבודה7[[#This Row],[התחלה]]+שעות_עבודה7[[#This Row],[הוספת שעות]]-שעות_עבודה7[[#This Row],[הפחתת שעות]]+(שעות_עבודה7[[#This Row],[סיום]]<שעות_עבודה7[[#This Row],[התחלה]])),\"\")","v":""},{"$f":"IF(שעות_עבודה7[[#This Row],[שעות]]=\"\",\"\",\nIF(SUMPRODUCT((שעות_עבודה7[[#This Row],[שם העבודה]]=$N$9:$O$28)*שעות_עבודה7[[#This Row],[שעות]]*($P$9:$Q$28*24))=0,\"\",\nSUMPRODUCT((שעות_עבודה7[[#This Row],[שם העבודה]]=$N$9:$O$28)*שעות_עבודה7[[#This Row],[שעות]]*($P$9:$Q$28*24))))","v":""}]
[null,{"$f":"IF(שעות_עבודה7[[#This Row],[תאריך]]=\"\",\"\",ROW(A127))","v":""},null,null,null,null,null,null,{"$f":"IFERROR(IF(שעות_עבודה7[[#This Row],[סיום]]=\"\",\"\",שעות_עבודה7[[#This Row],[סיום]]-שעות_עבודה7[[#This Row],[התחלה]]+שעות_עבודה7[[#This Row],[הוספת שעות]]-שעות_עבודה7[[#This Row],[הפחתת שעות]]+(שעות_עבודה7[[#This Row],[סיום]]<שעות_עבודה7[[#This Row],[התחלה]])),\"\")","v":""},{"$f":"IF(שעות_עבודה7[[#This Row],[שעות]]=\"\",\"\",\nIF(SUMPRODUCT((שעות_עבודה7[[#This Row],[שם העבודה]]=$N$9:$O$28)*שעות_עבודה7[[#This Row],[שעות]]*($P$9:$Q$28*24))=0,\"\",\nSUMPRODUCT((שעות_עבודה7[[#This Row],[שם העבודה]]=$N$9:$O$28)*שעות_עבודה7[[#This Row],[שעות]]*($P$9:$Q$28*24))))","v":""}]
[null,{"$f":"IF(שעות_עבודה7[[#This Row],[תאריך]]=\"\",\"\",ROW(A128))","v":""},null,null,null,null,null,null,{"$f":"IFERROR(IF(שעות_עבודה7[[#This Row],[סיום]]=\"\",\"\",שעות_עבודה7[[#This Row],[סיום]]-שעות_עבודה7[[#This Row],[התחלה]]+שעות_עבודה7[[#This Row],[הוספת שעות]]-שעות_עבודה7[[#This Row],[הפחתת שעות]]+(שעות_עבודה7[[#This Row],[סיום]]<שעות_עבודה7[[#This Row],[התחלה]])),\"\")","v":""},{"$f":"IF(שעות_עבודה7[[#This Row],[שעות]]=\"\",\"\",\nIF(SUMPRODUCT((שעות_עבודה7[[#This Row],[שם העבודה]]=$N$9:$O$28)*שעות_עבודה7[[#This Row],[שעות]]*($P$9:$Q$28*24))=0,\"\",\nSUMPRODUCT((שעות_עבודה7[[#This Row],[שם העבודה]]=$N$9:$O$28)*שעות_עבודה7[[#This Row],[שעות]]*($P$9:$Q$28*24))))","v":""}]
[null,{"$f":"IF(שעות_עבודה7[[#This Row],[תאריך]]=\"\",\"\",ROW(A129))","v":""},null,null,null,null,null,null,{"$f":"IFERROR(IF(שעות_עבודה7[[#This Row],[סיום]]=\"\",\"\",שעות_עבודה7[[#This Row],[סיום]]-שעות_עבודה7[[#This Row],[התחלה]]+שעות_עבודה7[[#This Row],[הוספת שעות]]-שעות_עבודה7[[#This Row],[הפחתת שעות]]+(שעות_עבודה7[[#This Row],[סיום]]<שעות_עבודה7[[#This Row],[התחלה]])),\"\")","v":""},{"$f":"IF(שעות_עבודה7[[#This Row],[שעות]]=\"\",\"\",\nIF(SUMPRODUCT((שעות_עבודה7[[#This Row],[שם העבודה]]=$N$9:$O$28)*שעות_עבודה7[[#This Row],[שעות]]*($P$9:$Q$28*24))=0,\"\",\nSUMPRODUCT((שעות_עבודה7[[#This Row],[שם העבודה]]=$N$9:$O$28)*שעות_עבודה7[[#This Row],[שעות]]*($P$9:$Q$28*24))))","v":""}]
[null,{"$f":"IF(שעות_עבודה7[[#This Row],[תאריך]]=\"\",\"\",ROW(A130))","v":""},null,null,null,null,null,null,{"$f":"IFERROR(IF(שעות_עבודה7[[#This Row],[סיום]]=\"\",\"\",שעות_עבודה7[[#This Row],[סיום]]-שעות_עבודה7[[#This Row],[התחלה]]+שעות_עבודה7[[#This Row],[הוספת שעות]]-שעות_עבודה7[[#This Row],[הפחתת שעות]]+(שעות_עבודה7[[#This Row],[סיום]]<שעות_עבודה7[[#This Row],[התחלה]])),\"\")","v":""},{"$f":"IF(שעות_עבודה7[[#This Row],[שעות]]=\"\",\"\",\nIF(SUMPRODUCT((שעות_עבודה7[[#This Row],[שם העבודה]]=$N$9:$O$28)*שעות_עבודה7[[#This Row],[שעות]]*($P$9:$Q$28*24))=0,\"\",\nSUMPRODUCT((שעות_עבודה7[[#This Row],[שם העבודה]]=$N$9:$O$28)*שעות_עבודה7[[#This Row],[שעות]]*($P$9:$Q$28*24))))","v":""}]
[null,{"$f":"IF(שעות_עבודה7[[#This Row],[תאריך]]=\"\",\"\",ROW(A131))","v":""},null,null,null,null,null,null,{"$f":"IFERROR(IF(שעות_עבודה7[[#This Row],[סיום]]=\"\",\"\",שעות_עבודה7[[#This Row],[סיום]]-שעות_עבודה7[[#This Row],[התחלה]]+שעות_עבודה7[[#This Row],[הוספת שעות]]-שעות_עבודה7[[#This Row],[הפחתת שעות]]+(שעות_עבודה7[[#This Row],[סיום]]<שעות_עבודה7[[#This Row],[התחלה]])),\"\")","v":""},{"$f":"IF(שעות_עבודה7[[#This Row],[שעות]]=\"\",\"\",\nIF(SUMPRODUCT((שעות_עבודה7[[#This Row],[שם העבודה]]=$N$9:$O$28)*שעות_עבודה7[[#This Row],[שעות]]*($P$9:$Q$28*24))=0,\"\",\nSUMPRODUCT((שעות_עבודה7[[#This Row],[שם העבודה]]=$N$9:$O$28)*שעות_עבודה7[[#This Row],[שעות]]*($P$9:$Q$28*24))))","v":""}]
[null,{"$f":"IF(שעות_עבודה7[[#This Row],[תאריך]]=\"\",\"\",ROW(A132))","v":""},null,null,null,null,null,null,{"$f":"IFERROR(IF(שעות_עבודה7[[#This Row],[סיום]]=\"\",\"\",שעות_עבודה7[[#This Row],[סיום]]-שעות_עבודה7[[#This Row],[התחלה]]+שעות_עבודה7[[#This Row],[הוספת שעות]]-שעות_עבודה7[[#This Row],[הפחתת שעות]]+(שעות_עבודה7[[#This Row],[סיום]]<שעות_עבודה7[[#This Row],[התחלה]])),\"\")","v":""},{"$f":"IF(שעות_עבודה7[[#This Row],[שעות]]=\"\",\"\",\nIF(SUMPRODUCT((שעות_עבודה7[[#This Row],[שם העבודה]]=$N$9:$O$28)*שעות_עבודה7[[#This Row],[שעות]]*($P$9:$Q$28*24))=0,\"\",\nSUMPRODUCT((שעות_עבודה7[[#This Row],[שם העבודה]]=$N$9:$O$28)*שעות_עבודה7[[#This Row],[שעות]]*($P$9:$Q$28*24))))","v":""}]
[null,{"$f":"IF(שעות_עבודה7[[#This Row],[תאריך]]=\"\",\"\",ROW(A133))","v":""},null,null,null,null,null,null,{"$f":"IFERROR(IF(שעות_עבודה7[[#This Row],[סיום]]=\"\",\"\",שעות_עבודה7[[#This Row],[סיום]]-שעות_עבודה7[[#This Row],[התחלה]]+שעות_עבודה7[[#This Row],[הוספת שעות]]-שעות_עבודה7[[#This Row],[הפחתת שעות]]+(שעות_עבודה7[[#This Row],[סיום]]<שעות_עבודה7[[#This Row],[התחלה]])),\"\")","v":""},{"$f":"IF(שעות_עבודה7[[#This Row],[שעות]]=\"\",\"\",\nIF(SUMPRODUCT((שעות_עבודה7[[#This Row],[שם העבודה]]=$N$9:$O$28)*שעות_עבודה7[[#This Row],[שעות]]*($P$9:$Q$28*24))=0,\"\",\nSUMPRODUCT((שעות_עבודה7[[#This Row],[שם העבודה]]=$N$9:$O$28)*שעות_עבודה7[[#This Row],[שעות]]*($P$9:$Q$28*24))))","v":""}]
[null,{"$f":"IF(שעות_עבודה7[[#This Row],[תאריך]]=\"\",\"\",ROW(A134))","v":""},null,null,null,null,null,null,{"$f":"IFERROR(IF(שעות_עבודה7[[#This Row],[סיום]]=\"\",\"\",שעות_עבודה7[[#This Row],[סיום]]-שעות_עבודה7[[#This Row],[התחלה]]+שעות_עבודה7[[#This Row],[הוספת שעות]]-שעות_עבודה7[[#This Row],[הפחתת שעות]]+(שעות_עבודה7[[#This Row],[סיום]]<שעות_עבודה7[[#This Row],[התחלה]])),\"\")","v":""},{"$f":"IF(שעות_עבודה7[[#This Row],[שעות]]=\"\",\"\",\nIF(SUMPRODUCT((שעות_עבודה7[[#This Row],[שם העבודה]]=$N$9:$O$28)*שעות_עבודה7[[#This Row],[שעות]]*($P$9:$Q$28*24))=0,\"\",\nSUMPRODUCT((שעות_עבודה7[[#This Row],[שם העבודה]]=$N$9:$O$28)*שעות_עבודה7[[#This Row],[שעות]]*($P$9:$Q$28*24))))","v":""}]
[null,{"$f":"IF(שעות_עבודה7[[#This Row],[תאריך]]=\"\",\"\",ROW(A135))","v":""},null,null,null,null,null,null,{"$f":"IFERROR(IF(שעות_עבודה7[[#This Row],[סיום]]=\"\",\"\",שעות_עבודה7[[#This Row],[סיום]]-שעות_עבודה7[[#This Row],[התחלה]]+שעות_עבודה7[[#This Row],[הוספת שעות]]-שעות_עבודה7[[#This Row],[הפחתת שעות]]+(שעות_עבודה7[[#This Row],[סיום]]<שעות_עבודה7[[#This Row],[התחלה]])),\"\")","v":""},{"$f":"IF(שעות_עבודה7[[#This Row],[שעות]]=\"\",\"\",\nIF(SUMPRODUCT((שעות_עבודה7[[#This Row],[שם העבודה]]=$N$9:$O$28)*שעות_עבודה7[[#This Row],[שעות]]*($P$9:$Q$28*24))=0,\"\",\nSUMPRODUCT((שעות_עבודה7[[#This Row],[שם העבודה]]=$N$9:$O$28)*שעות_עבודה7[[#This Row],[שעות]]*($P$9:$Q$28*24))))","v":""}]
[null,{"$f":"IF(שעות_עבודה7[[#This Row],[תאריך]]=\"\",\"\",ROW(A136))","v":""},null,null,null,null,null,null,{"$f":"IFERROR(IF(שעות_עבודה7[[#This Row],[סיום]]=\"\",\"\",שעות_עבודה7[[#This Row],[סיום]]-שעות_עבודה7[[#This Row],[התחלה]]+שעות_עבודה7[[#This Row],[הוספת שעות]]-שעות_עבודה7[[#This Row],[הפחתת שעות]]+(שעות_עבודה7[[#This Row],[סיום]]<שעות_עבודה7[[#This Row],[התחלה]])),\"\")","v":""},{"$f":"IF(שעות_עבודה7[[#This Row],[שעות]]=\"\",\"\",\nIF(SUMPRODUCT((שעות_עבודה7[[#This Row],[שם העבודה]]=$N$9:$O$28)*שעות_עבודה7[[#This Row],[שעות]]*($P$9:$Q$28*24))=0,\"\",\nSUMPRODUCT((שעות_עבודה7[[#This Row],[שם העבודה]]=$N$9:$O$28)*שעות_עבודה7[[#This Row],[שעות]]*($P$9:$Q$28*24))))","v":""}]
[null,{"$f":"IF(שעות_עבודה7[[#This Row],[תאריך]]=\"\",\"\",ROW(A137))","v":""},null,null,null,null,null,null,{"$f":"IFERROR(IF(שעות_עבודה7[[#This Row],[סיום]]=\"\",\"\",שעות_עבודה7[[#This Row],[סיום]]-שעות_עבודה7[[#This Row],[התחלה]]+שעות_עבודה7[[#This Row],[הוספת שעות]]-שעות_עבודה7[[#This Row],[הפחתת שעות]]+(שעות_עבודה7[[#This Row],[סיום]]<שעות_עבודה7[[#This Row],[התחלה]])),\"\")","v":""},{"$f":"IF(שעות_עבודה7[[#This Row],[שעות]]=\"\",\"\",\nIF(SUMPRODUCT((שעות_עבודה7[[#This Row],[שם העבודה]]=$N$9:$O$28)*שעות_עבודה7[[#This Row],[שעות]]*($P$9:$Q$28*24))=0,\"\",\nSUMPRODUCT((שעות_עבודה7[[#This Row],[שם העבודה]]=$N$9:$O$28)*שעות_עבודה7[[#This Row],[שעות]]*($P$9:$Q$28*24))))","v":""}]
[null,{"$f":"IF(שעות_עבודה7[[#This Row],[תאריך]]=\"\",\"\",ROW(A138))","v":""},null,null,null,null,null,null,{"$f":"IFERROR(IF(שעות_עבודה7[[#This Row],[סיום]]=\"\",\"\",שעות_עבודה7[[#This Row],[סיום]]-שעות_עבודה7[[#This Row],[התחלה]]+שעות_עבודה7[[#This Row],[הוספת שעות]]-שעות_עבודה7[[#This Row],[הפחתת שעות]]+(שעות_עבודה7[[#This Row],[סיום]]<שעות_עבודה7[[#This Row],[התחלה]])),\"\")","v":""},{"$f":"IF(שעות_עבודה7[[#This Row],[שעות]]=\"\",\"\",\nIF(SUMPRODUCT((שעות_עבודה7[[#This Row],[שם העבודה]]=$N$9:$O$28)*שעות_עבודה7[[#This Row],[שעות]]*($P$9:$Q$28*24))=0,\"\",\nSUMPRODUCT((שעות_עבודה7[[#This Row],[שם העבודה]]=$N$9:$O$28)*שעות_עבודה7[[#This Row],[שעות]]*($P$9:$Q$28*24))))","v":""}]
[null,{"$f":"IF(שעות_עבודה7[[#This Row],[תאריך]]=\"\",\"\",ROW(A139))","v":""},null,null,null,null,null,null,{"$f":"IFERROR(IF(שעות_עבודה7[[#This Row],[סיום]]=\"\",\"\",שעות_עבודה7[[#This Row],[סיום]]-שעות_עבודה7[[#This Row],[התחלה]]+שעות_עבודה7[[#This Row],[הוספת שעות]]-שעות_עבודה7[[#This Row],[הפחתת שעות]]+(שעות_עבודה7[[#This Row],[סיום]]<שעות_עבודה7[[#This Row],[התחלה]])),\"\")","v":""},{"$f":"IF(שעות_עבודה7[[#This Row],[שעות]]=\"\",\"\",\nIF(SUMPRODUCT((שעות_עבודה7[[#This Row],[שם העבודה]]=$N$9:$O$28)*שעות_עבודה7[[#This Row],[שעות]]*($P$9:$Q$28*24))=0,\"\",\nSUMPRODUCT((שעות_עבודה7[[#This Row],[שם העבודה]]=$N$9:$O$28)*שעות_עבודה7[[#This Row],[שעות]]*($P$9:$Q$28*24))))","v":""}]
[null,{"$f":"IF(שעות_עבודה7[[#This Row],[תאריך]]=\"\",\"\",ROW(A140))","v":""},null,null,null,null,null,null,{"$f":"IFERROR(IF(שעות_עבודה7[[#This Row],[סיום]]=\"\",\"\",שעות_עבודה7[[#This Row],[סיום]]-שעות_עבודה7[[#This Row],[התחלה]]+שעות_עבודה7[[#This Row],[הוספת שעות]]-שעות_עבודה7[[#This Row],[הפחתת שעות]]+(שעות_עבודה7[[#This Row],[סיום]]<שעות_עבודה7[[#This Row],[התחלה]])),\"\")","v":""},{"$f":"IF(שעות_עבודה7[[#This Row],[שעות]]=\"\",\"\",\nIF(SUMPRODUCT((שעות_עבודה7[[#This Row],[שם העבודה]]=$N$9:$O$28)*שעות_עבודה7[[#This Row],[שעות]]*($P$9:$Q$28*24))=0,\"\",\nSUMPRODUCT((שעות_עבודה7[[#This Row],[שם העבודה]]=$N$9:$O$28)*שעות_עבודה7[[#This Row],[שעות]]*($P$9:$Q$28*24))))","v":""}]
[null,{"$f":"IF(שעות_עבודה7[[#This Row],[תאריך]]=\"\",\"\",ROW(A141))","v":""},null,null,null,null,null,null,{"$f":"IFERROR(IF(שעות_עבודה7[[#This Row],[סיום]]=\"\",\"\",שעות_עבודה7[[#This Row],[סיום]]-שעות_עבודה7[[#This Row],[התחלה]]+שעות_עבודה7[[#This Row],[הוספת שעות]]-שעות_עבודה7[[#This Row],[הפחתת שעות]]+(שעות_עבודה7[[#This Row],[סיום]]<שעות_עבודה7[[#This Row],[התחלה]])),\"\")","v":""},{"$f":"IF(שעות_עבודה7[[#This Row],[שעות]]=\"\",\"\",\nIF(SUMPRODUCT((שעות_עבודה7[[#This Row],[שם העבודה]]=$N$9:$O$28)*שעות_עבודה7[[#This Row],[שעות]]*($P$9:$Q$28*24))=0,\"\",\nSUMPRODUCT((שעות_עבודה7[[#This Row],[שם העבודה]]=$N$9:$O$28)*שעות_עבודה7[[#This Row],[שעות]]*($P$9:$Q$28*24))))","v":""}]
[null,{"$f":"IF(שעות_עבודה7[[#This Row],[תאריך]]=\"\",\"\",ROW(A142))","v":""},null,null,null,null,null,null,{"$f":"IFERROR(IF(שעות_עבודה7[[#This Row],[סיום]]=\"\",\"\",שעות_עבודה7[[#This Row],[סיום]]-שעות_עבודה7[[#This Row],[התחלה]]+שעות_עבודה7[[#This Row],[הוספת שעות]]-שעות_עבודה7[[#This Row],[הפחתת שעות]]+(שעות_עבודה7[[#This Row],[סיום]]<שעות_עבודה7[[#This Row],[התחלה]])),\"\")","v":""},{"$f":"IF(שעות_עבודה7[[#This Row],[שעות]]=\"\",\"\",\nIF(SUMPRODUCT((שעות_עבודה7[[#This Row],[שם העבודה]]=$N$9:$O$28)*שעות_עבודה7[[#This Row],[שעות]]*($P$9:$Q$28*24))=0,\"\",\nSUMPRODUCT((שעות_עבודה7[[#This Row],[שם העבודה]]=$N$9:$O$28)*שעות_עבודה7[[#This Row],[שעות]]*($P$9:$Q$28*24))))","v":""}]
[null,{"$f":"IF(שעות_עבודה7[[#This Row],[תאריך]]=\"\",\"\",ROW(A143))","v":""},null,null,null,null,null,null,{"$f":"IFERROR(IF(שעות_עבודה7[[#This Row],[סיום]]=\"\",\"\",שעות_עבודה7[[#This Row],[סיום]]-שעות_עבודה7[[#This Row],[התחלה]]+שעות_עבודה7[[#This Row],[הוספת שעות]]-שעות_עבודה7[[#This Row],[הפחתת שעות]]+(שעות_עבודה7[[#This Row],[סיום]]<שעות_עבודה7[[#This Row],[התחלה]])),\"\")","v":""},{"$f":"IF(שעות_עבודה7[[#This Row],[שעות]]=\"\",\"\",\nIF(SUMPRODUCT((שעות_עבודה7[[#This Row],[שם העבודה]]=$N$9:$O$28)*שעות_עבודה7[[#This Row],[שעות]]*($P$9:$Q$28*24))=0,\"\",\nSUMPRODUCT((שעות_עבודה7[[#This Row],[שם העבודה]]=$N$9:$O$28)*שעות_עבודה7[[#This Row],[שעות]]*($P$9:$Q$28*24))))","v":""}]
[null,{"$f":"IF(שעות_עבודה7[[#This Row],[תאריך]]=\"\",\"\",ROW(A144))","v":""},null,null,null,null,null,null,{"$f":"IFERROR(IF(שעות_עבודה7[[#This Row],[סיום]]=\"\",\"\",שעות_עבודה7[[#This Row],[סיום]]-שעות_עבודה7[[#This Row],[התחלה]]+שעות_עבודה7[[#This Row],[הוספת שעות]]-שעות_עבודה7[[#This Row],[הפחתת שעות]]+(שעות_עבודה7[[#This Row],[סיום]]<שעות_עבודה7[[#This Row],[התחלה]])),\"\")","v":""},{"$f":"IF(שעות_עבודה7[[#This Row],[שעות]]=\"\",\"\",\nIF(SUMPRODUCT((שעות_עבודה7[[#This Row],[שם העבודה]]=$N$9:$O$28)*שעות_עבודה7[[#This Row],[שעות]]*($P$9:$Q$28*24))=0,\"\",\nSUMPRODUCT((שעות_עבודה7[[#This Row],[שם העבודה]]=$N$9:$O$28)*שעות_עבודה7[[#This Row],[שעות]]*($P$9:$Q$28*24))))","v":""}]
[null,{"$f":"IF(שעות_עבודה7[[#This Row],[תאריך]]=\"\",\"\",ROW(A145))","v":""},null,null,null,null,null,null,{"$f":"IFERROR(IF(שעות_עבודה7[[#This Row],[סיום]]=\"\",\"\",שעות_עבודה7[[#This Row],[סיום]]-שעות_עבודה7[[#This Row],[התחלה]]+שעות_עבודה7[[#This Row],[הוספת שעות]]-שעות_עבודה7[[#This Row],[הפחתת שעות]]+(שעות_עבודה7[[#This Row],[סיום]]<שעות_עבודה7[[#This Row],[התחלה]])),\"\")","v":""},{"$f":"IF(שעות_עבודה7[[#This Row],[שעות]]=\"\",\"\",\nIF(SUMPRODUCT((שעות_עבודה7[[#This Row],[שם העבודה]]=$N$9:$O$28)*שעות_עבודה7[[#This Row],[שעות]]*($P$9:$Q$28*24))=0,\"\",\nSUMPRODUCT((שעות_עבודה7[[#This Row],[שם העבודה]]=$N$9:$O$28)*שעות_עבודה7[[#This Row],[שעות]]*($P$9:$Q$28*24))))","v":""}]
[null,{"$f":"IF(שעות_עבודה7[[#This Row],[תאריך]]=\"\",\"\",ROW(A146))","v":""},null,null,null,null,null,null,{"$f":"IFERROR(IF(שעות_עבודה7[[#This Row],[סיום]]=\"\",\"\",שעות_עבודה7[[#This Row],[סיום]]-שעות_עבודה7[[#This Row],[התחלה]]+שעות_עבודה7[[#This Row],[הוספת שעות]]-שעות_עבודה7[[#This Row],[הפחתת שעות]]+(שעות_עבודה7[[#This Row],[סיום]]<שעות_עבודה7[[#This Row],[התחלה]])),\"\")","v":""},{"$f":"IF(שעות_עבודה7[[#This Row],[שעות]]=\"\",\"\",\nIF(SUMPRODUCT((שעות_עבודה7[[#This Row],[שם העבודה]]=$N$9:$O$28)*שעות_עבודה7[[#This Row],[שעות]]*($P$9:$Q$28*24))=0,\"\",\nSUMPRODUCT((שעות_עבודה7[[#This Row],[שם העבודה]]=$N$9:$O$28)*שעות_עבודה7[[#This Row],[שעות]]*($P$9:$Q$28*24))))","v":""}]
[null,{"$f":"IF(שעות_עבודה7[[#This Row],[תאריך]]=\"\",\"\",ROW(A147))","v":""},null,null,null,null,null,null,{"$f":"IFERROR(IF(שעות_עבודה7[[#This Row],[סיום]]=\"\",\"\",שעות_עבודה7[[#This Row],[סיום]]-שעות_עבודה7[[#This Row],[התחלה]]+שעות_עבודה7[[#This Row],[הוספת שעות]]-שעות_עבודה7[[#This Row],[הפחתת שעות]]+(שעות_עבודה7[[#This Row],[סיום]]<שעות_עבודה7[[#This Row],[התחלה]])),\"\")","v":""},{"$f":"IF(שעות_עבודה7[[#This Row],[שעות]]=\"\",\"\",\nIF(SUMPRODUCT((שעות_עבודה7[[#This Row],[שם העבודה]]=$N$9:$O$28)*שעות_עבודה7[[#This Row],[שעות]]*($P$9:$Q$28*24))=0,\"\",\nSUMPRODUCT((שעות_עבודה7[[#This Row],[שם העבודה]]=$N$9:$O$28)*שעות_עבודה7[[#This Row],[שעות]]*($P$9:$Q$28*24))))","v":""}]
[null,{"$f":"IF(שעות_עבודה7[[#This Row],[תאריך]]=\"\",\"\",ROW(A148))","v":""},null,null,null,null,null,null,{"$f":"IFERROR(IF(שעות_עבודה7[[#This Row],[סיום]]=\"\",\"\",שעות_עבודה7[[#This Row],[סיום]]-שעות_עבודה7[[#This Row],[התחלה]]+שעות_עבודה7[[#This Row],[הוספת שעות]]-שעות_עבודה7[[#This Row],[הפחתת שעות]]+(שעות_עבודה7[[#This Row],[סיום]]<שעות_עבודה7[[#This Row],[התחלה]])),\"\")","v":""},{"$f":"IF(שעות_עבודה7[[#This Row],[שעות]]=\"\",\"\",\nIF(SUMPRODUCT((שעות_עבודה7[[#This Row],[שם העבודה]]=$N$9:$O$28)*שעות_עבודה7[[#This Row],[שעות]]*($P$9:$Q$28*24))=0,\"\",\nSUMPRODUCT((שעות_עבודה7[[#This Row],[שם העבודה]]=$N$9:$O$28)*שעות_עבודה7[[#This Row],[שעות]]*($P$9:$Q$28*24))))","v":""}]
[null,{"$f":"IF(שעות_עבודה7[[#This Row],[תאריך]]=\"\",\"\",ROW(A149))","v":""},null,null,null,null,null,null,{"$f":"IFERROR(IF(שעות_עבודה7[[#This Row],[סיום]]=\"\",\"\",שעות_עבודה7[[#This Row],[סיום]]-שעות_עבודה7[[#This Row],[התחלה]]+שעות_עבודה7[[#This Row],[הוספת שעות]]-שעות_עבודה7[[#This Row],[הפחתת שעות]]+(שעות_עבודה7[[#This Row],[סיום]]<שעות_עבודה7[[#This Row],[התחלה]])),\"\")","v":""},{"$f":"IF(שעות_עבודה7[[#This Row],[שעות]]=\"\",\"\",\nIF(SUMPRODUCT((שעות_עבודה7[[#This Row],[שם העבודה]]=$N$9:$O$28)*שעות_עבודה7[[#This Row],[שעות]]*($P$9:$Q$28*24))=0,\"\",\nSUMPRODUCT((שעות_עבודה7[[#This Row],[שם העבודה]]=$N$9:$O$28)*שעות_עבודה7[[#This Row],[שעות]]*($P$9:$Q$28*24))))","v":""}]
[null,{"$f":"IF(שעות_עבודה7[[#This Row],[תאריך]]=\"\",\"\",ROW(A150))","v":""},null,null,null,null,null,null,{"$f":"IFERROR(IF(שעות_עבודה7[[#This Row],[סיום]]=\"\",\"\",שעות_עבודה7[[#This Row],[סיום]]-שעות_עבודה7[[#This Row],[התחלה]]+שעות_עבודה7[[#This Row],[הוספת שעות]]-שעות_עבודה7[[#This Row],[הפחתת שעות]]+(שעות_עבודה7[[#This Row],[סיום]]<שעות_עבודה7[[#This Row],[התחלה]])),\"\")","v":""},{"$f":"IF(שעות_עבודה7[[#This Row],[שעות]]=\"\",\"\",\nIF(SUMPRODUCT((שעות_עבודה7[[#This Row],[שם העבודה]]=$N$9:$O$28)*שעות_עבודה7[[#This Row],[שעות]]*($P$9:$Q$28*24))=0,\"\",\nSUMPRODUCT((שעות_עבודה7[[#This Row],[שם העבודה]]=$N$9:$O$28)*שעות_עבודה7[[#This Row],[שעות]]*($P$9:$Q$28*24))))","v":""}]
[null,{"$f":"IF(שעות_עבודה7[[#This Row],[תאריך]]=\"\",\"\",ROW(A151))","v":""},null,null,null,null,null,null,{"$f":"IFERROR(IF(שעות_עבודה7[[#This Row],[סיום]]=\"\",\"\",שעות_עבודה7[[#This Row],[סיום]]-שעות_עבודה7[[#This Row],[התחלה]]+שעות_עבודה7[[#This Row],[הוספת שעות]]-שעות_עבודה7[[#This Row],[הפחתת שעות]]+(שעות_עבודה7[[#This Row],[סיום]]<שעות_עבודה7[[#This Row],[התחלה]])),\"\")","v":""},{"$f":"IF(שעות_עבודה7[[#This Row],[שעות]]=\"\",\"\",\nIF(SUMPRODUCT((שעות_עבודה7[[#This Row],[שם העבודה]]=$N$9:$O$28)*שעות_עבודה7[[#This Row],[שעות]]*($P$9:$Q$28*24))=0,\"\",\nSUMPRODUCT((שעות_עבודה7[[#This Row],[שם העבודה]]=$N$9:$O$28)*שעות_עבודה7[[#This Row],[שעות]]*($P$9:$Q$28*24))))","v":""}]
[null,{"$f":"IF(שעות_עבודה7[[#This Row],[תאריך]]=\"\",\"\",ROW(A152))","v":""},null,null,null,null,null,null,{"$f":"IFERROR(IF(שעות_עבודה7[[#This Row],[סיום]]=\"\",\"\",שעות_עבודה7[[#This Row],[סיום]]-שעות_עבודה7[[#This Row],[התחלה]]+שעות_עבודה7[[#This Row],[הוספת שעות]]-שעות_עבודה7[[#This Row],[הפחתת שעות]]+(שעות_עבודה7[[#This Row],[סיום]]<שעות_עבודה7[[#This Row],[התחלה]])),\"\")","v":""},{"$f":"IF(שעות_עבודה7[[#This Row],[שעות]]=\"\",\"\",\nIF(SUMPRODUCT((שעות_עבודה7[[#This Row],[שם העבודה]]=$N$9:$O$28)*שעות_עבודה7[[#This Row],[שעות]]*($P$9:$Q$28*24))=0,\"\",\nSUMPRODUCT((שעות_עבודה7[[#This Row],[שם העבודה]]=$N$9:$O$28)*שעות_עבודה7[[#This Row],[שעות]]*($P$9:$Q$28*24))))","v":""}]
[null,{"$f":"IF(שעות_עבודה7[[#This Row],[תאריך]]=\"\",\"\",ROW(A153))","v":""},null,null,null,null,null,null,{"$f":"IFERROR(IF(שעות_עבודה7[[#This Row],[סיום]]=\"\",\"\",שעות_עבודה7[[#This Row],[סיום]]-שעות_עבודה7[[#This Row],[התחלה]]+שעות_עבודה7[[#This Row],[הוספת שעות]]-שעות_עבודה7[[#This Row],[הפחתת שעות]]+(שעות_עבודה7[[#This Row],[סיום]]<שעות_עבודה7[[#This Row],[התחלה]])),\"\")","v":""},{"$f":"IF(שעות_עבודה7[[#This Row],[שעות]]=\"\",\"\",\nIF(SUMPRODUCT((שעות_עבודה7[[#This Row],[שם העבודה]]=$N$9:$O$28)*שעות_עבודה7[[#This Row],[שעות]]*($P$9:$Q$28*24))=0,\"\",\nSUMPRODUCT((שעות_עבודה7[[#This Row],[שם העבודה]]=$N$9:$O$28)*שעות_עבודה7[[#This Row],[שעות]]*($P$9:$Q$28*24))))","v":""}]
[null,{"$f":"IF(שעות_עבודה7[[#This Row],[תאריך]]=\"\",\"\",ROW(A154))","v":""},null,null,null,null,null,null,{"$f":"IFERROR(IF(שעות_עבודה7[[#This Row],[סיום]]=\"\",\"\",שעות_עבודה7[[#This Row],[סיום]]-שעות_עבודה7[[#This Row],[התחלה]]+שעות_עבודה7[[#This Row],[הוספת שעות]]-שעות_עבודה7[[#This Row],[הפחתת שעות]]+(שעות_עבודה7[[#This Row],[סיום]]<שעות_עבודה7[[#This Row],[התחלה]])),\"\")","v":""},{"$f":"IF(שעות_עבודה7[[#This Row],[שעות]]=\"\",\"\",\nIF(SUMPRODUCT((שעות_עבודה7[[#This Row],[שם העבודה]]=$N$9:$O$28)*שעות_עבודה7[[#This Row],[שעות]]*($P$9:$Q$28*24))=0,\"\",\nSUMPRODUCT((שעות_עבודה7[[#This Row],[שם העבודה]]=$N$9:$O$28)*שעות_עבודה7[[#This Row],[שעות]]*($P$9:$Q$28*24))))","v":""}]
[null,{"$f":"IF(שעות_עבודה7[[#This Row],[תאריך]]=\"\",\"\",ROW(A155))","v":""},null,null,null,null,null,null,{"$f":"IFERROR(IF(שעות_עבודה7[[#This Row],[סיום]]=\"\",\"\",שעות_עבודה7[[#This Row],[סיום]]-שעות_עבודה7[[#This Row],[התחלה]]+שעות_עבודה7[[#This Row],[הוספת שעות]]-שעות_עבודה7[[#This Row],[הפחתת שעות]]+(שעות_עבודה7[[#This Row],[סיום]]<שעות_עבודה7[[#This Row],[התחלה]])),\"\")","v":""},{"$f":"IF(שעות_עבודה7[[#This Row],[שעות]]=\"\",\"\",\nIF(SUMPRODUCT((שעות_עבודה7[[#This Row],[שם העבודה]]=$N$9:$O$28)*שעות_עבודה7[[#This Row],[שעות]]*($P$9:$Q$28*24))=0,\"\",\nSUMPRODUCT((שעות_עבודה7[[#This Row],[שם העבודה]]=$N$9:$O$28)*שעות_עבודה7[[#This Row],[שעות]]*($P$9:$Q$28*24))))","v":""}]
[null,{"$f":"IF(שעות_עבודה7[[#This Row],[תאריך]]=\"\",\"\",ROW(A156))","v":""},null,null,null,null,null,null,{"$f":"IFERROR(IF(שעות_עבודה7[[#This Row],[סיום]]=\"\",\"\",שעות_עבודה7[[#This Row],[סיום]]-שעות_עבודה7[[#This Row],[התחלה]]+שעות_עבודה7[[#This Row],[הוספת שעות]]-שעות_עבודה7[[#This Row],[הפחתת שעות]]+(שעות_עבודה7[[#This Row],[סיום]]<שעות_עבודה7[[#This Row],[התחלה]])),\"\")","v":""},{"$f":"IF(שעות_עבודה7[[#This Row],[שעות]]=\"\",\"\",\nIF(SUMPRODUCT((שעות_עבודה7[[#This Row],[שם העבודה]]=$N$9:$O$28)*שעות_עבודה7[[#This Row],[שעות]]*($P$9:$Q$28*24))=0,\"\",\nSUMPRODUCT((שעות_עבודה7[[#This Row],[שם העבודה]]=$N$9:$O$28)*שעות_עבודה7[[#This Row],[שעות]]*($P$9:$Q$28*24))))","v":""}]
[null,{"$f":"IF(שעות_עבודה7[[#This Row],[תאריך]]=\"\",\"\",ROW(A157))","v":""},null,null,null,null,null,null,{"$f":"IFERROR(IF(שעות_עבודה7[[#This Row],[סיום]]=\"\",\"\",שעות_עבודה7[[#This Row],[סיום]]-שעות_עבודה7[[#This Row],[התחלה]]+שעות_עבודה7[[#This Row],[הוספת שעות]]-שעות_עבודה7[[#This Row],[הפחתת שעות]]+(שעות_עבודה7[[#This Row],[סיום]]<שעות_עבודה7[[#This Row],[התחלה]])),\"\")","v":""},{"$f":"IF(שעות_עבודה7[[#This Row],[שעות]]=\"\",\"\",\nIF(SUMPRODUCT((שעות_עבודה7[[#This Row],[שם העבודה]]=$N$9:$O$28)*שעות_עבודה7[[#This Row],[שעות]]*($P$9:$Q$28*24))=0,\"\",\nSUMPRODUCT((שעות_עבודה7[[#This Row],[שם העבודה]]=$N$9:$O$28)*שעות_עבודה7[[#This Row],[שעות]]*($P$9:$Q$28*24))))","v":""}]
[null,{"$f":"IF(שעות_עבודה7[[#This Row],[תאריך]]=\"\",\"\",ROW(A158))","v":""},null,null,null,null,null,null,{"$f":"IFERROR(IF(שעות_עבודה7[[#This Row],[סיום]]=\"\",\"\",שעות_עבודה7[[#This Row],[סיום]]-שעות_עבודה7[[#This Row],[התחלה]]+שעות_עבודה7[[#This Row],[הוספת שעות]]-שעות_עבודה7[[#This Row],[הפחתת שעות]]+(שעות_עבודה7[[#This Row],[סיום]]<שעות_עבודה7[[#This Row],[התחלה]])),\"\")","v":""},{"$f":"IF(שעות_עבודה7[[#This Row],[שעות]]=\"\",\"\",\nIF(SUMPRODUCT((שעות_עבודה7[[#This Row],[שם העבודה]]=$N$9:$O$28)*שעות_עבודה7[[#This Row],[שעות]]*($P$9:$Q$28*24))=0,\"\",\nSUMPRODUCT((שעות_עבודה7[[#This Row],[שם העבודה]]=$N$9:$O$28)*שעות_עבודה7[[#This Row],[שעות]]*($P$9:$Q$28*24))))","v":""}]
[null,{"$f":"IF(שעות_עבודה7[[#This Row],[תאריך]]=\"\",\"\",ROW(A159))","v":""},null,null,null,null,null,null,{"$f":"IFERROR(IF(שעות_עבודה7[[#This Row],[סיום]]=\"\",\"\",שעות_עבודה7[[#This Row],[סיום]]-שעות_עבודה7[[#This Row],[התחלה]]+שעות_עבודה7[[#This Row],[הוספת שעות]]-שעות_עבודה7[[#This Row],[הפחתת שעות]]+(שעות_עבודה7[[#This Row],[סיום]]<שעות_עבודה7[[#This Row],[התחלה]])),\"\")","v":""},{"$f":"IF(שעות_עבודה7[[#This Row],[שעות]]=\"\",\"\",\nIF(SUMPRODUCT((שעות_עבודה7[[#This Row],[שם העבודה]]=$N$9:$O$28)*שעות_עבודה7[[#This Row],[שעות]]*($P$9:$Q$28*24))=0,\"\",\nSUMPRODUCT((שעות_עבודה7[[#This Row],[שם העבודה]]=$N$9:$O$28)*שעות_עבודה7[[#This Row],[שעות]]*($P$9:$Q$28*24))))","v":""}]
[null,{"$f":"IF(שעות_עבודה7[[#This Row],[תאריך]]=\"\",\"\",ROW(A160))","v":""},null,null,null,null,null,null,{"$f":"IFERROR(IF(שעות_עבודה7[[#This Row],[סיום]]=\"\",\"\",שעות_עבודה7[[#This Row],[סיום]]-שעות_עבודה7[[#This Row],[התחלה]]+שעות_עבודה7[[#This Row],[הוספת שעות]]-שעות_עבודה7[[#This Row],[הפחתת שעות]]+(שעות_עבודה7[[#This Row],[סיום]]<שעות_עבודה7[[#This Row],[התחלה]])),\"\")","v":""},{"$f":"IF(שעות_עבודה7[[#This Row],[שעות]]=\"\",\"\",\nIF(SUMPRODUCT((שעות_עבודה7[[#This Row],[שם העבודה]]=$N$9:$O$28)*שעות_עבודה7[[#This Row],[שעות]]*($P$9:$Q$28*24))=0,\"\",\nSUMPRODUCT((שעות_עבודה7[[#This Row],[שם העבודה]]=$N$9:$O$28)*שעות_עבודה7[[#This Row],[שעות]]*($P$9:$Q$28*24))))","v":""}]
[null,{"$f":"IF(שעות_עבודה7[[#This Row],[תאריך]]=\"\",\"\",ROW(A161))","v":""},null,null,null,null,null,null,{"$f":"IFERROR(IF(שעות_עבודה7[[#This Row],[סיום]]=\"\",\"\",שעות_עבודה7[[#This Row],[סיום]]-שעות_עבודה7[[#This Row],[התחלה]]+שעות_עבודה7[[#This Row],[הוספת שעות]]-שעות_עבודה7[[#This Row],[הפחתת שעות]]+(שעות_עבודה7[[#This Row],[סיום]]<שעות_עבודה7[[#This Row],[התחלה]])),\"\")","v":""},{"$f":"IF(שעות_עבודה7[[#This Row],[שעות]]=\"\",\"\",\nIF(SUMPRODUCT((שעות_עבודה7[[#This Row],[שם העבודה]]=$N$9:$O$28)*שעות_עבודה7[[#This Row],[שעות]]*($P$9:$Q$28*24))=0,\"\",\nSUMPRODUCT((שעות_עבודה7[[#This Row],[שם העבודה]]=$N$9:$O$28)*שעות_עבודה7[[#This Row],[שעות]]*($P$9:$Q$28*24))))","v":""}]
[null,{"$f":"IF(שעות_עבודה7[[#This Row],[תאריך]]=\"\",\"\",ROW(A162))","v":""},null,null,null,null,null,null,{"$f":"IFERROR(IF(שעות_עבודה7[[#This Row],[סיום]]=\"\",\"\",שעות_עבודה7[[#This Row],[סיום]]-שעות_עבודה7[[#This Row],[התחלה]]+שעות_עבודה7[[#This Row],[הוספת שעות]]-שעות_עבודה7[[#This Row],[הפחתת שעות]]+(שעות_עבודה7[[#This Row],[סיום]]<שעות_עבודה7[[#This Row],[התחלה]])),\"\")","v":""},{"$f":"IF(שעות_עבודה7[[#This Row],[שעות]]=\"\",\"\",\nIF(SUMPRODUCT((שעות_עבודה7[[#This Row],[שם העבודה]]=$N$9:$O$28)*שעות_עבודה7[[#This Row],[שעות]]*($P$9:$Q$28*24))=0,\"\",\nSUMPRODUCT((שעות_עבודה7[[#This Row],[שם העבודה]]=$N$9:$O$28)*שעות_עבודה7[[#This Row],[שעות]]*($P$9:$Q$28*24))))","v":""}]
[null,{"$f":"IF(שעות_עבודה7[[#This Row],[תאריך]]=\"\",\"\",ROW(A163))","v":""},null,null,null,null,null,null,{"$f":"IFERROR(IF(שעות_עבודה7[[#This Row],[סיום]]=\"\",\"\",שעות_עבודה7[[#This Row],[סיום]]-שעות_עבודה7[[#This Row],[התחלה]]+שעות_עבודה7[[#This Row],[הוספת שעות]]-שעות_עבודה7[[#This Row],[הפחתת שעות]]+(שעות_עבודה7[[#This Row],[סיום]]<שעות_עבודה7[[#This Row],[התחלה]])),\"\")","v":""},{"$f":"IF(שעות_עבודה7[[#This Row],[שעות]]=\"\",\"\",\nIF(SUMPRODUCT((שעות_עבודה7[[#This Row],[שם העבודה]]=$N$9:$O$28)*שעות_עבודה7[[#This Row],[שעות]]*($P$9:$Q$28*24))=0,\"\",\nSUMPRODUCT((שעות_עבודה7[[#This Row],[שם העבודה]]=$N$9:$O$28)*שעות_עבודה7[[#This Row],[שעות]]*($P$9:$Q$28*24))))","v":""}]
[null,{"$f":"IF(שעות_עבודה7[[#This Row],[תאריך]]=\"\",\"\",ROW(A164))","v":""},null,null,null,null,null,null,{"$f":"IFERROR(IF(שעות_עבודה7[[#This Row],[סיום]]=\"\",\"\",שעות_עבודה7[[#This Row],[סיום]]-שעות_עבודה7[[#This Row],[התחלה]]+שעות_עבודה7[[#This Row],[הוספת שעות]]-שעות_עבודה7[[#This Row],[הפחתת שעות]]+(שעות_עבודה7[[#This Row],[סיום]]<שעות_עבודה7[[#This Row],[התחלה]])),\"\")","v":""},{"$f":"IF(שעות_עבודה7[[#This Row],[שעות]]=\"\",\"\",\nIF(SUMPRODUCT((שעות_עבודה7[[#This Row],[שם העבודה]]=$N$9:$O$28)*שעות_עבודה7[[#This Row],[שעות]]*($P$9:$Q$28*24))=0,\"\",\nSUMPRODUCT((שעות_עבודה7[[#This Row],[שם העבודה]]=$N$9:$O$28)*שעות_עבודה7[[#This Row],[שעות]]*($P$9:$Q$28*24))))","v":""}]
[null,{"$f":"IF(שעות_עבודה7[[#This Row],[תאריך]]=\"\",\"\",ROW(A165))","v":""},null,null,null,null,null,null,{"$f":"IFERROR(IF(שעות_עבודה7[[#This Row],[סיום]]=\"\",\"\",שעות_עבודה7[[#This Row],[סיום]]-שעות_עבודה7[[#This Row],[התחלה]]+שעות_עבודה7[[#This Row],[הוספת שעות]]-שעות_עבודה7[[#This Row],[הפחתת שעות]]+(שעות_עבודה7[[#This Row],[סיום]]<שעות_עבודה7[[#This Row],[התחלה]])),\"\")","v":""},{"$f":"IF(שעות_עבודה7[[#This Row],[שעות]]=\"\",\"\",\nIF(SUMPRODUCT((שעות_עבודה7[[#This Row],[שם העבודה]]=$N$9:$O$28)*שעות_עבודה7[[#This Row],[שעות]]*($P$9:$Q$28*24))=0,\"\",\nSUMPRODUCT((שעות_עבודה7[[#This Row],[שם העבודה]]=$N$9:$O$28)*שעות_עבודה7[[#This Row],[שעות]]*($P$9:$Q$28*24))))","v":""}]
[null,{"$f":"IF(שעות_עבודה7[[#This Row],[תאריך]]=\"\",\"\",ROW(A166))","v":""},null,null,null,null,null,null,{"$f":"IFERROR(IF(שעות_עבודה7[[#This Row],[סיום]]=\"\",\"\",שעות_עבודה7[[#This Row],[סיום]]-שעות_עבודה7[[#This Row],[התחלה]]+שעות_עבודה7[[#This Row],[הוספת שעות]]-שעות_עבודה7[[#This Row],[הפחתת שעות]]+(שעות_עבודה7[[#This Row],[סיום]]<שעות_עבודה7[[#This Row],[התחלה]])),\"\")","v":""},{"$f":"IF(שעות_עבודה7[[#This Row],[שעות]]=\"\",\"\",\nIF(SUMPRODUCT((שעות_עבודה7[[#This Row],[שם העבודה]]=$N$9:$O$28)*שעות_עבודה7[[#This Row],[שעות]]*($P$9:$Q$28*24))=0,\"\",\nSUMPRODUCT((שעות_עבודה7[[#This Row],[שם העבודה]]=$N$9:$O$28)*שעות_עבודה7[[#This Row],[שעות]]*($P$9:$Q$28*24))))","v":""}]
[null,{"$f":"IF(שעות_עבודה7[[#This Row],[תאריך]]=\"\",\"\",ROW(A167))","v":""},null,null,null,null,null,null,{"$f":"IFERROR(IF(שעות_עבודה7[[#This Row],[סיום]]=\"\",\"\",שעות_עבודה7[[#This Row],[סיום]]-שעות_עבודה7[[#This Row],[התחלה]]+שעות_עבודה7[[#This Row],[הוספת שעות]]-שעות_עבודה7[[#This Row],[הפחתת שעות]]+(שעות_עבודה7[[#This Row],[סיום]]<שעות_עבודה7[[#This Row],[התחלה]])),\"\")","v":""},{"$f":"IF(שעות_עבודה7[[#This Row],[שעות]]=\"\",\"\",\nIF(SUMPRODUCT((שעות_עבודה7[[#This Row],[שם העבודה]]=$N$9:$O$28)*שעות_עבודה7[[#This Row],[שעות]]*($P$9:$Q$28*24))=0,\"\",\nSUMPRODUCT((שעות_עבודה7[[#This Row],[שם העבודה]]=$N$9:$O$28)*שעות_עבודה7[[#This Row],[שעות]]*($P$9:$Q$28*24))))","v":""}]
[null,{"$f":"IF(שעות_עבודה7[[#This Row],[תאריך]]=\"\",\"\",ROW(A168))","v":""},null,null,null,null,null,null,{"$f":"IFERROR(IF(שעות_עבודה7[[#This Row],[סיום]]=\"\",\"\",שעות_עבודה7[[#This Row],[סיום]]-שעות_עבודה7[[#This Row],[התחלה]]+שעות_עבודה7[[#This Row],[הוספת שעות]]-שעות_עבודה7[[#This Row],[הפחתת שעות]]+(שעות_עבודה7[[#This Row],[סיום]]<שעות_עבודה7[[#This Row],[התחלה]])),\"\")","v":""},{"$f":"IF(שעות_עבודה7[[#This Row],[שעות]]=\"\",\"\",\nIF(SUMPRODUCT((שעות_עבודה7[[#This Row],[שם העבודה]]=$N$9:$O$28)*שעות_עבודה7[[#This Row],[שעות]]*($P$9:$Q$28*24))=0,\"\",\nSUMPRODUCT((שעות_עבודה7[[#This Row],[שם העבודה]]=$N$9:$O$28)*שעות_עבודה7[[#This Row],[שעות]]*($P$9:$Q$28*24))))","v":""}]
[null,{"$f":"IF(שעות_עבודה7[[#This Row],[תאריך]]=\"\",\"\",ROW(A169))","v":""},null,null,null,null,null,null,{"$f":"IFERROR(IF(שעות_עבודה7[[#This Row],[סיום]]=\"\",\"\",שעות_עבודה7[[#This Row],[סיום]]-שעות_עבודה7[[#This Row],[התחלה]]+שעות_עבודה7[[#This Row],[הוספת שעות]]-שעות_עבודה7[[#This Row],[הפחתת שעות]]+(שעות_עבודה7[[#This Row],[סיום]]<שעות_עבודה7[[#This Row],[התחלה]])),\"\")","v":""},{"$f":"IF(שעות_עבודה7[[#This Row],[שעות]]=\"\",\"\",\nIF(SUMPRODUCT((שעות_עבודה7[[#This Row],[שם העבודה]]=$N$9:$O$28)*שעות_עבודה7[[#This Row],[שעות]]*($P$9:$Q$28*24))=0,\"\",\nSUMPRODUCT((שעות_עבודה7[[#This Row],[שם העבודה]]=$N$9:$O$28)*שעות_עבודה7[[#This Row],[שעות]]*($P$9:$Q$28*24))))","v":""}]
[null,{"$f":"IF(שעות_עבודה7[[#This Row],[תאריך]]=\"\",\"\",ROW(A170))","v":""},null,null,null,null,null,null,{"$f":"IFERROR(IF(שעות_עבודה7[[#This Row],[סיום]]=\"\",\"\",שעות_עבודה7[[#This Row],[סיום]]-שעות_עבודה7[[#This Row],[התחלה]]+שעות_עבודה7[[#This Row],[הוספת שעות]]-שעות_עבודה7[[#This Row],[הפחתת שעות]]+(שעות_עבודה7[[#This Row],[סיום]]<שעות_עבודה7[[#This Row],[התחלה]])),\"\")","v":""},{"$f":"IF(שעות_עבודה7[[#This Row],[שעות]]=\"\",\"\",\nIF(SUMPRODUCT((שעות_עבודה7[[#This Row],[שם העבודה]]=$N$9:$O$28)*שעות_עבודה7[[#This Row],[שעות]]*($P$9:$Q$28*24))=0,\"\",\nSUMPRODUCT((שעות_עבודה7[[#This Row],[שם העבודה]]=$N$9:$O$28)*שעות_עבודה7[[#This Row],[שעות]]*($P$9:$Q$28*24))))","v":""}]
[null,{"$f":"IF(שעות_עבודה7[[#This Row],[תאריך]]=\"\",\"\",ROW(A171))","v":""},null,null,null,null,null,null,{"$f":"IFERROR(IF(שעות_עבודה7[[#This Row],[סיום]]=\"\",\"\",שעות_עבודה7[[#This Row],[סיום]]-שעות_עבודה7[[#This Row],[התחלה]]+שעות_עבודה7[[#This Row],[הוספת שעות]]-שעות_עבודה7[[#This Row],[הפחתת שעות]]+(שעות_עבודה7[[#This Row],[סיום]]<שעות_עבודה7[[#This Row],[התחלה]])),\"\")","v":""},{"$f":"IF(שעות_עבודה7[[#This Row],[שעות]]=\"\",\"\",\nIF(SUMPRODUCT((שעות_עבודה7[[#This Row],[שם העבודה]]=$N$9:$O$28)*שעות_עבודה7[[#This Row],[שעות]]*($P$9:$Q$28*24))=0,\"\",\nSUMPRODUCT((שעות_עבודה7[[#This Row],[שם העבודה]]=$N$9:$O$28)*שעות_עבודה7[[#This Row],[שעות]]*($P$9:$Q$28*24))))","v":""}]
[null,{"$f":"IF(שעות_עבודה7[[#This Row],[תאריך]]=\"\",\"\",ROW(A172))","v":""},null,null,null,null,null,null,{"$f":"IFERROR(IF(שעות_עבודה7[[#This Row],[סיום]]=\"\",\"\",שעות_עבודה7[[#This Row],[סיום]]-שעות_עבודה7[[#This Row],[התחלה]]+שעות_עבודה7[[#This Row],[הוספת שעות]]-שעות_עבודה7[[#This Row],[הפחתת שעות]]+(שעות_עבודה7[[#This Row],[סיום]]<שעות_עבודה7[[#This Row],[התחלה]])),\"\")","v":""},{"$f":"IF(שעות_עבודה7[[#This Row],[שעות]]=\"\",\"\",\nIF(SUMPRODUCT((שעות_עבודה7[[#This Row],[שם העבודה]]=$N$9:$O$28)*שעות_עבודה7[[#This Row],[שעות]]*($P$9:$Q$28*24))=0,\"\",\nSUMPRODUCT((שעות_עבודה7[[#This Row],[שם העבודה]]=$N$9:$O$28)*שעות_עבודה7[[#This Row],[שעות]]*($P$9:$Q$28*24))))","v":""}]
[null,{"$f":"IF(שעות_עבודה7[[#This Row],[תאריך]]=\"\",\"\",ROW(A173))","v":""},null,null,null,null,null,null,{"$f":"IFERROR(IF(שעות_עבודה7[[#This Row],[סיום]]=\"\",\"\",שעות_עבודה7[[#This Row],[סיום]]-שעות_עבודה7[[#This Row],[התחלה]]+שעות_עבודה7[[#This Row],[הוספת שעות]]-שעות_עבודה7[[#This Row],[הפחתת שעות]]+(שעות_עבודה7[[#This Row],[סיום]]<שעות_עבודה7[[#This Row],[התחלה]])),\"\")","v":""},{"$f":"IF(שעות_עבודה7[[#This Row],[שעות]]=\"\",\"\",\nIF(SUMPRODUCT((שעות_עבודה7[[#This Row],[שם העבודה]]=$N$9:$O$28)*שעות_עבודה7[[#This Row],[שעות]]*($P$9:$Q$28*24))=0,\"\",\nSUMPRODUCT((שעות_עבודה7[[#This Row],[שם העבודה]]=$N$9:$O$28)*שעות_עבודה7[[#This Row],[שעות]]*($P$9:$Q$28*24))))","v":""}]
[null,{"$f":"IF(שעות_עבודה7[[#This Row],[תאריך]]=\"\",\"\",ROW(A174))","v":""},null,null,null,null,null,null,{"$f":"IFERROR(IF(שעות_עבודה7[[#This Row],[סיום]]=\"\",\"\",שעות_עבודה7[[#This Row],[סיום]]-שעות_עבודה7[[#This Row],[התחלה]]+שעות_עבודה7[[#This Row],[הוספת שעות]]-שעות_עבודה7[[#This Row],[הפחתת שעות]]+(שעות_עבודה7[[#This Row],[סיום]]<שעות_עבודה7[[#This Row],[התחלה]])),\"\")","v":""},{"$f":"IF(שעות_עבודה7[[#This Row],[שעות]]=\"\",\"\",\nIF(SUMPRODUCT((שעות_עבודה7[[#This Row],[שם העבודה]]=$N$9:$O$28)*שעות_עבודה7[[#This Row],[שעות]]*($P$9:$Q$28*24))=0,\"\",\nSUMPRODUCT((שעות_עבודה7[[#This Row],[שם העבודה]]=$N$9:$O$28)*שעות_עבודה7[[#This Row],[שעות]]*($P$9:$Q$28*24))))","v":""}]
[null,{"$f":"IF(שעות_עבודה7[[#This Row],[תאריך]]=\"\",\"\",ROW(A175))","v":""},null,null,null,null,null,null,{"$f":"IFERROR(IF(שעות_עבודה7[[#This Row],[סיום]]=\"\",\"\",שעות_עבודה7[[#This Row],[סיום]]-שעות_עבודה7[[#This Row],[התחלה]]+שעות_עבודה7[[#This Row],[הוספת שעות]]-שעות_עבודה7[[#This Row],[הפחתת שעות]]+(שעות_עבודה7[[#This Row],[סיום]]<שעות_עבודה7[[#This Row],[התחלה]])),\"\")","v":""},{"$f":"IF(שעות_עבודה7[[#This Row],[שעות]]=\"\",\"\",\nIF(SUMPRODUCT((שעות_עבודה7[[#This Row],[שם העבודה]]=$N$9:$O$28)*שעות_עבודה7[[#This Row],[שעות]]*($P$9:$Q$28*24))=0,\"\",\nSUMPRODUCT((שעות_עבודה7[[#This Row],[שם העבודה]]=$N$9:$O$28)*שעות_עבודה7[[#This Row],[שעות]]*($P$9:$Q$28*24))))","v":""}]
[null,{"$f":"IF(שעות_עבודה7[[#This Row],[תאריך]]=\"\",\"\",ROW(A176))","v":""},null,null,null,null,null,null,{"$f":"IFERROR(IF(שעות_עבודה7[[#This Row],[סיום]]=\"\",\"\",שעות_עבודה7[[#This Row],[סיום]]-שעות_עבודה7[[#This Row],[התחלה]]+שעות_עבודה7[[#This Row],[הוספת שעות]]-שעות_עבודה7[[#This Row],[הפחתת שעות]]+(שעות_עבודה7[[#This Row],[סיום]]<שעות_עבודה7[[#This Row],[התחלה]])),\"\")","v":""},{"$f":"IF(שעות_עבודה7[[#This Row],[שעות]]=\"\",\"\",\nIF(SUMPRODUCT((שעות_עבודה7[[#This Row],[שם העבודה]]=$N$9:$O$28)*שעות_עבודה7[[#This Row],[שעות]]*($P$9:$Q$28*24))=0,\"\",\nSUMPRODUCT((שעות_עבודה7[[#This Row],[שם העבודה]]=$N$9:$O$28)*שעות_עבודה7[[#This Row],[שעות]]*($P$9:$Q$28*24))))","v":""}]
[null,{"$f":"IF(שעות_עבודה7[[#This Row],[תאריך]]=\"\",\"\",ROW(A177))","v":""},null,null,null,null,null,null,{"$f":"IFERROR(IF(שעות_עבודה7[[#This Row],[סיום]]=\"\",\"\",שעות_עבודה7[[#This Row],[סיום]]-שעות_עבודה7[[#This Row],[התחלה]]+שעות_עבודה7[[#This Row],[הוספת שעות]]-שעות_עבודה7[[#This Row],[הפחתת שעות]]+(שעות_עבודה7[[#This Row],[סיום]]<שעות_עבודה7[[#This Row],[התחלה]])),\"\")","v":""},{"$f":"IF(שעות_עבודה7[[#This Row],[שעות]]=\"\",\"\",\nIF(SUMPRODUCT((שעות_עבודה7[[#This Row],[שם העבודה]]=$N$9:$O$28)*שעות_עבודה7[[#This Row],[שעות]]*($P$9:$Q$28*24))=0,\"\",\nSUMPRODUCT((שעות_עבודה7[[#This Row],[שם העבודה]]=$N$9:$O$28)*שעות_עבודה7[[#This Row],[שעות]]*($P$9:$Q$28*24))))","v":""}]
[null,{"$f":"IF(שעות_עבודה7[[#This Row],[תאריך]]=\"\",\"\",ROW(A178))","v":""},null,null,null,null,null,null,{"$f":"IFERROR(IF(שעות_עבודה7[[#This Row],[סיום]]=\"\",\"\",שעות_עבודה7[[#This Row],[סיום]]-שעות_עבודה7[[#This Row],[התחלה]]+שעות_עבודה7[[#This Row],[הוספת שעות]]-שעות_עבודה7[[#This Row],[הפחתת שעות]]+(שעות_עבודה7[[#This Row],[סיום]]<שעות_עבודה7[[#This Row],[התחלה]])),\"\")","v":""},{"$f":"IF(שעות_עבודה7[[#This Row],[שעות]]=\"\",\"\",\nIF(SUMPRODUCT((שעות_עבודה7[[#This Row],[שם העבודה]]=$N$9:$O$28)*שעות_עבודה7[[#This Row],[שעות]]*($P$9:$Q$28*24))=0,\"\",\nSUMPRODUCT((שעות_עבודה7[[#This Row],[שם העבודה]]=$N$9:$O$28)*שעות_עבודה7[[#This Row],[שעות]]*($P$9:$Q$28*24))))","v":""}]
[null,{"$f":"IF(שעות_עבודה7[[#This Row],[תאריך]]=\"\",\"\",ROW(A179))","v":""},null,null,null,null,null,null,{"$f":"IFERROR(IF(שעות_עבודה7[[#This Row],[סיום]]=\"\",\"\",שעות_עבודה7[[#This Row],[סיום]]-שעות_עבודה7[[#This Row],[התחלה]]+שעות_עבודה7[[#This Row],[הוספת שעות]]-שעות_עבודה7[[#This Row],[הפחתת שעות]]+(שעות_עבודה7[[#This Row],[סיום]]<שעות_עבודה7[[#This Row],[התחלה]])),\"\")","v":""},{"$f":"IF(שעות_עבודה7[[#This Row],[שעות]]=\"\",\"\",\nIF(SUMPRODUCT((שעות_עבודה7[[#This Row],[שם העבודה]]=$N$9:$O$28)*שעות_עבודה7[[#This Row],[שעות]]*($P$9:$Q$28*24))=0,\"\",\nSUMPRODUCT((שעות_עבודה7[[#This Row],[שם העבודה]]=$N$9:$O$28)*שעות_עבודה7[[#This Row],[שעות]]*($P$9:$Q$28*24))))","v":""}]
[null,{"$f":"IF(שעות_עבודה7[[#This Row],[תאריך]]=\"\",\"\",ROW(A180))","v":""},null,null,null,null,null,null,{"$f":"IFERROR(IF(שעות_עבודה7[[#This Row],[סיום]]=\"\",\"\",שעות_עבודה7[[#This Row],[סיום]]-שעות_עבודה7[[#This Row],[התחלה]]+שעות_עבודה7[[#This Row],[הוספת שעות]]-שעות_עבודה7[[#This Row],[הפחתת שעות]]+(שעות_עבודה7[[#This Row],[סיום]]<שעות_עבודה7[[#This Row],[התחלה]])),\"\")","v":""},{"$f":"IF(שעות_עבודה7[[#This Row],[שעות]]=\"\",\"\",\nIF(SUMPRODUCT((שעות_עבודה7[[#This Row],[שם העבודה]]=$N$9:$O$28)*שעות_עבודה7[[#This Row],[שעות]]*($P$9:$Q$28*24))=0,\"\",\nSUMPRODUCT((שעות_עבודה7[[#This Row],[שם העבודה]]=$N$9:$O$28)*שעות_עבודה7[[#This Row],[שעות]]*($P$9:$Q$28*24))))","v":""}]
[null,{"$f":"IF(שעות_עבודה7[[#This Row],[תאריך]]=\"\",\"\",ROW(A181))","v":""},null,null,null,null,null,null,{"$f":"IFERROR(IF(שעות_עבודה7[[#This Row],[סיום]]=\"\",\"\",שעות_עבודה7[[#This Row],[סיום]]-שעות_עבודה7[[#This Row],[התחלה]]+שעות_עבודה7[[#This Row],[הוספת שעות]]-שעות_עבודה7[[#This Row],[הפחתת שעות]]+(שעות_עבודה7[[#This Row],[סיום]]<שעות_עבודה7[[#This Row],[התחלה]])),\"\")","v":""},{"$f":"IF(שעות_עבודה7[[#This Row],[שעות]]=\"\",\"\",\nIF(SUMPRODUCT((שעות_עבודה7[[#This Row],[שם העבודה]]=$N$9:$O$28)*שעות_עבודה7[[#This Row],[שעות]]*($P$9:$Q$28*24))=0,\"\",\nSUMPRODUCT((שעות_עבודה7[[#This Row],[שם העבודה]]=$N$9:$O$28)*שעות_עבודה7[[#This Row],[שעות]]*($P$9:$Q$28*24))))","v":""}]
[null,{"$f":"IF(שעות_עבודה7[[#This Row],[תאריך]]=\"\",\"\",ROW(A182))","v":""},null,null,null,null,null,null,{"$f":"IFERROR(IF(שעות_עבודה7[[#This Row],[סיום]]=\"\",\"\",שעות_עבודה7[[#This Row],[סיום]]-שעות_עבודה7[[#This Row],[התחלה]]+שעות_עבודה7[[#This Row],[הוספת שעות]]-שעות_עבודה7[[#This Row],[הפחתת שעות]]+(שעות_עבודה7[[#This Row],[סיום]]<שעות_עבודה7[[#This Row],[התחלה]])),\"\")","v":""},{"$f":"IF(שעות_עבודה7[[#This Row],[שעות]]=\"\",\"\",\nIF(SUMPRODUCT((שעות_עבודה7[[#This Row],[שם העבודה]]=$N$9:$O$28)*שעות_עבודה7[[#This Row],[שעות]]*($P$9:$Q$28*24))=0,\"\",\nSUMPRODUCT((שעות_עבודה7[[#This Row],[שם העבודה]]=$N$9:$O$28)*שעות_עבודה7[[#This Row],[שעות]]*($P$9:$Q$28*24))))","v":""}]
[null,{"$f":"IF(שעות_עבודה7[[#This Row],[תאריך]]=\"\",\"\",ROW(A183))","v":""},null,null,null,null,null,null,{"$f":"IFERROR(IF(שעות_עבודה7[[#This Row],[סיום]]=\"\",\"\",שעות_עבודה7[[#This Row],[סיום]]-שעות_עבודה7[[#This Row],[התחלה]]+שעות_עבודה7[[#This Row],[הוספת שעות]]-שעות_עבודה7[[#This Row],[הפחתת שעות]]+(שעות_עבודה7[[#This Row],[סיום]]<שעות_עבודה7[[#This Row],[התחלה]])),\"\")","v":""},{"$f":"IF(שעות_עבודה7[[#This Row],[שעות]]=\"\",\"\",\nIF(SUMPRODUCT((שעות_עבודה7[[#This Row],[שם העבודה]]=$N$9:$O$28)*שעות_עבודה7[[#This Row],[שעות]]*($P$9:$Q$28*24))=0,\"\",\nSUMPRODUCT((שעות_עבודה7[[#This Row],[שם העבודה]]=$N$9:$O$28)*שעות_עבודה7[[#This Row],[שעות]]*($P$9:$Q$28*24))))","v":""}]
[null,{"$f":"IF(שעות_עבודה7[[#This Row],[תאריך]]=\"\",\"\",ROW(A184))","v":""},null,null,null,null,null,null,{"$f":"IFERROR(IF(שעות_עבודה7[[#This Row],[סיום]]=\"\",\"\",שעות_עבודה7[[#This Row],[סיום]]-שעות_עבודה7[[#This Row],[התחלה]]+שעות_עבודה7[[#This Row],[הוספת שעות]]-שעות_עבודה7[[#This Row],[הפחתת שעות]]+(שעות_עבודה7[[#This Row],[סיום]]<שעות_עבודה7[[#This Row],[התחלה]])),\"\")","v":""},{"$f":"IF(שעות_עבודה7[[#This Row],[שעות]]=\"\",\"\",\nIF(SUMPRODUCT((שעות_עבודה7[[#This Row],[שם העבודה]]=$N$9:$O$28)*שעות_עבודה7[[#This Row],[שעות]]*($P$9:$Q$28*24))=0,\"\",\nSUMPRODUCT((שעות_עבודה7[[#This Row],[שם העבודה]]=$N$9:$O$28)*שעות_עבודה7[[#This Row],[שעות]]*($P$9:$Q$28*24))))","v":""}]
[null,{"$f":"IF(שעות_עבודה7[[#This Row],[תאריך]]=\"\",\"\",ROW(A185))","v":""},null,null,null,null,null,null,{"$f":"IFERROR(IF(שעות_עבודה7[[#This Row],[סיום]]=\"\",\"\",שעות_עבודה7[[#This Row],[סיום]]-שעות_עבודה7[[#This Row],[התחלה]]+שעות_עבודה7[[#This Row],[הוספת שעות]]-שעות_עבודה7[[#This Row],[הפחתת שעות]]+(שעות_עבודה7[[#This Row],[סיום]]<שעות_עבודה7[[#This Row],[התחלה]])),\"\")","v":""},{"$f":"IF(שעות_עבודה7[[#This Row],[שעות]]=\"\",\"\",\nIF(SUMPRODUCT((שעות_עבודה7[[#This Row],[שם העבודה]]=$N$9:$O$28)*שעות_עבודה7[[#This Row],[שעות]]*($P$9:$Q$28*24))=0,\"\",\nSUMPRODUCT((שעות_עבודה7[[#This Row],[שם העבודה]]=$N$9:$O$28)*שעות_עבודה7[[#This Row],[שעות]]*($P$9:$Q$28*24))))","v":""}]
[null,{"$f":"IF(שעות_עבודה7[[#This Row],[תאריך]]=\"\",\"\",ROW(A186))","v":""},null,null,null,null,null,null,{"$f":"IFERROR(IF(שעות_עבודה7[[#This Row],[סיום]]=\"\",\"\",שעות_עבודה7[[#This Row],[סיום]]-שעות_עבודה7[[#This Row],[התחלה]]+שעות_עבודה7[[#This Row],[הוספת שעות]]-שעות_עבודה7[[#This Row],[הפחתת שעות]]+(שעות_עבודה7[[#This Row],[סיום]]<שעות_עבודה7[[#This Row],[התחלה]])),\"\")","v":""},{"$f":"IF(שעות_עבודה7[[#This Row],[שעות]]=\"\",\"\",\nIF(SUMPRODUCT((שעות_עבודה7[[#This Row],[שם העבודה]]=$N$9:$O$28)*שעות_עבודה7[[#This Row],[שעות]]*($P$9:$Q$28*24))=0,\"\",\nSUMPRODUCT((שעות_עבודה7[[#This Row],[שם העבודה]]=$N$9:$O$28)*שעות_עבודה7[[#This Row],[שעות]]*($P$9:$Q$28*24))))","v":""}]
[null,{"$f":"IF(שעות_עבודה7[[#This Row],[תאריך]]=\"\",\"\",ROW(A187))","v":""},null,null,null,null,null,null,{"$f":"IFERROR(IF(שעות_עבודה7[[#This Row],[סיום]]=\"\",\"\",שעות_עבודה7[[#This Row],[סיום]]-שעות_עבודה7[[#This Row],[התחלה]]+שעות_עבודה7[[#This Row],[הוספת שעות]]-שעות_עבודה7[[#This Row],[הפחתת שעות]]+(שעות_עבודה7[[#This Row],[סיום]]<שעות_עבודה7[[#This Row],[התחלה]])),\"\")","v":""},{"$f":"IF(שעות_עבודה7[[#This Row],[שעות]]=\"\",\"\",\nIF(SUMPRODUCT((שעות_עבודה7[[#This Row],[שם העבודה]]=$N$9:$O$28)*שעות_עבודה7[[#This Row],[שעות]]*($P$9:$Q$28*24))=0,\"\",\nSUMPRODUCT((שעות_עבודה7[[#This Row],[שם העבודה]]=$N$9:$O$28)*שעות_עבודה7[[#This Row],[שעות]]*($P$9:$Q$28*24))))","v":""}]
[null,{"$f":"IF(שעות_עבודה7[[#This Row],[תאריך]]=\"\",\"\",ROW(A188))","v":""},null,null,null,null,null,null,{"$f":"IFERROR(IF(שעות_עבודה7[[#This Row],[סיום]]=\"\",\"\",שעות_עבודה7[[#This Row],[סיום]]-שעות_עבודה7[[#This Row],[התחלה]]+שעות_עבודה7[[#This Row],[הוספת שעות]]-שעות_עבודה7[[#This Row],[הפחתת שעות]]+(שעות_עבודה7[[#This Row],[סיום]]<שעות_עבודה7[[#This Row],[התחלה]])),\"\")","v":""},{"$f":"IF(שעות_עבודה7[[#This Row],[שעות]]=\"\",\"\",\nIF(SUMPRODUCT((שעות_עבודה7[[#This Row],[שם העבודה]]=$N$9:$O$28)*שעות_עבודה7[[#This Row],[שעות]]*($P$9:$Q$28*24))=0,\"\",\nSUMPRODUCT((שעות_עבודה7[[#This Row],[שם העבודה]]=$N$9:$O$28)*שעות_עבודה7[[#This Row],[שעות]]*($P$9:$Q$28*24))))","v":""}]
[null,{"$f":"IF(שעות_עבודה7[[#This Row],[תאריך]]=\"\",\"\",ROW(A189))","v":""},null,null,null,null,null,null,{"$f":"IFERROR(IF(שעות_עבודה7[[#This Row],[סיום]]=\"\",\"\",שעות_עבודה7[[#This Row],[סיום]]-שעות_עבודה7[[#This Row],[התחלה]]+שעות_עבודה7[[#This Row],[הוספת שעות]]-שעות_עבודה7[[#This Row],[הפחתת שעות]]+(שעות_עבודה7[[#This Row],[סיום]]<שעות_עבודה7[[#This Row],[התחלה]])),\"\")","v":""},{"$f":"IF(שעות_עבודה7[[#This Row],[שעות]]=\"\",\"\",\nIF(SUMPRODUCT((שעות_עבודה7[[#This Row],[שם העבודה]]=$N$9:$O$28)*שעות_עבודה7[[#This Row],[שעות]]*($P$9:$Q$28*24))=0,\"\",\nSUMPRODUCT((שעות_עבודה7[[#This Row],[שם העבודה]]=$N$9:$O$28)*שעות_עבודה7[[#This Row],[שעות]]*($P$9:$Q$28*24))))","v":""}]
[null,{"$f":"IF(שעות_עבודה7[[#This Row],[תאריך]]=\"\",\"\",ROW(A190))","v":""},null,null,null,null,null,null,{"$f":"IFERROR(IF(שעות_עבודה7[[#This Row],[סיום]]=\"\",\"\",שעות_עבודה7[[#This Row],[סיום]]-שעות_עבודה7[[#This Row],[התחלה]]+שעות_עבודה7[[#This Row],[הוספת שעות]]-שעות_עבודה7[[#This Row],[הפחתת שעות]]+(שעות_עבודה7[[#This Row],[סיום]]<שעות_עבודה7[[#This Row],[התחלה]])),\"\")","v":""},{"$f":"IF(שעות_עבודה7[[#This Row],[שעות]]=\"\",\"\",\nIF(SUMPRODUCT((שעות_עבודה7[[#This Row],[שם העבודה]]=$N$9:$O$28)*שעות_עבודה7[[#This Row],[שעות]]*($P$9:$Q$28*24))=0,\"\",\nSUMPRODUCT((שעות_עבודה7[[#This Row],[שם העבודה]]=$N$9:$O$28)*שעות_עבודה7[[#This Row],[שעות]]*($P$9:$Q$28*24))))","v":""}]
[null,{"$f":"IF(שעות_עבודה7[[#This Row],[תאריך]]=\"\",\"\",ROW(A191))","v":""},null,null,null,null,null,null,{"$f":"IFERROR(IF(שעות_עבודה7[[#This Row],[סיום]]=\"\",\"\",שעות_עבודה7[[#This Row],[סיום]]-שעות_עבודה7[[#This Row],[התחלה]]+שעות_עבודה7[[#This Row],[הוספת שעות]]-שעות_עבודה7[[#This Row],[הפחתת שעות]]+(שעות_עבודה7[[#This Row],[סיום]]<שעות_עבודה7[[#This Row],[התחלה]])),\"\")","v":""},{"$f":"IF(שעות_עבודה7[[#This Row],[שעות]]=\"\",\"\",\nIF(SUMPRODUCT((שעות_עבודה7[[#This Row],[שם העבודה]]=$N$9:$O$28)*שעות_עבודה7[[#This Row],[שעות]]*($P$9:$Q$28*24))=0,\"\",\nSUMPRODUCT((שעות_עבודה7[[#This Row],[שם העבודה]]=$N$9:$O$28)*שעות_עבודה7[[#This Row],[שעות]]*($P$9:$Q$28*24))))","v":""}]
[null,{"$f":"IF(שעות_עבודה7[[#This Row],[תאריך]]=\"\",\"\",ROW(A192))","v":""},null,null,null,null,null,null,{"$f":"IFERROR(IF(שעות_עבודה7[[#This Row],[סיום]]=\"\",\"\",שעות_עבודה7[[#This Row],[סיום]]-שעות_עבודה7[[#This Row],[התחלה]]+שעות_עבודה7[[#This Row],[הוספת שעות]]-שעות_עבודה7[[#This Row],[הפחתת שעות]]+(שעות_עבודה7[[#This Row],[סיום]]<שעות_עבודה7[[#This Row],[התחלה]])),\"\")","v":""},{"$f":"IF(שעות_עבודה7[[#This Row],[שעות]]=\"\",\"\",\nIF(SUMPRODUCT((שעות_עבודה7[[#This Row],[שם העבודה]]=$N$9:$O$28)*שעות_עבודה7[[#This Row],[שעות]]*($P$9:$Q$28*24))=0,\"\",\nSUMPRODUCT((שעות_עבודה7[[#This Row],[שם העבודה]]=$N$9:$O$28)*שעות_עבודה7[[#This Row],[שעות]]*($P$9:$Q$28*24))))","v":""}]
[null,{"$f":"IF(שעות_עבודה7[[#This Row],[תאריך]]=\"\",\"\",ROW(A193))","v":""},null,null,null,null,null,null,{"$f":"IFERROR(IF(שעות_עבודה7[[#This Row],[סיום]]=\"\",\"\",שעות_עבודה7[[#This Row],[סיום]]-שעות_עבודה7[[#This Row],[התחלה]]+שעות_עבודה7[[#This Row],[הוספת שעות]]-שעות_עבודה7[[#This Row],[הפחתת שעות]]+(שעות_עבודה7[[#This Row],[סיום]]<שעות_עבודה7[[#This Row],[התחלה]])),\"\")","v":""},{"$f":"IF(שעות_עבודה7[[#This Row],[שעות]]=\"\",\"\",\nIF(SUMPRODUCT((שעות_עבודה7[[#This Row],[שם העבודה]]=$N$9:$O$28)*שעות_עבודה7[[#This Row],[שעות]]*($P$9:$Q$28*24))=0,\"\",\nSUMPRODUCT((שעות_עבודה7[[#This Row],[שם העבודה]]=$N$9:$O$28)*שעות_עבודה7[[#This Row],[שעות]]*($P$9:$Q$28*24))))","v":""}]
[null,{"$f":"IF(שעות_עבודה7[[#This Row],[תאריך]]=\"\",\"\",ROW(A194))","v":""},null,null,null,null,null,null,{"$f":"IFERROR(IF(שעות_עבודה7[[#This Row],[סיום]]=\"\",\"\",שעות_עבודה7[[#This Row],[סיום]]-שעות_עבודה7[[#This Row],[התחלה]]+שעות_עבודה7[[#This Row],[הוספת שעות]]-שעות_עבודה7[[#This Row],[הפחתת שעות]]+(שעות_עבודה7[[#This Row],[סיום]]<שעות_עבודה7[[#This Row],[התחלה]])),\"\")","v":""},{"$f":"IF(שעות_עבודה7[[#This Row],[שעות]]=\"\",\"\",\nIF(SUMPRODUCT((שעות_עבודה7[[#This Row],[שם העבודה]]=$N$9:$O$28)*שעות_עבודה7[[#This Row],[שעות]]*($P$9:$Q$28*24))=0,\"\",\nSUMPRODUCT((שעות_עבודה7[[#This Row],[שם העבודה]]=$N$9:$O$28)*שעות_עבודה7[[#This Row],[שעות]]*($P$9:$Q$28*24))))","v":""}]
[null,{"$f":"IF(שעות_עבודה7[[#This Row],[תאריך]]=\"\",\"\",ROW(A195))","v":""},null,null,null,null,null,null,{"$f":"IFERROR(IF(שעות_עבודה7[[#This Row],[סיום]]=\"\",\"\",שעות_עבודה7[[#This Row],[סיום]]-שעות_עבודה7[[#This Row],[התחלה]]+שעות_עבודה7[[#This Row],[הוספת שעות]]-שעות_עבודה7[[#This Row],[הפחתת שעות]]+(שעות_עבודה7[[#This Row],[סיום]]<שעות_עבודה7[[#This Row],[התחלה]])),\"\")","v":""},{"$f":"IF(שעות_עבודה7[[#This Row],[שעות]]=\"\",\"\",\nIF(SUMPRODUCT((שעות_עבודה7[[#This Row],[שם העבודה]]=$N$9:$O$28)*שעות_עבודה7[[#This Row],[שעות]]*($P$9:$Q$28*24))=0,\"\",\nSUMPRODUCT((שעות_עבודה7[[#This Row],[שם העבודה]]=$N$9:$O$28)*שעות_עבודה7[[#This Row],[שעות]]*($P$9:$Q$28*24))))","v":""}]
[null,{"$f":"IF(שעות_עבודה7[[#This Row],[תאריך]]=\"\",\"\",ROW(A196))","v":""},null,null,null,null,null,null,{"$f":"IFERROR(IF(שעות_עבודה7[[#This Row],[סיום]]=\"\",\"\",שעות_עבודה7[[#This Row],[סיום]]-שעות_עבודה7[[#This Row],[התחלה]]+שעות_עבודה7[[#This Row],[הוספת שעות]]-שעות_עבודה7[[#This Row],[הפחתת שעות]]+(שעות_עבודה7[[#This Row],[סיום]]<שעות_עבודה7[[#This Row],[התחלה]])),\"\")","v":""},{"$f":"IF(שעות_עבודה7[[#This Row],[שעות]]=\"\",\"\",\nIF(SUMPRODUCT((שעות_עבודה7[[#This Row],[שם העבודה]]=$N$9:$O$28)*שעות_עבודה7[[#This Row],[שעות]]*($P$9:$Q$28*24))=0,\"\",\nSUMPRODUCT((שעות_עבודה7[[#This Row],[שם העבודה]]=$N$9:$O$28)*שעות_עבודה7[[#This Row],[שעות]]*($P$9:$Q$28*24))))","v":""}]
[null,{"$f":"IF(שעות_עבודה7[[#This Row],[תאריך]]=\"\",\"\",ROW(A197))","v":""},null,null,null,null,null,null,{"$f":"IFERROR(IF(שעות_עבודה7[[#This Row],[סיום]]=\"\",\"\",שעות_עבודה7[[#This Row],[סיום]]-שעות_עבודה7[[#This Row],[התחלה]]+שעות_עבודה7[[#This Row],[הוספת שעות]]-שעות_עבודה7[[#This Row],[הפחתת שעות]]+(שעות_עבודה7[[#This Row],[סיום]]<שעות_עבודה7[[#This Row],[התחלה]])),\"\")","v":""},{"$f":"IF(שעות_עבודה7[[#This Row],[שעות]]=\"\",\"\",\nIF(SUMPRODUCT((שעות_עבודה7[[#This Row],[שם העבודה]]=$N$9:$O$28)*שעות_עבודה7[[#This Row],[שעות]]*($P$9:$Q$28*24))=0,\"\",\nSUMPRODUCT((שעות_עבודה7[[#This Row],[שם העבודה]]=$N$9:$O$28)*שעות_עבודה7[[#This Row],[שעות]]*($P$9:$Q$28*24))))","v":""}]
[null,{"$f":"IF(שעות_עבודה7[[#This Row],[תאריך]]=\"\",\"\",ROW(A198))","v":""},null,null,null,null,null,null,{"$f":"IFERROR(IF(שעות_עבודה7[[#This Row],[סיום]]=\"\",\"\",שעות_עבודה7[[#This Row],[סיום]]-שעות_עבודה7[[#This Row],[התחלה]]+שעות_עבודה7[[#This Row],[הוספת שעות]]-שעות_עבודה7[[#This Row],[הפחתת שעות]]+(שעות_עבודה7[[#This Row],[סיום]]<שעות_עבודה7[[#This Row],[התחלה]])),\"\")","v":""},{"$f":"IF(שעות_עבודה7[[#This Row],[שעות]]=\"\",\"\",\nIF(SUMPRODUCT((שעות_עבודה7[[#This Row],[שם העבודה]]=$N$9:$O$28)*שעות_עבודה7[[#This Row],[שעות]]*($P$9:$Q$28*24))=0,\"\",\nSUMPRODUCT((שעות_עבודה7[[#This Row],[שם העבודה]]=$N$9:$O$28)*שעות_עבודה7[[#This Row],[שעות]]*($P$9:$Q$28*24))))","v":""}]
[null,{"$f":"IF(שעות_עבודה7[[#This Row],[תאריך]]=\"\",\"\",ROW(A199))","v":""},null,null,null,null,null,null,{"$f":"IFERROR(IF(שעות_עבודה7[[#This Row],[סיום]]=\"\",\"\",שעות_עבודה7[[#This Row],[סיום]]-שעות_עבודה7[[#This Row],[התחלה]]+שעות_עבודה7[[#This Row],[הוספת שעות]]-שעות_עבודה7[[#This Row],[הפחתת שעות]]+(שעות_עבודה7[[#This Row],[סיום]]<שעות_עבודה7[[#This Row],[התחלה]])),\"\")","v":""},{"$f":"IF(שעות_עבודה7[[#This Row],[שעות]]=\"\",\"\",\nIF(SUMPRODUCT((שעות_עבודה7[[#This Row],[שם העבודה]]=$N$9:$O$28)*שעות_עבודה7[[#This Row],[שעות]]*($P$9:$Q$28*24))=0,\"\",\nSUMPRODUCT((שעות_עבודה7[[#This Row],[שם העבודה]]=$N$9:$O$28)*שעות_עבודה7[[#This Row],[שעות]]*($P$9:$Q$28*24))))","v":""}]
[null,{"$f":"IF(שעות_עבודה7[[#This Row],[תאריך]]=\"\",\"\",ROW(A200))","v":""},null,null,null,null,null,null,{"$f":"IFERROR(IF(שעות_עבודה7[[#This Row],[סיום]]=\"\",\"\",שעות_עבודה7[[#This Row],[סיום]]-שעות_עבודה7[[#This Row],[התחלה]]+שעות_עבודה7[[#This Row],[הוספת שעות]]-שעות_עבודה7[[#This Row],[הפחתת שעות]]+(שעות_עבודה7[[#This Row],[סיום]]<שעות_עבודה7[[#This Row],[התחלה]])),\"\")","v":""},{"$f":"IF(שעות_עבודה7[[#This Row],[שעות]]=\"\",\"\",\nIF(SUMPRODUCT((שעות_עבודה7[[#This Row],[שם העבודה]]=$N$9:$O$28)*שעות_עבודה7[[#This Row],[שעות]]*($P$9:$Q$28*24))=0,\"\",\nSUMPRODUCT((שעות_עבודה7[[#This Row],[שם העבודה]]=$N$9:$O$28)*שעות_עבודה7[[#This Row],[שעות]]*($P$9:$Q$28*24))))","v":""}]

{"sheet":"סיכום התשלומים","index":1,"n_rows":24,"n_cols":13,"rows_kept":24,"cut":false,"hidden":false,"merged":[[1,6,1,7]]}
[]
[null,null,null,null,null,null,"סיכום התשלומים"]
[]
[null,"שמות העבודות","שכר לשעה","שעות העבודה","לתשלום","חיובים נוספים 1","חיובים נוספים 2","חיובים נוספים 3","זיכויים / שולם 1","זיכויים / שולם 2","זיכויים / שולם 3","זיכויים / שולם 4","יתרה"]
[null,{"$f":"IF('טיימר עבודות'!N9=\"\",\"\",'טיימר עבודות'!N9)","v":"הבית לעורך"},{"$f":"IF('טיימר עבודות'!P9=\"\",\"\",'טיימר עבודות'!P9)","v":30},{"$f":"IF('טיימר עבודות'!R9=\"\",\"\",'טיימר עבודות'!R9)","v":0.29585648148148147},{"$f":"IF('טיימר עבודות'!S9=\"\",\"\",'טיימר עבודות'!S9)","v":213.01666666666668},null,null,null,null,null,null,null,{"$f":"IF(טבלה3[[#This Row],[עמודה4]]=\"\",\"\",SUM(טבלה3[[#This Row],[עמודה4]:[עמודה12]])-SUM(טבלה3[[#This Row],[עמודה6]:[עמודה11]]))","v":213.01666666666668}]
[null,{"$f":"IF('טיימר עבודות'!N10=\"\",\"\",'טיימר עבודות'!N10)","v":"העורך התורני"},{"$f":"IF('טיימר עבודות'!P10=\"\",\"\",'טיימר עבודות'!P10)","v":50},{"$f":"IF('טיימר עבודות'!R10=\"\",\"\",'טיימר עבודות'!R10)","v":0.16990740740740734},{"$f":"IF('טיימר עבודות'!S10=\"\",\"\",'טיימר עבודות'!S10)","v":203.8888888888888},null,null,null,null,null,null,null,{"$f":"IF(טבלה3[[#This Row],[עמודה4]]=\"\",\"\",SUM(טבלה3[[#This Row],[עמודה4]:[עמודה12]])-SUM(טבלה3[[#This Row],[עמודה6]:[עמודה11]]))","v":203.8888888888888}]
[null,{"$f":"IF('טיימר עבודות'!N11=\"\",\"\",'טיימר עבודות'!N11)","v":"חיים של תורה"},{"$f":"IF('טיימר עבודות'!P11=\"\",\"\",'טיימר עבודות'!P11)","v":70},{"$f":"IF('טיימר עבודות'!R11=\"\",\"\",'טיימר עבודות'!R11)","v":9.3761574074074122E-2},{"$f":"IF('טיימר עבודות'!S11=\"\",\"\",'טיימר עבודות'!S11)","v":157.51944444444453},null,null,null,null,null,null,null,{"$f":"IF(טבלה3[[#This Row],[עמודה4]]=\"\",\"\",SUM(טבלה3[[#This Row],[עמודה4]:[עמודה12]])-SUM(טבלה3[[#This Row],[עמודה6]:[עמודה11]]))","v":157.51944444444453}]
[null,{"$f":"IF('טיימר עבודות'!N12=\"\",\"\",'טיימר עבודות'!N12)","v":"המאיר לדרים"},{"$f":"IF('טיימר עבודות'!P12=\"\",\"\",'טיימר עבודות'!P12)","v":60},{"$f":"IF('טיימר עבודות'!R12=\"\",\"\",'טיימר עבודות'!R12)","v":0.20946759259259257},{"$f":"IF('טיימר עבודות'!S12=\"\",\"\",'טיימר עבודות'!S12)","v":301.63333333333333},null,null,null,null,null,null,null,{"$f":"IF(טבלה3[[#This Row],[עמודה4]]=\"\",\"\",SUM(טבלה3[[#This Row],[עמודה4]:[עמודה12]])-SUM(טבלה3[[#This Row],[עמודה6]:[עמודה11]]))","v":301.63333333333333}]
[null,{"$f":"IF('טיימר עבודות'!N13=\"\",\"\",'טיימר עבודות'!N13)","v":"עריכת מהדו\"ת"},{"$f":"IF('טיימר עבודות'!P13=\"\",\"\",'טיימר עבודות'!P13)","v":110},{"$f":"IF('טיימר עבודות'!R13=\"\",\"\",'טיימר עבודות'!R13)","v":""},{"$f":"IF('טיימר עבודות'!S13=\"\",\"\",'טיימר עבודות'!S13)","v":""},null,null,null,null,null,null,null,{"$f":"IF(טבלה3[[#This Row],[עמודה4]]=\"\",\"\",SUM(טבלה3[[#This Row],[עמודה4]:[עמודה12]])-SUM(טבלה3[[#This Row],[עמודה6]:[עמודה11]]))","v":""}]
[null,{"$f":"IF('טיימר עבודות'!N14=\"\",\"\",'טיימר עבודות'!N14)","v":"עיון במקורות"},{"$f":"IF('טיימר עבודות'!P14=\"\",\"\",'טיימר עבודות'!P14)","v":70},{"$f":"IF('טיימר עבודות'!R14=\"\",\"\",'טיימר עבודות'!R14)","v":""},{"$f":"IF('טיימר עבודות'!S14=\"\",\"\",'טיימר עבודות'!S14)","v":""},null,null,null,null,null,null,null,{"$f":"IF(טבלה3[[#This Row],[עמודה4]]=\"\",\"\",SUM(טבלה3[[#This Row],[עמודה4]:[עמודה12]])-SUM(טבלה3[[#This Row],[עמודה6]:[עמודה11]]))","v":""}]
[null,{"$f":"IF('טיימר עבודות'!N15=\"\",\"\",'טיימר עבודות'!N15)","v":""},{"$f":"IF('טיימר עבודות'!P15=\"\",\"\",'טיימר עבודות'!P15)","v":""},{"$f":"IF('טיימר עבודות'!R15=\"\",\"\",'טיימר עבודות'!R15)","v":""},{"$f":"IF('טיימר עבודות'!S15=\"\",\"\",'טיימר עבודות'!S15)","v":""},null,null,null,null,null,null,null,{"$f":"IF(טבלה3[[#This Row],[עמודה4]]=\"\",\"\",SUM(טבלה3[[#This Row],[עמודה4]:[עמודה12]])-SUM(טבלה3[[#This Row],[עמודה6]:[עמודה11]]))","v":""}]
[null,{"$f":"IF('טיימר עבודות'!N16=\"\",\"\",'טיימר עבודות'!N16)","v":""},{"$f":"IF('טיימר עבודות'!P16=\"\",\"\",'טיימר עבודות'!P16)","v":""},{"$f":"IF('טיימר עבודות'!R16=\"\",\"\",'טיימר עבודות'!R16)","v":""},{"$f":"IF('טיימר עבודות'!S16=\"\",\"\",'טיימר עבודות'!S16)","v":""},null,null,null,null,null,null,null,{"$f":"IF(טבלה3[[#This Row],[עמודה4]]=\"\",\"\",SUM(טבלה3[[#This Row],[עמודה4]:[עמודה12]])-SUM(טבלה3[[#This Row],[עמודה6]:[עמודה11]]))","v":""}]
[null,{"$f":"IF('טיימר עבודות'!N17=\"\",\"\",'טיימר עבודות'!N17)","v":""},{"$f":"IF('טיימר עבודות'!P17=\"\",\"\",'טיימר עבודות'!P17)","v":""},{"$f":"IF('טיימר עבודות'!R17=\"\",\"\",'טיימר עבודות'!R17)","v":""},{"$f":"IF('טיימר עבודות'!S17=\"\",\"\",'טיימר עבודות'!S17)","v":""},null,null,null,null,null,null,null,{"$f":"IF(טבלה3[[#This Row],[עמודה4]]=\"\",\"\",SUM(טבלה3[[#This Row],[עמודה4]:[עמודה12]])-SUM(טבלה3[[#This Row],[עמודה6]:[עמודה11]]))","v":""}]
[null,{"$f":"IF('טיימר עבודות'!N18=\"\",\"\",'טיימר עבודות'!N18)","v":""},{"$f":"IF('טיימר עבודות'!P18=\"\",\"\",'טיימר עבודות'!P18)","v":""},{"$f":"IF('טיימר עבודות'!R18=\"\",\"\",'טיימר עבודות'!R18)","v":""},{"$f":"IF('טיימר עבודות'!S18=\"\",\"\",'טיימר עבודות'!S18)","v":""},null,null,null,null,null,null,null,{"$f":"IF(טבלה3[[#This Row],[עמודה4]]=\"\",\"\",SUM(טבלה3[[#This Row],[עמודה4]:[עמודה12]])-SUM(טבלה3[[#This Row],[עמודה6]:[עמודה11]]))","v":""}]
[null,{"$f":"IF('טיימר עבודות'!N19=\"\",\"\",'טיימר עבודות'!N19)","v":""},{"$f":"IF('טיימר עבודות'!P19=\"\",\"\",'טיימר עבודות'!P19)","v":""},{"$f":"IF('טיימר עבודות'!R19=\"\",\"\",'טיימר עבודות'!R19)","v":""},{"$f":"IF('טיימר עבודות'!S19=\"\",\"\",'טיימר עבודות'!S19)","v":""},null,null,null,null,null,null,null,{"$f":"IF(טבלה3[[#This Row],[עמודה4]]=\"\",\"\",SUM(טבלה3[[#This Row],[עמודה4]:[עמודה12]])-SUM(טבלה3[[#This Row],[עמודה6]:[עמודה11]]))","v":""}]
[null,{"$f":"IF('טיימר עבודות'!N20=\"\",\"\",'טיימר עבודות'!N20)","v":""},{"$f":"IF('טיימר עבודות'!P20=\"\",\"\",'טיימר עבודות'!P20)","v":""},{"$f":"IF('טיימר עבודות'!R20=\"\",\"\",'טיימר עבודות'!R20)","v":""},{"$f":"IF('טיימר עבודות'!S20=\"\",\"\",'טיימר עבודות'!S20)","v":""},null,null,null,null,null,null,null,{"$f":"IF(טבלה3[[#This Row],[עמודה4]]=\"\",\"\",SUM(טבלה3[[#This Row],[עמודה4]:[עמודה12]])-SUM(טבלה3[[#This Row],[עמודה6]:[עמודה11]]))","v":""}]
[null,{"$f":"IF('טיימר עבודות'!N21=\"\",\"\",'טיימר עבודות'!N21)","v":""},{"$f":"IF('טיימר עבודות'!P21=\"\",\"\",'טיימר עבודות'!P21)","v":""},{"$f":"IF('טיימר עבודות'!R21=\"\",\"\",'טיימר עבודות'!R21)","v":""},{"$f":"IF('טיימר עבודות'!S21=\"\",\"\",'טיימר עבודות'!S21)","v":""},null,null,null,null,null,null,null,{"$f":"IF(טבלה3[[#This Row],[עמודה4]]=\"\",\"\",SUM(טבלה3[[#This Row],[עמודה4]:[עמודה12]])-SUM(טבלה3[[#This Row],[עמודה6]:[עמודה11]]))","v":""}]
[null,{"$f":"IF('טיימר עבודות'!N22=\"\",\"\",'טיימר עבודות'!N22)","v":""},{"$f":"IF('טיימר עבודות'!P22=\"\",\"\",'טיימר עבודות'!P22)","v":""},{"$f":"IF('טיימר עבודות'!R22=\"\",\"\",'טיימר עבודות'!R22)","v":""},{"$f":"IF('טיימר עבודות'!S22=\"\",\"\",'טיימר עבודות'!S22)","v":""},null,null,null,null,null,null,null,{"$f":"IF(טבלה3[[#This Row],[עמודה4]]=\"\",\"\",SUM(טבלה3[[#This Row],[עמודה4]:[עמודה12]])-SUM(טבלה3[[#This Row],[עמודה6]:[עמודה11]]))","v":""}]
[null,{"$f":"IF('טיימר עבודות'!N23=\"\",\"\",'טיימר עבודות'!N23)","v":""},{"$f":"IF('טיימר עבודות'!P23=\"\",\"\",'טיימר עבודות'!P23)","v":""},{"$f":"IF('טיימר עבודות'!R23=\"\",\"\",'טיימר עבודות'!R23)","v":""},{"$f":"IF('טיימר עבודות'!S23=\"\",\"\",'טיימר עבודות'!S23)","v":""},null,null,null,null,null,null,null,{"$f":"IF(טבלה3[[#This Row],[עמודה4]]=\"\",\"\",SUM(טבלה3[[#This Row],[עמודה4]:[עמודה12]])-SUM(טבלה3[[#This Row],[עמודה6]:[עמודה11]]))","v":""}]
[null,{"$f":"IF('טיימר עבודות'!N24=\"\",\"\",'טיימר עבודות'!N24)","v":""},{"$f":"IF('טיימר עבודות'!P24=\"\",\"\",'טיימר עבודות'!P24)","v":""},{"$f":"IF('טיימר עבודות'!R24=\"\",\"\",'טיימר עבודות'!R24)","v":""},{"$f":"IF('טיימר עבודות'!S24=\"\",\"\",'טיימר עבודות'!S24)","v":""},null,null,null,null,null,null,null,{"$f":"IF(טבלה3[[#This Row],[עמודה4]]=\"\",\"\",SUM(טבלה3[[#This Row],[עמודה4]:[עמודה12]])-SUM(טבלה3[[#This Row],[עמודה6]:[עמודה11]]))","v":""}]
[null,{"$f":"IF('טיימר עבודות'!N25=\"\",\"\",'טיימר עבודות'!N25)","v":""},{"$f":"IF('טיימר עבודות'!P25=\"\",\"\",'טיימר עבודות'!P25)","v":""},{"$f":"IF('טיימר עבודות'!R25=\"\",\"\",'טיימר עבודות'!R25)","v":""},{"$f":"IF('טיימר עבודות'!S25=\"\",\"\",'טיימר עבודות'!S25)","v":""},null,null,null,null,null,null,null,{"$f":"IF(טבלה3[[#This Row],[עמודה4]]=\"\",\"\",SUM(טבלה3[[#This Row],[עמודה4]:[עמודה12]])-SUM(טבלה3[[#This Row],[עמודה6]:[עמודה11]]))","v":""}]
[null,{"$f":"IF('טיימר עבודות'!N26=\"\",\"\",'טיימר עבודות'!N26)","v":""},{"$f":"IF('טיימר עבודות'!P26=\"\",\"\",'טיימר עבודות'!P26)","v":""},{"$f":"IF('טיימר עבודות'!R26=\"\",\"\",'טיימר עבודות'!R26)","v":""},{"$f":"IF('טיימר עבודות'!S26=\"\",\"\",'טיימר עבודות'!S26)","v":""},null,null,null,null,null,null,null,{"$f":"IF(טבלה3[[#This Row],[עמודה4]]=\"\",\"\",SUM(טבלה3[[#This Row],[עמודה4]:[עמודה12]])-SUM(טבלה3[[#This Row],[עמודה6]:[עמודה11]]))","v":""}]
[null,{"$f":"IF('טיימר עבודות'!N27=\"\",\"\",'טיימר עבודות'!N27)","v":""},{"$f":"IF('טיימר עבודות'!P27=\"\",\"\",'טיימר עבודות'!P27)","v":""},{"$f":"IF('טיימר עבודות'!R27=\"\",\"\",'טיימר עבודות'!R27)","v":""},{"$f":"IF('טיימר עבודות'!S27=\"\",\"\",'טיימר עבודות'!S27)","v":""},null,null,null,null,null,null,null,{"$f":"IF(טבלה3[[#This Row],[עמודה4]]=\"\",\"\",SUM(טבלה3[[#This Row],[עמודה4]:[עמודה12]])-SUM(טבלה3[[#This Row],[עמודה6]:[עמודה11]]))","v":""}]
[null,{"$f":"IF('טיימר עבודות'!N28=\"\",\"\",'טיימר עבודות'!N28)","v":""},{"$f":"IF('טיימר עבודות'!P28=\"\",\"\",'טיימר עבודות'!P28)","v":""},{"$f":"IF('טיימר עבודות'!R28=\"\",\"\",'טיימר עבודות'!R28)","v":""},{"$f":"IF('טיימר עבודות'!S28=\"\",\"\",'טיימר עבודות'!S28)","v":""},null,null,null,null,null,null,null,{"$f":"IF(טבלה3[[#This Row],[עמודה4]]=\"\",\"\",SUM(טבלה3[[#This Row],[עמודה4]:[עמודה12]])-SUM(טבלה3[[#This Row],[עמודה6]:[עמודה11]]))","v":""}]

{"sheet":"הדרכה","index":2,"n_rows":0,"n_cols":0,"rows_kept":0,"cut":false,"hidden":false,"merged":[]}